Workbook

Sheet Sheet1
A1: Timeline
C2: Period | H2: Start | I2: Period | K2: 0 | L2: =K2+1 -> 1 | M2: =L2+1 -> 2 | N2: 3 | O2: 4 | P2: 5 | Q2: 6 | R2: 7 | S2: 8 | T2: 9 | U2: 10 | V2: 11 | W2: 12 | X2: 13 | Y2: 14 | Z2: 15 | AA2: 16 | AB2: 17 | AC2: 18 | AD2: 19 | AE2: 20 | AF2: 21 | AG2: 22 | AH2: 23 | AI2: 24 | AJ2: 25 | AK2: 26 | AL2: 27 | AM2: 28 | AN2: 29 | AO2: 30 | AP2: 31 | AQ2: 32 | AR2: 33 | AS2: 34 | AT2: 35 | AU2: 36 | AV2: 37 | AW2: 38 | AX2: 39 | AY2: 40 | AZ2: 41 | BA2: 42 | BB2: 43 | BC2: 44 | BD2: 45 | BE2: 46 | BF2: 47 | BG2: 48 | BH2: 49 | BI2: 50 | BJ2: 51 | BK2: 52 | BL2: 53 | BM2: 54 | BN2: 55 | BO2: 56 | BP2: 57 | BQ2: 58 | BR2: 59 | BS2: 60 | BT2: 61 | BU2: 62 | BV2: 63 | BW2: 64 | BX2: 65 | BY2: =BX2+1 -> 66 | BZ2: 67 | CA2: 68 | CB2: 69 | CC2: 70 | CD2: 71 | CE2: 72 | CF2: 73 | CG2: 74 | CH2: 75 | CI2: 76 | CJ2: 77 | CK2: 78 | CL2: 79 | CM2: 80 | CN2: 81 | CO2: 82 | CP2: 83 | CQ2: 84 | CR2: 85 | CS2: 86 | CT2: 87 | CU2: 88 | CV2: 89 | CW2: 90 | CX2: 91 | CY2: 92 | CZ2: 93 | DA2: 94 | DB2: 95 | DC2: 96 | DD2: 97 | DE2: 98 | DF2: 99 | DG2: 100 | DH2: =DG2+1 -> 101 | DI2: 102 | DJ2: 103 | DK2: 104 | DL2: 105 | DM2: 106 | DN2: 107 | DO2: 108 | DP2: 109 | DQ2: 110 | DR2: 111 | DS2: 112 | DT2: 113 | DU2: 114 | DV2: 115 | DW2: 116 | DX2: 117 | DY2: 118 | DZ2: 119 | EA2: 120 | EB2: 121 | EC2: 122 | ED2: 123 | EE2: 124 | EF2: 125 | EG2: 126 | EH2: 127 | EI2: 128 | EJ2: 129 | EK2: 130 | EL2: 131 | EM2: 132 | EN2: 133 | EO2: 134 | EP2: 135 | EQ2: 136 | ER2: 137 | ES2: 138 | ET2: 139 | EU2: 140 | EV2: 141 | EW2: 142 | EX2: 143 | EY2: 144 | EZ2: 145 | FA2: 146 | FB2: 147 | FC2: 148 | FD2: 149 | FE2: 150 | FF2: 151 | FG2: 152 | FH2: 153 | FI2: 154 | FJ2: 155 | FK2: 156 | FL2: 157 | FM2: 158 | FN2: 159 | FO2: 160 | FP2: 161 | FQ2: 162 | FR2: 163 | FS2: 164 | FT2: =FS2+1 -> 165 | FU2: 166 | FV2: 167 | FW2: 168
C3: Development Period | H3: =G22 -> 3 | I3: 12 | L3: =L2<=$H$3 -> TRUE | M3: =M2<=$H$3 -> TRUE | N3: TRUE | O3: FALSE | P3: FALSE | Q3: FALSE | R3: FALSE | S3: FALSE | T3: FALSE | U3: FALSE | V3: FALSE | W3: FALSE | X3: FALSE | Y3: FALSE | Z3: FALSE | AA3: FALSE | AB3: FALSE | AC3: FALSE | AD3: FALSE | AE3: FALSE | AF3: FALSE | AG3: FALSE | AH3: FALSE | AI3: FALSE | AJ3: FALSE | AK3: FALSE | AL3: FALSE | AM3: FALSE | AN3: FALSE | AO3: FALSE | AP3: FALSE | AQ3: FALSE | AR3: FALSE | AS3: FALSE | AT3: FALSE | AU3: FALSE | AV3: FALSE | AW3: FALSE | AX3: FALSE | AY3: FALSE | AZ3: FALSE | BA3: FALSE | BB3: FALSE | BC3: FALSE | BD3: FALSE | BE3: FALSE | BF3: FALSE | BG3: FALSE | BH3: FALSE | BI3: FALSE | BJ3: FALSE | BK3: FALSE | BL3: FALSE | BM3: FALSE | BN3: FALSE | BO3: FALSE | BP3: FALSE | BQ3: FALSE | BR3: FALSE | BS3: FALSE | BT3: FALSE | BU3: FALSE | BV3: FALSE | BW3: FALSE | BX3: FALSE | BY3: =BY2<=$H$3 -> FALSE | BZ3: FALSE | CA3: FALSE | CB3: FALSE | CC3: FALSE | CD3: FALSE | CE3: FALSE | CF3: FALSE | CG3: FALSE | CH3: FALSE | CI3: FALSE | CJ3: FALSE | CK3: FALSE | CL3: FALSE | CM3: FALSE | CN3: FALSE | CO3: FALSE | CP3: FALSE | CQ3: FALSE | CR3: FALSE | CS3: FALSE | CT3: FALSE | CU3: FALSE | CV3: FALSE | CW3: FALSE | CX3: FALSE | CY3: FALSE | CZ3: FALSE | DA3: FALSE | DB3: FALSE | DC3: FALSE | DD3: FALSE | DE3: FALSE | DF3: FALSE | DG3: FALSE | DH3: =DH2<=$H$3 -> FALSE | DI3: =DI2<=$H$3 -> FALSE | DJ3: =DJ2<=$H$3 -> FALSE | DK3: =DK2<=$H$3 -> FALSE | DL3: =DL2<=$H$3 -> FALSE | DM3: =DM2<=$H$3 -> FALSE | DN3: =DN2<=$H$3 -> FALSE | DO3: =DO2<=$H$3 -> FALSE | DP3: =DP2<=$H$3 -> FALSE | DQ3: =DQ2<=$H$3 -> FALSE | DR3: =DR2<=$H$3 -> FALSE | DS3: =DS2<=$H$3 -> FALSE | DT3: =DT2<=$H$3 -> FALSE | DU3: =DU2<=$H$3 -> FALSE | DV3: =DV2<=$H$3 -> FALSE | DW3: =DW2<=$H$3 -> FALSE | DX3: =DX2<=$H$3 -> FALSE | DY3: =DY2<=$H$3 -> FALSE | DZ3: =DZ2<=$H$3 -> FALSE | EA3: =EA2<=$H$3 -> FALSE | EB3: =EB2<=$H$3 -> FALSE | EC3: =EC2<=$H$3 -> FALSE | ED3: =ED2<=$H$3 -> FALSE | EE3: =EE2<=$H$3 -> FALSE | EF3: =EF2<=$H$3 -> FALSE | EG3: =EG2<=$H$3 -> FALSE | EH3: =EH2<=$H$3 -> FALSE | EI3: =EI2<=$H$3 -> FALSE | EJ3: =EJ2<=$H$3 -> FALSE | EK3: =EK2<=$H$3 -> FALSE | EL3: =EL2<=$H$3 -> FALSE | EM3: =EM2<=$H$3 -> FALSE | EN3: =EN2<=$H$3 -> FALSE | EO3: =EO2<=$H$3 -> FALSE | EP3: =EP2<=$H$3 -> FALSE | EQ3: =EQ2<=$H$3 -> FALSE | ER3: =ER2<=$H$3 -> FALSE | ES3: =ES2<=$H$3 -> FALSE | ET3: =ET2<=$H$3 -> FALSE | EU3: =EU2<=$H$3 -> FALSE | EV3: =EV2<=$H$3 -> FALSE | EW3: =EW2<=$H$3 -> FALSE | EX3: =EX2<=$H$3 -> FALSE | EY3: =EY2<=$H$3 -> FALSE | EZ3: =EZ2<=$H$3 -> FALSE | FA3: =FA2<=$H$3 -> FALSE | FB3: =FB2<=$H$3 -> FALSE | FC3: =FC2<=$H$3 -> FALSE | FD3: =FD2<=$H$3 -> FALSE | FE3: =FE2<=$H$3 -> FALSE | FF3: =FF2<=$H$3 -> FALSE | FG3: =FG2<=$H$3 -> FALSE | FH3: =FH2<=$H$3 -> FALSE | FI3: =FI2<=$H$3 -> FALSE | FJ3: =FJ2<=$H$3 -> FALSE | FK3: =FK2<=$H$3 -> FALSE | FL3: =FL2<=$H$3 -> FALSE | FM3: =FM2<=$H$3 -> FALSE | FN3: =FN2<=$H$3 -> FALSE | FO3: =FO2<=$H$3 -> FALSE | FP3: =FP2<=$H$3 -> FALSE | FQ3: =FQ2<=$H$3 -> FALSE | FR3: =FR2<=$H$3 -> FALSE | FS3: =FS2<=$H$3 -> FALSE | FT3: =FT2<=$H$3 -> FALSE | FU3: =FU2<=$H$3 -> FALSE | FV3: =FV2<=$H$3 -> FALSE | FW3: =FW2<=$H$3 -> FALSE
C4: Construction Period | H4: =H3+G24 -> 43 | I4: 1 | L4: =AND(L2>$H$3,L2<=$H$4) -> FALSE | M4: =AND(M2>$H$3,M2<=$H$4) -> FALSE | N4: FALSE | O4: TRUE | P4: TRUE | Q4: TRUE | R4: TRUE | S4: TRUE | T4: TRUE | U4: TRUE | V4: TRUE | W4: TRUE | X4: TRUE | Y4: TRUE | Z4: TRUE | AA4: TRUE | AB4: TRUE | AC4: TRUE | AD4: TRUE | AE4: TRUE | AF4: TRUE | AG4: TRUE | AH4: TRUE | AI4: TRUE | AJ4: TRUE | AK4: TRUE | AL4: TRUE | AM4: TRUE | AN4: TRUE | AO4: TRUE | AP4: TRUE | AQ4: TRUE | AR4: TRUE | AS4: TRUE | AT4: TRUE | AU4: TRUE | AV4: TRUE | AW4: TRUE | AX4: TRUE | AY4: TRUE | AZ4: TRUE | BA4: TRUE | BB4: TRUE | BC4: FALSE | BD4: FALSE | BE4: FALSE | BF4: FALSE | BG4: FALSE | BH4: FALSE | BI4: FALSE | BJ4: FALSE | BK4: FALSE | BL4: FALSE | BM4: FALSE | BN4: FALSE | BO4: FALSE | BP4: FALSE | BQ4: FALSE | BR4: FALSE | BS4: FALSE | BT4: FALSE | BU4: FALSE | BV4: FALSE | BW4: FALSE | BX4: FALSE | BY4: =AND(BY2>$H$3,BY2<=$H$4) -> FALSE | BZ4: FALSE | CA4: FALSE | CB4: FALSE | CC4: FALSE | CD4: FALSE | CE4: FALSE | CF4: FALSE | CG4: FALSE | CH4: FALSE | CI4: FALSE | CJ4: FALSE | CK4: FALSE | CL4: FALSE | CM4: FALSE | CN4: FALSE | CO4: FALSE | CP4: FALSE | CQ4: FALSE | CR4: FALSE | CS4: FALSE | CT4: FALSE | CU4: FALSE | CV4: FALSE | CW4: FALSE | CX4: FALSE | CY4: FALSE | CZ4: FALSE | DA4: FALSE | DB4: FALSE | DC4: FALSE | DD4: FALSE | DE4: FALSE | DF4: FALSE | DG4: FALSE | DH4: =AND(DH2>$H$3,DH2<=$H$4) -> FALSE | DI4: FALSE | DJ4: FALSE | DK4: FALSE | DL4: FALSE | DM4: FALSE | DN4: FALSE | DO4: FALSE | DP4: FALSE | DQ4: FALSE | DR4: FALSE | DS4: FALSE | DT4: FALSE | DU4: FALSE | DV4: FALSE | DW4: FALSE | DX4: FALSE | DY4: FALSE | DZ4: FALSE | EA4: FALSE | EB4: FALSE | EC4: FALSE | ED4: FALSE | EE4: FALSE | EF4: FALSE | EG4: FALSE | EH4: FALSE | EI4: FALSE | EJ4: FALSE | EK4: FALSE | EL4: FALSE | EM4: FALSE | EN4: FALSE | EO4: FALSE | EP4: FALSE | EQ4: FALSE | ER4: FALSE | ES4: FALSE | ET4: FALSE | EU4: FALSE | EV4: FALSE | EW4: FALSE | EX4: FALSE | EY4: FALSE | EZ4: FALSE | FA4: FALSE | FB4: FALSE | FC4: FALSE | FD4: FALSE | FE4: FALSE | FF4: FALSE | FG4: FALSE | FH4: FALSE | FI4: FALSE | FJ4: FALSE | FK4: FALSE | FL4: FALSE | FM4: FALSE | FN4: FALSE | FO4: FALSE | FP4: FALSE | FQ4: FALSE | FR4: FALSE | FS4: FALSE | FT4: =AND(FT2>$H$3,FT2<=$H$4) -> FALSE | FU4: FALSE | FV4: FALSE | FW4: FALSE
C5: Operating Periods | H5: =H4+G26 -> 143 | I5: 3 | J5: =COUNTIF(L5:DG5,TRUE) -> 57 | L5: =AND(L2>$H$4,L2<=$H$5) -> FALSE | M5: =AND(M2>$H$4,M2<=$H$5) -> FALSE | N5: FALSE | O5: FALSE | P5: FALSE | Q5: FALSE | R5: FALSE | S5: FALSE | T5: FALSE | U5: FALSE | V5: FALSE | W5: FALSE | X5: FALSE | Y5: FALSE | Z5: FALSE | AA5: FALSE | AB5: FALSE | AC5: FALSE | AD5: FALSE | AE5: FALSE | AF5: FALSE | AG5: FALSE | AH5: FALSE | AI5: FALSE | AJ5: FALSE | AK5: FALSE | AL5: FALSE | AM5: FALSE | AN5: FALSE | AO5: FALSE | AP5: FALSE | AQ5: FALSE | AR5: FALSE | AS5: FALSE | AT5: FALSE | AU5: FALSE | AV5: FALSE | AW5: FALSE | AX5: FALSE | AY5: FALSE | AZ5: FALSE | BA5: FALSE | BB5: FALSE | BC5: TRUE | BD5: TRUE | BE5: TRUE | BF5: TRUE | BG5: TRUE | BH5: TRUE | BI5: TRUE | BJ5: TRUE | BK5: TRUE | BL5: TRUE | BM5: TRUE | BN5: TRUE | BO5: TRUE | BP5: TRUE | BQ5: TRUE | BR5: TRUE | BS5: TRUE | BT5: TRUE | BU5: TRUE | BV5: TRUE | BW5: TRUE | BX5: TRUE | BY5: =AND(BY2>$H$4,BY2<=$H$5) -> TRUE | BZ5: TRUE | CA5: TRUE | CB5: TRUE | CC5: TRUE | CD5: TRUE | CE5: TRUE | CF5: TRUE | CG5: TRUE | CH5: TRUE | CI5: TRUE | CJ5: TRUE | CK5: TRUE | CL5: TRUE | CM5: TRUE | CN5: TRUE | CO5: TRUE | CP5: TRUE | CQ5: TRUE | CR5: TRUE | CS5: TRUE | CT5: TRUE | CU5: TRUE | CV5: TRUE | CW5: TRUE | CX5: TRUE | CY5: TRUE | CZ5: TRUE | DA5: TRUE | DB5: TRUE | DC5: TRUE | DD5: TRUE | DE5: TRUE | DF5: TRUE | DG5: TRUE | DH5: =AND(DH2>$H$4,DH2<=$H$5) -> TRUE | DI5: TRUE | DJ5: TRUE | DK5: TRUE | DL5: TRUE | DM5: TRUE | DN5: TRUE | DO5: TRUE | DP5: TRUE | DQ5: TRUE | DR5: TRUE | DS5: TRUE | DT5: TRUE | DU5: TRUE | DV5: TRUE | DW5: TRUE | DX5: TRUE | DY5: TRUE | DZ5: TRUE | EA5: TRUE | EB5: TRUE | EC5: TRUE | ED5: TRUE | EE5: TRUE | EF5: TRUE | EG5: TRUE | EH5: TRUE | EI5: TRUE | EJ5: TRUE | EK5: TRUE | EL5: TRUE | EM5: TRUE | EN5: TRUE | EO5: TRUE | EP5: TRUE | EQ5: TRUE | ER5: TRUE | ES5: TRUE | ET5: TRUE | EU5: TRUE | EV5: TRUE | EW5: TRUE | EX5: TRUE | EY5: FALSE | EZ5: FALSE | FA5: FALSE | FB5: FALSE | FC5: FALSE | FD5: FALSE | FE5: FALSE | FF5: FALSE | FG5: FALSE | FH5: FALSE | FI5: FALSE | FJ5: FALSE | FK5: FALSE | FL5: FALSE | FM5: FALSE | FN5: FALSE | FO5: FALSE | FP5: FALSE | FQ5: FALSE | FR5: FALSE | FS5: FALSE | FT5: =AND(FT2>$H$4,FT2<=$H$5) -> FALSE | FU5: FALSE | FV5: FALSE | FW5: FALSE
C6: Exit Period | H6: =H5 -> 143 | L6: =L2=$H$6 -> FALSE | M6: =M2=$H$6 -> FALSE | N6: FALSE | O6: FALSE | P6: FALSE | Q6: FALSE | R6: FALSE | S6: FALSE | T6: FALSE | U6: FALSE | V6: FALSE | W6: FALSE | X6: FALSE | Y6: FALSE | Z6: FALSE | AA6: FALSE | AB6: FALSE | AC6: FALSE | AD6: FALSE | AE6: FALSE | AF6: FALSE | AG6: FALSE | AH6: FALSE | AI6: FALSE | AJ6: FALSE | AK6: FALSE | AL6: FALSE | AM6: FALSE | AN6: FALSE | AO6: FALSE | AP6: FALSE | AQ6: FALSE | AR6: FALSE | AS6: FALSE | AT6: FALSE | AU6: FALSE | AV6: FALSE | AW6: FALSE | AX6: FALSE | AY6: FALSE | AZ6: FALSE | BA6: FALSE | BB6: FALSE | BC6: FALSE | BD6: FALSE | BE6: FALSE | BF6: FALSE | BG6: FALSE | BH6: FALSE | BI6: FALSE | BJ6: FALSE | BK6: FALSE | BL6: FALSE | BM6: FALSE | BN6: FALSE | BO6: FALSE | BP6: FALSE | BQ6: FALSE | BR6: FALSE | BS6: FALSE | BT6: FALSE | BU6: FALSE | BV6: FALSE | BW6: FALSE | BX6: FALSE | BY6: =BY2=$H$6 -> FALSE | BZ6: FALSE | CA6: FALSE | CB6: FALSE | CC6: FALSE | CD6: FALSE | CE6: FALSE | CF6: FALSE | CG6: FALSE | CH6: FALSE | CI6: FALSE | CJ6: FALSE | CK6: FALSE | CL6: FALSE | CM6: FALSE | CN6: FALSE | CO6: FALSE | CP6: FALSE | CQ6: FALSE | CR6: FALSE | CS6: FALSE | CT6: FALSE | CU6: FALSE | CV6: FALSE | CW6: FALSE | CX6: FALSE | CY6: FALSE | CZ6: FALSE | DA6: FALSE | DB6: FALSE | DC6: FALSE | DD6: FALSE | DE6: FALSE | DF6: FALSE | DG6: FALSE | DH6: =DH2=$H$6 -> FALSE | DI6: FALSE | DJ6: FALSE | DK6: FALSE | DL6: FALSE | DM6: FALSE | DN6: FALSE | DO6: FALSE | DP6: FALSE | DQ6: FALSE | DR6: FALSE | DS6: FALSE | DT6: FALSE | DU6: FALSE | DV6: FALSE | DW6: FALSE | DX6: FALSE | DY6: FALSE | DZ6: FALSE | EA6: FALSE | EB6: FALSE | EC6: FALSE | ED6: FALSE | EE6: FALSE | EF6: FALSE | EG6: FALSE | EH6: FALSE | EI6: FALSE | EJ6: FALSE | EK6: FALSE | EL6: FALSE | EM6: FALSE | EN6: FALSE | EO6: FALSE | EP6: FALSE | EQ6: FALSE | ER6: FALSE | ES6: FALSE | ET6: FALSE | EU6: FALSE | EV6: FALSE | EW6: FALSE | EX6: TRUE | EY6: FALSE | EZ6: FALSE | FA6: FALSE | FB6: FALSE | FC6: FALSE | FD6: FALSE | FE6: FALSE | FF6: FALSE | FG6: FALSE | FH6: FALSE | FI6: FALSE | FJ6: FALSE | FK6: FALSE | FL6: FALSE | FM6: FALSE | FN6: FALSE | FO6: FALSE | FP6: FALSE | FQ6: FALSE | FR6: FALSE | FS6: FALSE | FT6: =FT2=$H$6 -> FALSE | FU6: FALSE | FV6: FALSE | FW6: FALSE
C7: Age in Quarters | L7: =K7+L5 -> 0 | M7: =L7+M5 -> 0 | N7: 0 | O7: 0 | P7: 0 | Q7: 0 | R7: 0 | S7: 0 | T7: 0 | U7: 0 | V7: 0 | W7: 0 | X7: 0 | Y7: 0 | Z7: 0 | AA7: 0 | AB7: 0 | AC7: 0 | AD7: 0 | AE7: 0 | AF7: 0 | AG7: 0 | AH7: 0 | AI7: 0 | AJ7: 0 | AK7: 0 | AL7: 0 | AM7: 0 | AN7: 0 | AO7: 0 | AP7: 0 | AQ7: 0 | AR7: 0 | AS7: 0 | AT7: 0 | AU7: 0 | AV7: 0 | AW7: 0 | AX7: 0 | AY7: 0 | AZ7: 0 | BA7: 0 | BB7: 0 | BC7: 1 | BD7: 2 | BE7: 3 | BF7: 4 | BG7: 5 | BH7: 6 | BI7: 7 | BJ7: 8 | BK7: 9 | BL7: 10 | BM7: 11 | BN7: 12 | BO7: 13 | BP7: 14 | BQ7: 15 | BR7: 16 | BS7: 17 | BT7: 18 | BU7: 19 | BV7: 20 | BW7: 21 | BX7: 22 | BY7: =BX7+BY5 -> 23 | BZ7: 24 | CA7: 25 | CB7: 26 | CC7: 27 | CD7: 28 | CE7: 29 | CF7: 30 | CG7: 31 | CH7: 32 | CI7: 33 | CJ7: 34 | CK7: 35 | CL7: 36 | CM7: 37 | CN7: 38 | CO7: 39 | CP7: 40 | CQ7: 41 | CR7: 42 | CS7: 43 | CT7: 44 | CU7: 45 | CV7: 46 | CW7: 47 | CX7: 48 | CY7: 49 | CZ7: 50 | DA7: 51 | DB7: 52 | DC7: 53 | DD7: 54 | DE7: 55 | DF7: 56 | DG7: 57 | DH7: =DG7+DH5 -> 58 | DI7: 59 | DJ7: 60 | DK7: 61 | DL7: 62 | DM7: 63 | DN7: 64 | DO7: 65 | DP7: 66 | DQ7: 67 | DR7: 68 | DS7: 69 | DT7: 70 | DU7: 71 | DV7: 72 | DW7: 73 | DX7: 74 | DY7: 75 | DZ7: 76 | EA7: 77 | EB7: 78 | EC7: 79 | ED7: 80 | EE7: 81 | EF7: 82 | EG7: 83 | EH7: 84 | EI7: 85 | EJ7: 86 | EK7: 87 | EL7: 88 | EM7: 89 | EN7: 90 | EO7: 91 | EP7: 92 | EQ7: 93 | ER7: 94 | ES7: 95 | ET7: 96 | EU7: 97 | EV7: 98 | EW7: 99 | EX7: 100 | EY7: 100 | EZ7: 100 | FA7: 100 | FB7: 100 | FC7: 100 | FD7: 100 | FE7: 100 | FF7: 100 | FG7: 100 | FH7: 100 | FI7: 100 | FJ7: 100 | FK7: 100 | FL7: 100 | FM7: 100 | FN7: 100 | FO7: 100 | FP7: 100 | FQ7: 100 | FR7: 100 | FS7: 100 | FT7: =FS7+FT5 -> 100 | FU7: 100 | FV7: 100 | FW7: 100
C8: Age in Years | L8: =ROUNDUP(L7/4,0) -> 0 | M8: =ROUNDUP(M7/4,0) -> 0 | N8: 0 | O8: 0 | P8: 0 | Q8: 0 | R8: 0 | S8: 0 | T8: 0 | U8: 0 | V8: 0 | W8: 0 | X8: 0 | Y8: 0 | Z8: 0 | AA8: 0 | AB8: 0 | AC8: 0 | AD8: 0 | AE8: 0 | AF8: 0 | AG8: 0 | AH8: 0 | AI8: 0 | AJ8: 0 | AK8: 0 | AL8: 0 | AM8: 0 | AN8: 0 | AO8: 0 | AP8: 0 | AQ8: 0 | AR8: 0 | AS8: 0 | AT8: 0 | AU8: 0 | AV8: 0 | AW8: 0 | AX8: 0 | AY8: 0 | AZ8: 0 | BA8: 0 | BB8: 0 | BC8: 1 | BD8: 1 | BE8: 1 | BF8: 1 | BG8: 2 | BH8: 2 | BI8: 2 | BJ8: 2 | BK8: 3 | BL8: 3 | BM8: 3 | BN8: 3 | BO8: 4 | BP8: 4 | BQ8: 4 | BR8: 4 | BS8: 5 | BT8: 5 | BU8: 5 | BV8: 5 | BW8: 6 | BX8: 6 | BY8: =ROUNDUP(BY7/4,0) -> 6 | BZ8: 6 | CA8: 7 | CB8: 7 | CC8: 7 | CD8: 7 | CE8: 8 | CF8: 8 | CG8: 8 | CH8: 8 | CI8: 9 | CJ8: 9 | CK8: 9 | CL8: 9 | CM8: 10 | CN8: 10 | CO8: 10 | CP8: 10 | CQ8: 11 | CR8: 11 | CS8: 11 | CT8: 11 | CU8: 12 | CV8: 12 | CW8: 12 | CX8: 12 | CY8: 13 | CZ8: 13 | DA8: 13 | DB8: 13 | DC8: 14 | DD8: 14 | DE8: 14 | DF8: 14 | DG8: 15 | DH8: =ROUNDUP(DH7/4,0) -> 15 | DI8: =ROUNDUP(DI7/4,0) -> 15 | DJ8: =ROUNDUP(DJ7/4,0) -> 15 | DK8: =ROUNDUP(DK7/4,0) -> 16 | DL8: =ROUNDUP(DL7/4,0) -> 16 | DM8: =ROUNDUP(DM7/4,0) -> 16 | DN8: =ROUNDUP(DN7/4,0) -> 16 | DO8: =ROUNDUP(DO7/4,0) -> 17 | DP8: =ROUNDUP(DP7/4,0) -> 17 | DQ8: =ROUNDUP(DQ7/4,0) -> 17 | DR8: =ROUNDUP(DR7/4,0) -> 17 | DS8: =ROUNDUP(DS7/4,0) -> 18 | DT8: =ROUNDUP(DT7/4,0) -> 18 | DU8: =ROUNDUP(DU7/4,0) -> 18 | DV8: =ROUNDUP(DV7/4,0) -> 18 | DW8: =ROUNDUP(DW7/4,0) -> 19 | DX8: =ROUNDUP(DX7/4,0) -> 19 | DY8: =ROUNDUP(DY7/4,0) -> 19 | DZ8: =ROUNDUP(DZ7/4,0) -> 19 | EA8: =ROUNDUP(EA7/4,0) -> 20 | EB8: =ROUNDUP(EB7/4,0) -> 20 | EC8: =ROUNDUP(EC7/4,0) -> 20 | ED8: =ROUNDUP(ED7/4,0) -> 20 | EE8: =ROUNDUP(EE7/4,0) -> 21 | EF8: =ROUNDUP(EF7/4,0) -> 21 | EG8: =ROUNDUP(EG7/4,0) -> 21 | EH8: =ROUNDUP(EH7/4,0) -> 21 | EI8: =ROUNDUP(EI7/4,0) -> 22 | EJ8: =ROUNDUP(EJ7/4,0) -> 22 | EK8: =ROUNDUP(EK7/4,0) -> 22 | EL8: =ROUNDUP(EL7/4,0) -> 22 | EM8: =ROUNDUP(EM7/4,0) -> 23 | EN8: =ROUNDUP(EN7/4,0) -> 23 | EO8: =ROUNDUP(EO7/4,0) -> 23 | EP8: =ROUNDUP(EP7/4,0) -> 23 | EQ8: =ROUNDUP(EQ7/4,0) -> 24 | ER8: =ROUNDUP(ER7/4,0) -> 24 | ES8: =ROUNDUP(ES7/4,0) -> 24 | ET8: =ROUNDUP(ET7/4,0) -> 24 | EU8: =ROUNDUP(EU7/4,0) -> 25 | EV8: =ROUNDUP(EV7/4,0) -> 25 | EW8: =ROUNDUP(EW7/4,0) -> 25 | EX8: =ROUNDUP(EX7/4,0) -> 25 | EY8: =ROUNDUP(EY7/4,0) -> 25 | EZ8: =ROUNDUP(EZ7/4,0) -> 25 | FA8: =ROUNDUP(FA7/4,0) -> 25 | FB8: =ROUNDUP(FB7/4,0) -> 25 | FC8: =ROUNDUP(FC7/4,0) -> 25 | FD8: =ROUNDUP(FD7/4,0) -> 25 | FE8: =ROUNDUP(FE7/4,0) -> 25 | FF8: =ROUNDUP(FF7/4,0) -> 25 | FG8: =ROUNDUP(FG7/4,0) -> 25 | FH8: =ROUNDUP(FH7/4,0) -> 25 | FI8: =ROUNDUP(FI7/4,0) -> 25 | FJ8: =ROUNDUP(FJ7/4,0) -> 25 | FK8: =ROUNDUP(FK7/4,0) -> 25 | FL8: =ROUNDUP(FL7/4,0) -> 25 | FM8: =ROUNDUP(FM7/4,0) -> 25 | FN8: =ROUNDUP(FN7/4,0) -> 25 | FO8: =ROUNDUP(FO7/4,0) -> 25 | FP8: =ROUNDUP(FP7/4,0) -> 25 | FQ8: =ROUNDUP(FQ7/4,0) -> 25 | FR8: =ROUNDUP(FR7/4,0) -> 25 | FS8: =ROUNDUP(FS7/4,0) -> 25 | FT8: =ROUNDUP(FT7/4,0) -> 25 | FU8: =ROUNDUP(FU7/4,0) -> 25 | FV8: =ROUNDUP(FV7/4,0) -> 25 | FW8: =ROUNDUP(FW7/4,0) -> 25
C9: Months per Period | L9: =SUMPRODUCT(L3:L5*$I$3:$I$5) -> 12 | M9: =SUMPRODUCT(M3:M5*$I$3:$I$5) -> 12 | N9: 12 | O9: 1 | P9: 1 | Q9: 1 | R9: 1 | S9: 1 | T9: 1 | U9: 1 | V9: 1 | W9: 1 | X9: 1 | Y9: 1 | Z9: 1 | AA9: 1 | AB9: 1 | AC9: 1 | AD9: 1 | AE9: 1 | AF9: 1 | AG9: 1 | AH9: 1 | AI9: 1 | AJ9: 1 | AK9: 1 | AL9: 1 | AM9: 1 | AN9: 1 | AO9: 1 | AP9: 1 | AQ9: 1 | AR9: 1 | AS9: 1 | AT9: 1 | AU9: 1 | AV9: 1 | AW9: 1 | AX9: 1 | AY9: 1 | AZ9: 1 | BA9: 1 | BB9: 1 | BC9: 3 | BD9: 3 | BE9: 3 | BF9: 3 | BG9: 3 | BH9: 3 | BI9: 3 | BJ9: 3 | BK9: 3 | BL9: 3 | BM9: 3 | BN9: 3 | BO9: 3 | BP9: 3 | BQ9: 3 | BR9: 3 | BS9: 3 | BT9: 3 | BU9: 3 | BV9: 3 | BW9: 3 | BX9: 3 | BY9: =SUMPRODUCT(BY3:BY5*$I$3:$I$5) -> 3 | BZ9: 3 | CA9: 3 | CB9: 3 | CC9: 3 | CD9: 3 | CE9: 3 | CF9: 3 | CG9: 3 | CH9: 3 | CI9: 3 | CJ9: 3 | CK9: 3 | CL9: 3 | CM9: 3 | CN9: 3 | CO9: 3 | CP9: 3 | CQ9: 3 | CR9: 3 | CS9: 3 | CT9: 3 | CU9: 3 | CV9: 3 | CW9: 3 | CX9: 3 | CY9: 3 | CZ9: 3 | DA9: 3 | DB9: 3 | DC9: 3 | DD9: 3 | DE9: 3 | DF9: 3 | DG9: 3 | DH9: =SUMPRODUCT(DH3:DH5*$I$3:$I$5) -> 3 | DI9: 3 | DJ9: 3 | DK9: 3 | DL9: 3 | DM9: 3 | DN9: 3 | DO9: 3 | DP9: 3 | DQ9: 3 | DR9: 3 | DS9: 3 | DT9: 3 | DU9: 3 | DV9: 3 | DW9: 3 | DX9: 3 | DY9: 3 | DZ9: 3 | EA9: 3 | EB9: 3 | EC9: 3 | ED9: 3 | EE9: 3 | EF9: 3 | EG9: 3 | EH9: 3 | EI9: 3 | EJ9: 3 | EK9: 3 | EL9: 3 | EM9: 3 | EN9: 3 | EO9: 3 | EP9: 3 | EQ9: 3 | ER9: 3 | ES9: 3 | ET9: 3 | EU9: 3 | EV9: 3 | EW9: 3 | EX9: 3 | EY9: 0 | EZ9: 0 | FA9: 0 | FB9: 0 | FC9: 0 | FD9: 0 | FE9: 0 | FF9: 0 | FG9: 0 | FH9: 0 | FI9: 0 | FJ9: 0 | FK9: 0 | FL9: 0 | FM9: 0 | FN9: 0 | FO9: 0 | FP9: 0 | FQ9: 0 | FR9: 0 | FS9: 0 | FT9: =SUMPRODUCT(FT3:FT5*$I$3:$I$5) -> 0 | FU9: 0 | FV9: 0 | FW9: 0
C10: End Date of Period | K10: =EOMONTH(G21,-1) -> 2014-12-31 | L10: =EOMONTH(K10,L9) -> 2015-12-31 | M10: =EOMONTH(L10,M9) -> 2016-12-31 | N10: 2017-12-31 | O10: 2018-01-31 | P10: 2018-02-28 | Q10: 2018-03-31 | R10: 2018-04-30 | S10: 2018-05-31 | T10: 2018-06-30 | U10: 2018-07-31 | V10: 2018-08-31 | W10: 2018-09-30 | X10: 2018-10-31 | Y10: 2018-11-30 | Z10: 2018-12-31 | AA10: 2019-01-31 | AB10: 2019-02-28 | AC10: 2019-03-31 | AD10: 2019-04-30 | AE10: 2019-05-31 | AF10: 2019-06-30 | AG10: 2019-07-31 | AH10: 2019-08-31 | AI10: 2019-09-30 | AJ10: 2019-10-31 | AK10: 2019-11-30 | AL10: 2019-12-31 | AM10: 2020-01-31 | AN10: 2020-02-29 | AO10: 2020-03-31 | AP10: 2020-04-30 | AQ10: 2020-05-31 | AR10: 2020-06-30 | AS10: 2020-07-31 | AT10: 2020-08-31 | AU10: 2020-09-30 | AV10: 2020-10-31 | AW10: 2020-11-30 | AX10: 2020-12-31 | AY10: 2021-01-31 | AZ10: 2021-02-28 | BA10: 2021-03-31 | BB10: 2021-04-30 | BC10: 2021-07-31 | BD10: 2021-10-31 | BE10: 2022-01-31 | BF10: 2022-04-30 | BG10: 2022-07-31 | BH10: 2022-10-31 | BI10: 2023-01-31 | BJ10: 2023-04-30 | BK10: 2023-07-31 | BL10: 2023-10-31 | BM10: 2024-01-31 | BN10: 2024-04-30 | BO10: 2024-07-31 | BP10: 2024-10-31 | BQ10: 2025-01-31 | BR10: 2025-04-30 | BS10: 2025-07-31 | BT10: 2025-10-31 | BU10: 2026-01-31 | BV10: 2026-04-30 | BW10: 2026-07-31 | BX10: 2026-10-31 | BY10: =EOMONTH(BX10,BY9) -> 2027-01-31 | BZ10: 2027-04-30 | CA10: 2027-07-31 | CB10: 2027-10-31 | CC10: 2028-01-31 | CD10: 2028-04-30 | CE10: 2028-07-31 | CF10: 2028-10-31 | CG10: 2029-01-31 | CH10: 2029-04-30 | CI10: 2029-07-31 | CJ10: 2029-10-31 | CK10: 2030-01-31 | CL10: 2030-04-30 | CM10: 2030-07-31 | CN10: 2030-10-31 | CO10: 2031-01-31 | CP10: 2031-04-30 | CQ10: 2031-07-31 | CR10: 2031-10-31 | CS10: 2032-01-31 | CT10: 2032-04-30 | CU10: 2032-07-31 | CV10: 2032-10-31 | CW10: 2033-01-31 | CX10: 2033-04-30 | CY10: 2033-07-31 | CZ10: 2033-10-31 | DA10: 2034-01-31 | DB10: 2034-04-30 | DC10: 2034-07-31 | DD10: 2034-10-31 | DE10: 2035-01-31 | DF10: 2035-04-30 | DG10: 2035-07-31 | DH10: =EOMONTH(DG10,DH9) -> 2035-10-31 | DI10: =EOMONTH(DH10,DI9) -> 2036-01-31 | DJ10: =EOMONTH(DI10,DJ9) -> 2036-04-30 | DK10: =EOMONTH(DJ10,DK9) -> 2036-07-31 | DL10: =EOMONTH(DK10,DL9) -> 2036-10-31 | DM10: =EOMONTH(DL10,DM9) -> 2037-01-31 | DN10: =EOMONTH(DM10,DN9) -> 2037-04-30 | DO10: =EOMONTH(DN10,DO9) -> 2037-07-31 | DP10: =EOMONTH(DO10,DP9) -> 2037-10-31 | DQ10: =EOMONTH(DP10,DQ9) -> 2038-01-31 | DR10: =EOMONTH(DQ10,DR9) -> 2038-04-30 | DS10: =EOMONTH(DR10,DS9) -> 2038-07-31 | DT10: =EOMONTH(DS10,DT9) -> 2038-10-31 | DU10: =EOMONTH(DT10,DU9) -> 2039-01-31 | DV10: =EOMONTH(DU10,DV9) -> 2039-04-30 | DW10: =EOMONTH(DV10,DW9) -> 2039-07-31 | DX10: =EOMONTH(DW10,DX9) -> 2039-10-31 | DY10: =EOMONTH(DX10,DY9) -> 2040-01-31 | DZ10: =EOMONTH(DY10,DZ9) -> 2040-04-30 | EA10: =EOMONTH(DZ10,EA9) -> 2040-07-31 | EB10: =EOMONTH(EA10,EB9) -> 2040-10-31 | EC10: =EOMONTH(EB10,EC9) -> 2041-01-31 | ED10: =EOMONTH(EC10,ED9) -> 2041-04-30 | EE10: =EOMONTH(ED10,EE9) -> 2041-07-31 | EF10: =EOMONTH(EE10,EF9) -> 2041-10-31 | EG10: =EOMONTH(EF10,EG9) -> 2042-01-31 | EH10: =EOMONTH(EG10,EH9) -> 2042-04-30 | EI10: =EOMONTH(EH10,EI9) -> 2042-07-31 | EJ10: =EOMONTH(EI10,EJ9) -> 2042-10-31 | EK10: =EOMONTH(EJ10,EK9) -> 2043-01-31 | EL10: =EOMONTH(EK10,EL9) -> 2043-04-30 | EM10: =EOMONTH(EL10,EM9) -> 2043-07-31 | EN10: =EOMONTH(EM10,EN9) -> 2043-10-31 | EO10: =EOMONTH(EN10,EO9) -> 2044-01-31 | EP10: =EOMONTH(EO10,EP9) -> 2044-04-30 | EQ10: =EOMONTH(EP10,EQ9) -> 2044-07-31 | ER10: =EOMONTH(EQ10,ER9) -> 2044-10-31 | ES10: =EOMONTH(ER10,ES9) -> 2045-01-31 | ET10: =EOMONTH(ES10,ET9) -> 2045-04-30 | EU10: =EOMONTH(ET10,EU9) -> 2045-07-31 | EV10: =EOMONTH(EU10,EV9) -> 2045-10-31 | EW10: =EOMONTH(EV10,EW9) -> 2046-01-31 | EX10: =EOMONTH(EW10,EX9) -> 2046-04-30 | EY10: =EOMONTH(EX10,EY9) -> 2046-04-30 | EZ10: =EOMONTH(EY10,EZ9) -> 2046-04-30 | FA10: =EOMONTH(EZ10,FA9) -> 2046-04-30 | FB10: =EOMONTH(FA10,FB9) -> 2046-04-30 | FC10: =EOMONTH(FB10,FC9) -> 2046-04-30 | FD10: =EOMONTH(FC10,FD9) -> 2046-04-30 | FE10: =EOMONTH(FD10,FE9) -> 2046-04-30 | FF10: =EOMONTH(FE10,FF9) -> 2046-04-30 | FG10: =EOMONTH(FF10,FG9) -> 2046-04-30 | FH10: =EOMONTH(FG10,FH9) -> 2046-04-30 | FI10: =EOMONTH(FH10,FI9) -> 2046-04-30 | FJ10: =EOMONTH(FI10,FJ9) -> 2046-04-30 | FK10: =EOMONTH(FJ10,FK9) -> 2046-04-30 | FL10: =EOMONTH(FK10,FL9) -> 2046-04-30 | FM10: =EOMONTH(FL10,FM9) -> 2046-04-30 | FN10: =EOMONTH(FM10,FN9) -> 2046-04-30 | FO10: =EOMONTH(FN10,FO9) -> 2046-04-30 | FP10: =EOMONTH(FO10,FP9) -> 2046-04-30 | FQ10: =EOMONTH(FP10,FQ9) -> 2046-04-30 | FR10: =EOMONTH(FQ10,FR9) -> 2046-04-30 | FS10: =EOMONTH(FR10,FS9) -> 2046-04-30 | FT10: =EOMONTH(FS10,FT9) -> 2046-04-30 | FU10: =EOMONTH(FT10,FU9) -> 2046-04-30 | FV10: =EOMONTH(FU10,FV9) -> 2046-04-30 | FW10: =EOMONTH(FV10,FW9) -> 2046-04-30
C11: Start of Month | L11: =K10+1 -> 2015-01-01 | M11: =L10+1 -> 2016-01-01 | N11: 2017-01-01 | O11: 2018-01-01 | P11: 2018-02-01 | Q11: 2018-03-01 | R11: 2018-04-01 | S11: 2018-05-01 | T11: 2018-06-01 | U11: 2018-07-01 | V11: 2018-08-01 | W11: 2018-09-01 | X11: 2018-10-01 | Y11: 2018-11-01 | Z11: 2018-12-01 | AA11: 2019-01-01 | AB11: 2019-02-01 | AC11: 2019-03-01 | AD11: 2019-04-01 | AE11: 2019-05-01 | AF11: 2019-06-01 | AG11: 2019-07-01 | AH11: 2019-08-01 | AI11: 2019-09-01 | AJ11: 2019-10-01 | AK11: 2019-11-01 | AL11: 2019-12-01 | AM11: 2020-01-01 | AN11: 2020-02-01 | AO11: 2020-03-01 | AP11: 2020-04-01 | AQ11: 2020-05-01 | AR11: 2020-06-01 | AS11: 2020-07-01 | AT11: 2020-08-01 | AU11: 2020-09-01 | AV11: 2020-10-01 | AW11: 2020-11-01 | AX11: 2020-12-01 | AY11: 2021-01-01 | AZ11: 2021-02-01 | BA11: 2021-03-01 | BB11: 2021-04-01 | BC11: 2021-05-01 | BD11: 2021-08-01 | BE11: 2021-11-01 | BF11: 2022-02-01 | BG11: 2022-05-01 | BH11: 2022-08-01 | BI11: 2022-11-01 | BJ11: 2023-02-01 | BK11: 2023-05-01 | BL11: 2023-08-01 | BM11: 2023-11-01 | BN11: 2024-02-01 | BO11: 2024-05-01 | BP11: 2024-08-01 | BQ11: 2024-11-01 | BR11: 2025-02-01 | BS11: 2025-05-01 | BT11: 2025-08-01 | BU11: 2025-11-01 | BV11: 2026-02-01 | BW11: 2026-05-01 | BX11: 2026-08-01 | BY11: =BX10+1 -> 2026-11-01 | BZ11: 2027-02-01 | CA11: 2027-05-01 | CB11: 2027-08-01 | CC11: 2027-11-01 | CD11: 2028-02-01 | CE11: 2028-05-01 | CF11: 2028-08-01 | CG11: 2028-11-01 | CH11: 2029-02-01 | CI11: 2029-05-01 | CJ11: 2029-08-01 | CK11: 2029-11-01 | CL11: 2030-02-01 | CM11: 2030-05-01 | CN11: 2030-08-01 | CO11: 2030-11-01 | CP11: 2031-02-01 | CQ11: 2031-05-01 | CR11: 2031-08-01 | CS11: 2031-11-01 | CT11: 2032-02-01 | CU11: 2032-05-01 | CV11: 2032-08-01 | CW11: 2032-11-01 | CX11: 2033-02-01 | CY11: 2033-05-01 | CZ11: 2033-08-01 | DA11: 2033-11-01 | DB11: 2034-02-01 | DC11: 2034-05-01 | DD11: 2034-08-01 | DE11: 2034-11-01 | DF11: 2035-02-01 | DG11: 2035-05-01 | DH11: 2035-08-01 | DI11: 2035-11-01 | DJ11: 2036-02-01 | DK11: 2036-05-01 | DL11: 2036-08-01 | DM11: 2036-11-01 | DN11: 2037-02-01 | DO11: 2037-05-01 | DP11: 2037-08-01 | DQ11: 2037-11-01 | DR11: 2038-02-01 | DS11: 2038-05-01 | DT11: 2038-08-01 | DU11: 2038-11-01 | DV11: 2039-02-01 | DW11: 2039-05-01 | DX11: 2039-08-01 | DY11: 2039-11-01 | DZ11: 2040-02-01 | EA11: 2040-05-01 | EB11: 2040-08-01 | EC11: 2040-11-01 | ED11: 2041-02-01 | EE11: 2041-05-01 | EF11: 2041-08-01 | EG11: 2041-11-01 | EH11: 2042-02-01 | EI11: 2042-05-01 | EJ11: 2042-08-01 | EK11: =EJ10+1 -> 2042-11-01 | EL11: 2043-02-01 | EM11: 2043-05-01 | EN11: 2043-08-01 | EO11: 2043-11-01 | EP11: 2044-02-01 | EQ11: 2044-05-01 | ER11: 2044-08-01 | ES11: 2044-11-01 | ET11: 2045-02-01 | EU11: 2045-05-01 | EV11: 2045-08-01 | EW11: 2045-11-01 | EX11: 2046-02-01 | EY11: 2046-05-01 | EZ11: 2046-05-01 | FA11: 2046-05-01 | FB11: 2046-05-01 | FC11: 2046-05-01 | FD11: 2046-05-01 | FE11: 2046-05-01 | FF11: 2046-05-01 | FG11: 2046-05-01 | FH11: 2046-05-01 | FI11: 2046-05-01 | FJ11: 2046-05-01 | FK11: 2046-05-01 | FL11: 2046-05-01 | FM11: 2046-05-01 | FN11: 2046-05-01 | FO11: 2046-05-01 | FP11: 2046-05-01 | FQ11: 2046-05-01 | FR11: 2046-05-01 | FS11: 2046-05-01 | FT11: 2046-05-01 | FU11: 2046-05-01 | FV11: 2046-05-01 | FW11: 2046-05-01
C12: Year | L12: =YEAR(L11) -> 2015 | M12: =YEAR(M11) -> 2016 | N12: 2017 | O12: 2018 | P12: 2018 | Q12: 2018 | R12: 2018 | S12: 2018 | T12: 2018 | U12: 2018 | V12: 2018 | W12: 2018 | X12: 2018 | Y12: 2018 | Z12: 2018 | AA12: 2019 | AB12: 2019 | AC12: 2019 | AD12: 2019 | AE12: 2019 | AF12: 2019 | AG12: 2019 | AH12: 2019 | AI12: 2019 | AJ12: 2019 | AK12: 2019 | AL12: 2019 | AM12: 2020 | AN12: 2020 | AO12: 2020 | AP12: 2020 | AQ12: 2020 | AR12: 2020 | AS12: 2020 | AT12: 2020 | AU12: 2020 | AV12: 2020 | AW12: 2020 | AX12: 2020 | AY12: 2021 | AZ12: 2021 | BA12: 2021 | BB12: 2021 | BC12: 2021 | BD12: 2021 | BE12: 2021 | BF12: 2022 | BG12: 2022 | BH12: 2022 | BI12: 2022 | BJ12: 2023 | BK12: 2023 | BL12: 2023 | BM12: 2023 | BN12: 2024 | BO12: 2024 | BP12: 2024 | BQ12: 2024 | BR12: 2025 | BS12: 2025 | BT12: 2025 | BU12: 2025 | BV12: 2026 | BW12: 2026 | BX12: 2026 | BY12: =YEAR(BY11) -> 2026 | BZ12: 2027 | CA12: 2027 | CB12: 2027 | CC12: 2027 | CD12: 2028 | CE12: 2028 | CF12: 2028 | CG12: 2028 | CH12: 2029 | CI12: 2029 | CJ12: 2029 | CK12: 2029 | CL12: 2030 | CM12: 2030 | CN12: 2030 | CO12: 2030 | CP12: 2031 | CQ12: 2031 | CR12: 2031 | CS12: 2031 | CT12: 2032 | CU12: 2032 | CV12: 2032 | CW12: 2032 | CX12: 2033 | CY12: 2033 | CZ12: 2033 | DA12: 2033 | DB12: 2034 | DC12: 2034 | DD12: 2034 | DE12: 2034 | DF12: 2035 | DG12: 2035 | DH12: =YEAR(DH11) -> 2035 | DI12: =YEAR(DI11) -> 2035 | DJ12: =YEAR(DJ11) -> 2036 | DK12: =YEAR(DK11) -> 2036 | DL12: =YEAR(DL11) -> 2036 | DM12: =YEAR(DM11) -> 2036 | DN12: =YEAR(DN11) -> 2037 | DO12: =YEAR(DO11) -> 2037 | DP12: =YEAR(DP11) -> 2037 | DQ12: =YEAR(DQ11) -> 2037 | DR12: =YEAR(DR11) -> 2038 | DS12: =YEAR(DS11) -> 2038 | DT12: =YEAR(DT11) -> 2038 | DU12: =YEAR(DU11) -> 2038 | DV12: =YEAR(DV11) -> 2039 | DW12: =YEAR(DW11) -> 2039 | DX12: =YEAR(DX11) -> 2039 | DY12: =YEAR(DY11) -> 2039 | DZ12: =YEAR(DZ11) -> 2040 | EA12: =YEAR(EA11) -> 2040 | EB12: =YEAR(EB11) -> 2040 | EC12: =YEAR(EC11) -> 2040 | ED12: =YEAR(ED11) -> 2041 | EE12: =YEAR(EE11) -> 2041 | EF12: =YEAR(EF11) -> 2041 | EG12: =YEAR(EG11) -> 2041 | EH12: =YEAR(EH11) -> 2042 | EI12: =YEAR(EI11) -> 2042 | EJ12: =YEAR(EJ11) -> 2042 | EK12: =YEAR(EK11) -> 2042 | EL12: =YEAR(EL11) -> 2043 | EM12: =YEAR(EM11) -> 2043 | EN12: =YEAR(EN11) -> 2043 | EO12: =YEAR(EO11) -> 2043 | EP12: =YEAR(EP11) -> 2044 | EQ12: =YEAR(EQ11) -> 2044 | ER12: =YEAR(ER11) -> 2044 | ES12: =YEAR(ES11) -> 2044 | ET12: =YEAR(ET11) -> 2045 | EU12: =YEAR(EU11) -> 2045 | EV12: =YEAR(EV11) -> 2045 | EW12: =YEAR(EW11) -> 2045 | EX12: =YEAR(EX11) -> 2046 | EY12: =YEAR(EY11) -> 2046 | EZ12: =YEAR(EZ11) -> 2046 | FA12: =YEAR(FA11) -> 2046 | FB12: =YEAR(FB11) -> 2046 | FC12: =YEAR(FC11) -> 2046 | FD12: =YEAR(FD11) -> 2046 | FE12: =YEAR(FE11) -> 2046 | FF12: =YEAR(FF11) -> 2046 | FG12: =YEAR(FG11) -> 2046 | FH12: =YEAR(FH11) -> 2046 | FI12: =YEAR(FI11) -> 2046 | FJ12: =YEAR(FJ11) -> 2046 | FK12: =YEAR(FK11) -> 2046 | FL12: =YEAR(FL11) -> 2046 | FM12: =YEAR(FM11) -> 2046 | FN12: =YEAR(FN11) -> 2046 | FO12: =YEAR(FO11) -> 2046 | FP12: =YEAR(FP11) -> 2046 | FQ12: =YEAR(FQ11) -> 2046 | FR12: =YEAR(FR11) -> 2046 | FS12: =YEAR(FS11) -> 2046 | FT12: =YEAR(FT11) -> 2046 | FU12: =YEAR(FU11) -> 2046 | FV12: =YEAR(FV11) -> 2046 | FW12: =YEAR(FW11) -> 2046
C13: Periods per Year | L13: =IF(L9,12/L9,1) -> 1 | M13: =IF(M9,12/M9,1) -> 1 | N13: 1 | O13: 12 | P13: 12 | Q13: 12 | R13: 12 | S13: 12 | T13: 12 | U13: 12 | V13: 12 | W13: 12 | X13: 12 | Y13: 12 | Z13: 12 | AA13: 12 | AB13: 12 | AC13: 12 | AD13: 12 | AE13: 12 | AF13: 12 | AG13: 12 | AH13: 12 | AI13: 12 | AJ13: 12 | AK13: 12 | AL13: 12 | AM13: 12 | AN13: 12 | AO13: 12 | AP13: 12 | AQ13: 12 | AR13: 12 | AS13: 12 | AT13: 12 | AU13: 12 | AV13: 12 | AW13: 12 | AX13: 12 | AY13: 12 | AZ13: 12 | BA13: 12 | BB13: 12 | BC13: 4 | BD13: 4 | BE13: 4 | BF13: 4 | BG13: 4 | BH13: 4 | BI13: 4 | BJ13: 4 | BK13: 4 | BL13: 4 | BM13: 4 | BN13: 4 | BO13: 4 | BP13: 4 | BQ13: 4 | BR13: 4 | BS13: 4 | BT13: 4 | BU13: 4 | BV13: 4 | BW13: 4 | BX13: 4 | BY13: =IF(BY9,12/BY9,1) -> 4 | BZ13: 4 | CA13: 4 | CB13: 4 | CC13: 4 | CD13: 4 | CE13: 4 | CF13: 4 | CG13: 4 | CH13: 4 | CI13: 4 | CJ13: 4 | CK13: 4 | CL13: 4 | CM13: 4 | CN13: 4 | CO13: 4 | CP13: 4 | CQ13: 4 | CR13: 4 | CS13: 4 | CT13: 4 | CU13: 4 | CV13: 4 | CW13: 4 | CX13: 4 | CY13: 4 | CZ13: 4 | DA13: 4 | DB13: 4 | DC13: 4 | DD13: 4 | DE13: 4 | DF13: 4 | DG13: 4 | DH13: =IF(DH9,12/DH9,1) -> 4 | DI13: 4 | DJ13: 4 | DK13: 4 | DL13: 4 | DM13: 4 | DN13: 4 | DO13: 4 | DP13: 4 | DQ13: 4 | DR13: 4 | DS13: 4 | DT13: 4 | DU13: 4 | DV13: 4 | DW13: 4 | DX13: 4 | DY13: 4 | DZ13: 4 | EA13: 4 | EB13: 4 | EC13: 4 | ED13: 4 | EE13: 4 | EF13: 4 | EG13: 4 | EH13: 4 | EI13: 4 | EJ13: 4 | EK13: 4 | EL13: 4 | EM13: 4 | EN13: 4 | EO13: 4 | EP13: 4 | EQ13: 4 | ER13: 4 | ES13: 4 | ET13: 4 | EU13: 4 | EV13: 4 | EW13: 4 | EX13: 4 | EY13: 1 | EZ13: 1 | FA13: 1 | FB13: 1 | FC13: 1 | FD13: 1 | FE13: 1 | FF13: 1 | FG13: 1 | FH13: 1 | FI13: 1 | FJ13: 1 | FK13: 1 | FL13: 1 | FM13: 1 | FN13: 1 | FO13: 1 | FP13: 1 | FQ13: 1 | FR13: 1 | FS13: 1 | FT13: =IF(FT9,12/FT9,1) -> 1 | FU13: 1 | FV13: 1 | FW13: 1
C14: Fraction of Year | H14: f | L14: =DAYS360(L11,L10+1)/360 -> 1 | M14: =DAYS360(M11,M10+1)/360 -> 1 | N14: 1 | O14: 0.08333333333 | P14: 0.08333333333 | Q14: 0.08333333333 | R14: 0.08333333333 | S14: 0.08333333333 | T14: 0.08333333333 | U14: 0.08333333333 | V14: 0.08333333333 | W14: 0.08333333333 | X14: 0.08333333333 | Y14: 0.08333333333 | Z14: 0.08333333333 | AA14: 0.08333333333 | AB14: 0.08333333333 | AC14: 0.08333333333 | AD14: 0.08333333333 | AE14: 0.08333333333 | AF14: 0.08333333333 | AG14: 0.08333333333 | AH14: 0.08333333333 | AI14: 0.08333333333 | AJ14: 0.08333333333 | AK14: 0.08333333333 | AL14: 0.08333333333 | AM14: 0.08333333333 | AN14: 0.08333333333 | AO14: 0.08333333333 | AP14: 0.08333333333 | AQ14: 0.08333333333 | AR14: 0.08333333333 | AS14: 0.08333333333 | AT14: 0.08333333333 | AU14: 0.08333333333 | AV14: 0.08333333333 | AW14: 0.08333333333 | AX14: 0.08333333333 | AY14: 0.08333333333 | AZ14: 0.08333333333 | BA14: 0.08333333333 | BB14: 0.08333333333 | BC14: 0.25 | BD14: 0.25 | BE14: 0.25 | BF14: 0.25 | BG14: 0.25 | BH14: 0.25 | BI14: 0.25 | BJ14: 0.25 | BK14: 0.25 | BL14: 0.25 | BM14: 0.25 | BN14: 0.25 | BO14: 0.25 | BP14: 0.25 | BQ14: 0.25 | BR14: 0.25 | BS14: 0.25 | BT14: 0.25 | BU14: 0.25 | BV14: 0.25 | BW14: 0.25 | BX14: 0.25 | BY14: =DAYS360(BY11,BY10+1)/360 -> 0.25 | BZ14: 0.25 | CA14: 0.25 | CB14: 0.25 | CC14: 0.25 | CD14: 0.25 | CE14: 0.25 | CF14: 0.25 | CG14: 0.25 | CH14: 0.25 | CI14: 0.25 | CJ14: 0.25 | CK14: 0.25 | CL14: 0.25 | CM14: 0.25 | CN14: 0.25 | CO14: 0.25 | CP14: 0.25 | CQ14: 0.25 | CR14: 0.25 | CS14: 0.25 | CT14: 0.25 | CU14: 0.25 | CV14: 0.25 | CW14: 0.25 | CX14: 0.25 | CY14: 0.25 | CZ14: 0.25 | DA14: 0.25 | DB14: 0.25 | DC14: 0.25 | DD14: 0.25 | DE14: 0.25 | DF14: 0.25 | DG14: 0.25 | DH14: =DAYS360(DH11,DH10+1)/360 -> 0.25 | DI14: 0.25 | DJ14: 0.25 | DK14: 0.25 | DL14: 0.25 | DM14: 0.25 | DN14: 0.25 | DO14: 0.25 | DP14: 0.25 | DQ14: 0.25 | DR14: 0.25 | DS14: 0.25 | DT14: 0.25 | DU14: 0.25 | DV14: 0.25 | DW14: 0.25 | DX14: 0.25 | DY14: 0.25 | DZ14: 0.25 | EA14: 0.25 | EB14: 0.25 | EC14: 0.25 | ED14: 0.25 | EE14: 0.25 | EF14: 0.25 | EG14: 0.25 | EH14: 0.25 | EI14: 0.25 | EJ14: 0.25 | EK14: 0.25 | EL14: 0.25 | EM14: 0.25 | EN14: 0.25 | EO14: 0.25 | EP14: 0.25 | EQ14: 0.25 | ER14: 0.25 | ES14: 0.25 | ET14: 0.25 | EU14: 0.25 | EV14: 0.25 | EW14: 0.25 | EX14: 0.25 | EY14: 0 | EZ14: 0 | FA14: 0 | FB14: 0 | FC14: 0 | FD14: 0 | FE14: 0 | FF14: 0 | FG14: 0 | FH14: 0 | FI14: 0 | FJ14: 0 | FK14: 0 | FL14: 0 | FM14: 0 | FN14: 0 | FO14: 0 | FP14: 0 | FQ14: 0 | FR14: 0 | FS14: 0 | FT14: =DAYS360(FT11,FT10+1)/360 -> 0 | FU14: 0 | FV14: 0 | FW14: 0
C15: Contruciton Month | L15: =K15+L4 -> 0 | M15: =L15+M4 -> 0 | N15: 0 | O15: 1 | P15: 2 | Q15: 3 | R15: 4 | S15: 5 | T15: 6 | U15: 7 | V15: 8 | W15: 9 | X15: 10 | Y15: 11 | Z15: 12 | AA15: 13 | AB15: 14 | AC15: 15 | AD15: 16 | AE15: 17 | AF15: 18 | AG15: 19 | AH15: 20 | AI15: 21 | AJ15: 22 | AK15: 23 | AL15: 24 | AM15: 25 | AN15: 26 | AO15: 27 | AP15: 28 | AQ15: 29 | AR15: 30 | AS15: 31 | AT15: 32 | AU15: 33 | AV15: 34 | AW15: 35 | AX15: 36 | AY15: 37 | AZ15: 38 | BA15: 39 | BB15: 40 | BC15: 40 | BD15: 40 | BE15: 40 | BF15: 40 | BG15: 40 | BH15: 40 | BI15: 40 | BJ15: 40 | BK15: 40 | BL15: 40 | BM15: 40 | BN15: 40 | BO15: 40 | BP15: 40 | BQ15: 40 | BR15: 40 | BS15: 40 | BT15: 40 | BU15: 40 | BV15: 40 | BW15: 40 | BX15: 40 | BY15: =BX15+BY4 -> 40 | BZ15: 40 | CA15: 40 | CB15: 40 | CC15: 40 | CD15: 40 | CE15: 40 | CF15: 40 | CG15: 40 | CH15: 40 | CI15: 40 | CJ15: 40 | CK15: 40 | CL15: 40 | CM15: 40 | CN15: 40 | CO15: 40 | CP15: 40 | CQ15: 40 | CR15: 40 | CS15: 40 | CT15: 40 | CU15: 40 | CV15: 40 | CW15: 40 | CX15: 40 | CY15: 40 | CZ15: 40 | DA15: 40 | DB15: 40 | DC15: 40 | DD15: 40 | DE15: 40 | DF15: 40 | DG15: 40 | DH15: =DG15+DH4 -> 40 | DI15: 40 | DJ15: 40 | DK15: 40 | DL15: 40 | DM15: 40 | DN15: 40 | DO15: 40 | DP15: 40 | DQ15: 40 | DR15: 40 | DS15: 40 | DT15: 40 | DU15: 40 | DV15: 40 | DW15: 40 | DX15: 40 | DY15: 40 | DZ15: 40 | EA15: 40 | EB15: 40 | EC15: 40 | ED15: 40 | EE15: 40 | EF15: 40 | EG15: 40 | EH15: 40 | EI15: 40 | EJ15: 40 | EK15: 40 | EL15: 40 | EM15: 40 | EN15: 40 | EO15: 40 | EP15: 40 | EQ15: 40 | ER15: 40 | ES15: 40 | ET15: 40 | EU15: 40 | EV15: 40 | EW15: 40 | EX15: 40 | EY15: 40 | EZ15: 40 | FA15: 40 | FB15: 40 | FC15: 40 | FD15: 40 | FE15: 40 | FF15: 40 | FG15: 40 | FH15: 40 | FI15: 40 | FJ15: 40 | FK15: 40 | FL15: 40 | FM15: 40 | FN15: 40 | FO15: 40 | FP15: 40 | FQ15: 40 | FR15: 40 | FS15: 40 | FT15: =FS15+FT4 -> 40 | FU15: 40 | FV15: 40 | FW15: 40
C16: Construction Year | L16: =ROUNDUP(L15/12,0)*L4 -> 0 | M16: =ROUNDUP(M15/12,0)*M4 -> 0 | N16: 0 | O16: 1 | P16: 1 | Q16: 1 | R16: 1 | S16: 1 | T16: 1 | U16: 1 | V16: 1 | W16: 1 | X16: 1 | Y16: 1 | Z16: 1 | AA16: 2 | AB16: 2 | AC16: 2 | AD16: 2 | AE16: 2 | AF16: 2 | AG16: 2 | AH16: 2 | AI16: 2 | AJ16: 2 | AK16: 2 | AL16: 2 | AM16: 3 | AN16: 3 | AO16: 3 | AP16: 3 | AQ16: 3 | AR16: 3 | AS16: 3 | AT16: 3 | AU16: 3 | AV16: 3 | AW16: 3 | AX16: 3 | AY16: 4 | AZ16: 4 | BA16: 4 | BB16: 4 | BC16: 0 | BD16: 0 | BE16: 0 | BF16: 0 | BG16: 0 | BH16: 0 | BI16: 0 | BJ16: 0 | BK16: 0 | BL16: 0 | BM16: 0 | BN16: 0 | BO16: 0 | BP16: 0 | BQ16: 0 | BR16: 0 | BS16: 0 | BT16: 0 | BU16: 0 | BV16: 0 | BW16: 0 | BX16: 0 | BY16: =ROUNDUP(BY15/12,0)*BY4 -> 0 | BZ16: 0 | CA16: 0 | CB16: 0 | CC16: 0 | CD16: 0 | CE16: 0 | CF16: 0 | CG16: 0 | CH16: 0 | CI16: 0 | CJ16: 0 | CK16: 0 | CL16: 0 | CM16: 0 | CN16: 0 | CO16: 0 | CP16: 0 | CQ16: 0 | CR16: 0 | CS16: 0 | CT16: 0 | CU16: 0 | CV16: 0 | CW16: 0 | CX16: 0 | CY16: 0 | CZ16: 0 | DA16: 0 | DB16: 0 | DC16: 0 | DD16: 0 | DE16: 0 | DF16: 0 | DG16: 0 | DH16: =ROUNDUP(DH15/12,0)*DH4 -> 0 | DI16: =ROUNDUP(DI15/12,0)*DI4 -> 0 | DJ16: =ROUNDUP(DJ15/12,0)*DJ4 -> 0 | DK16: =ROUNDUP(DK15/12,0)*DK4 -> 0 | DL16: =ROUNDUP(DL15/12,0)*DL4 -> 0 | DM16: =ROUNDUP(DM15/12,0)*DM4 -> 0 | DN16: =ROUNDUP(DN15/12,0)*DN4 -> 0 | DO16: =ROUNDUP(DO15/12,0)*DO4 -> 0 | DP16: =ROUNDUP(DP15/12,0)*DP4 -> 0 | DQ16: =ROUNDUP(DQ15/12,0)*DQ4 -> 0 | DR16: =ROUNDUP(DR15/12,0)*DR4 -> 0 | DS16: =ROUNDUP(DS15/12,0)*DS4 -> 0 | DT16: =ROUNDUP(DT15/12,0)*DT4 -> 0 | DU16: =ROUNDUP(DU15/12,0)*DU4 -> 0 | DV16: =ROUNDUP(DV15/12,0)*DV4 -> 0 | DW16: =ROUNDUP(DW15/12,0)*DW4 -> 0 | DX16: =ROUNDUP(DX15/12,0)*DX4 -> 0 | DY16: =ROUNDUP(DY15/12,0)*DY4 -> 0 | DZ16: =ROUNDUP(DZ15/12,0)*DZ4 -> 0 | EA16: =ROUNDUP(EA15/12,0)*EA4 -> 0 | EB16: =ROUNDUP(EB15/12,0)*EB4 -> 0 | EC16: =ROUNDUP(EC15/12,0)*EC4 -> 0 | ED16: =ROUNDUP(ED15/12,0)*ED4 -> 0 | EE16: =ROUNDUP(EE15/12,0)*EE4 -> 0 | EF16: =ROUNDUP(EF15/12,0)*EF4 -> 0 | EG16: =ROUNDUP(EG15/12,0)*EG4 -> 0 | EH16: =ROUNDUP(EH15/12,0)*EH4 -> 0 | EI16: =ROUNDUP(EI15/12,0)*EI4 -> 0 | EJ16: =ROUNDUP(EJ15/12,0)*EJ4 -> 0 | EK16: =ROUNDUP(EK15/12,0)*EK4 -> 0 | EL16: =ROUNDUP(EL15/12,0)*EL4 -> 0 | EM16: =ROUNDUP(EM15/12,0)*EM4 -> 0 | EN16: =ROUNDUP(EN15/12,0)*EN4 -> 0 | EO16: =ROUNDUP(EO15/12,0)*EO4 -> 0 | EP16: =ROUNDUP(EP15/12,0)*EP4 -> 0 | EQ16: =ROUNDUP(EQ15/12,0)*EQ4 -> 0 | ER16: =ROUNDUP(ER15/12,0)*ER4 -> 0 | ES16: =ROUNDUP(ES15/12,0)*ES4 -> 0 | ET16: =ROUNDUP(ET15/12,0)*ET4 -> 0 | EU16: =ROUNDUP(EU15/12,0)*EU4 -> 0 | EV16: =ROUNDUP(EV15/12,0)*EV4 -> 0 | EW16: =ROUNDUP(EW15/12,0)*EW4 -> 0 | EX16: =ROUNDUP(EX15/12,0)*EX4 -> 0 | EY16: =ROUNDUP(EY15/12,0)*EY4 -> 0 | EZ16: =ROUNDUP(EZ15/12,0)*EZ4 -> 0 | FA16: =ROUNDUP(FA15/12,0)*FA4 -> 0 | FB16: =ROUNDUP(FB15/12,0)*FB4 -> 0 | FC16: =ROUNDUP(FC15/12,0)*FC4 -> 0 | FD16: =ROUNDUP(FD15/12,0)*FD4 -> 0 | FE16: =ROUNDUP(FE15/12,0)*FE4 -> 0 | FF16: =ROUNDUP(FF15/12,0)*FF4 -> 0 | FG16: =ROUNDUP(FG15/12,0)*FG4 -> 0 | FH16: =ROUNDUP(FH15/12,0)*FH4 -> 0 | FI16: =ROUNDUP(FI15/12,0)*FI4 -> 0 | FJ16: =ROUNDUP(FJ15/12,0)*FJ4 -> 0 | FK16: =ROUNDUP(FK15/12,0)*FK4 -> 0 | FL16: =ROUNDUP(FL15/12,0)*FL4 -> 0 | FM16: =ROUNDUP(FM15/12,0)*FM4 -> 0 | FN16: =ROUNDUP(FN15/12,0)*FN4 -> 0 | FO16: =ROUNDUP(FO15/12,0)*FO4 -> 0 | FP16: =ROUNDUP(FP15/12,0)*FP4 -> 0 | FQ16: =ROUNDUP(FQ15/12,0)*FQ4 -> 0 | FR16: =ROUNDUP(FR15/12,0)*FR4 -> 0 | FS16: =ROUNDUP(FS15/12,0)*FS4 -> 0 | FT16: =ROUNDUP(FT15/12,0)*FT4 -> 0 | FU16: =ROUNDUP(FU15/12,0)*FU4 -> 0 | FV16: =ROUNDUP(FV15/12,0)*FV4 -> 0 | FW16: =ROUNDUP(FW15/12,0)*FW4 -> 0
A18: Assumption
E19: Units
B20: Timing Assumption
C21: Development Start | E21: Date | G21: 2015-01-01
C22: Development Period | E22: Years | G22: 3
C23: Land Puchase and Financing Date | E23: Date | G23: =EDATE(G21,G22*12) -> 2018-01-01
C24: Construction Period | E24: Months | G24: 40
C25: Temporary Occupancy Date | E25: Date | G25: =EDATE(G23,G24) -> 2021-05-01
C26: Holding Period | E26: Quarters | G26: 100
C27: Sold Period | E27: Date | G27: =EDATE(G25,G26*3) -> 2046-05-01
B29: Construction Cost Assumptions and Development
D30: Development Costs | E30: Percent | F30: 0.05 | G30: =F30*G35 -> 710000
D31: Number of Rooms | E31: Rooms | G31: 80
D32: Cost Per Room - USD | E32: USD/Room | G32: 140000
D33: Total Facility Cost | E33: USD | G33: =PRODUCT(G31:G32) -> 11200000
D34: Land Cost | E34: USD | G34: 3000000
D35: Total Cost | E35: USD | G35: =SUM(G33:G34) -> 14200000
D36: S-Curve - Year | H36: 1 | I36: 2 | J36: 3 | K36: 4
D37: Spend Percent | E37: Percent | H37: 0.1 | I37: 0.35 | J37: 0.5 | K37: 0.05
D38: Month | H38: 1 | I38: 2 | J38: 3 | K38: 4 | L38: 5 | M38: 6 | N38: 7 | O38: 8 | P38: 9 | Q38: 10 | R38: 11 | S38: 12 | T38: 13 | U38: 14 | V38: 15 | W38: 16 | X38: 17 | Y38: 18 | Z38: 19 | AA38: 20 | AB38: 21 | AC38: 22 | AD38: 23 | AE38: 24 | AF38: 25 | AG38: 26 | AH38: 27 | AI38: 28 | AJ38: 29 | AK38: 30 | AL38: 31 | AM38: 32 | AN38: 33 | AO38: 34 | AP38: 35 | AQ38: 36 | AR38: 37 | AS38: 38 | AT38: 39 | AU38: 40 | AV38: 41 | AW38: 42 | AX38: 43 | AY38: 44 | AZ38: 45 | BA38: 46 | BB38: 47 | BC38: 48 | BD38: 49 | BE38: 50 | BF38: 51 | BG38: 52 | BH38: 53 | BI38: 54 | BJ38: 55 | BK38: 56 | BL38: 57 | BM38: 58 | BN38: 59 | BO38: 60 | BP38: 61 | BQ38: 62 | BR38: 63 | BS38: 64 | BT38: 65
D39: Spend Percent | H39: =LOOKUP(ROUNDUP(H38/12,0),36:36,37:37)/12 -> 0.008333333333 | I39: =LOOKUP(ROUNDUP(I38/12,0),36:36,37:37)/12 -> 0.008333333333 | J39: 0.008333333333 | K39: 0.008333333333 | L39: 0.008333333333 | M39: 0.008333333333 | N39: 0.008333333333 | O39: 0.008333333333 | P39: 0.008333333333 | Q39: 0.008333333333 | R39: 0.008333333333 | S39: 0.008333333333 | T39: 0.02916666667 | U39: 0.02916666667 | V39: 0.02916666667 | W39: 0.02916666667 | X39: 0.02916666667 | Y39: 0.02916666667 | Z39: 0.02916666667 | AA39: 0.02916666667 | AB39: 0.02916666667 | AC39: 0.02916666667 | AD39: 0.02916666667 | AE39: 0.02916666667 | AF39: 0.04166666667 | AG39: 0.04166666667 | AH39: 0.04166666667 | AI39: 0.04166666667 | AJ39: 0.04166666667 | AK39: 0.04166666667 | AL39: 0.04166666667 | AM39: 0.04166666667 | AN39: 0.04166666667 | AO39: 0.04166666667 | AP39: 0.04166666667 | AQ39: 0.04166666667 | AR39: =K37/4 -> 0.0125 | AS39: =AR39 -> 0.0125 | AT39: =AS39 -> 0.0125 | AU39: 0.0125
B41: General Economic Assumption
D42: Year | G42: =YEAR(G21) -> 2015 | H42: =G42+4 -> 2019 | I42: =H42+4 -> 2023 | J42: =I42+4 -> 2027 | K42: =J42+4 -> 2031 | L42: =K42+4 -> 2035
D43: Revenue Inflation | E43: Percent | G43: 0.005 | H43: 0.01 | I43: 0.011 | J43: 0.015 | K43: 0.018 | L43: 0.018
D44: Cost Inflation | E44: Percent | G44: 0.005 | H44: 0.01 | I44: 0.011 | J44: 0.015 | K44: 0.02 | L44: 0.022
D45: Base Interest Rate (LIBOR) | E45: Percent | G45: 0.002 | H45: 0.015 | I45: 0.02 | J45: 0.025 | K45: 0.03 | L45: 0.03
B47: Revenues Assumptions
D48: RevPar - USD/Day | E48: USD/Room/Day | G48: 180
D50: Year | G50: 1 | H50: 2 | I50: 3 | J50: 4
D51: Occupancy Rate | E51: Pct per year | G51: 0.6 | H51: 0.65 | I51: 0.7 | J51: 0.75
D52: Other Revenues - Room Service and Conferences | E52: Pct of Revenues | G52: 0.31 | H52: =G52 -> 0.31 | I52: =H52 -> 0.31 | J52: =I52 -> 0.31
B54: Operating Expense Assumptions
E55: Number | G55: 60
E56: USD/Year Real | G56: 25000
E57: Pct of Salary | G57: 0.3
E58: Pct of Salary | G58: 0.6
E59: Pct of Salary | G59: 0.39
B61: Cap Rate Exit Assumption | E61: Rate | G61: 0.06
A63: Capital Allowance and Depreciation
D64: Corporate Tax Rate | E64: Percent | G64: 0.2
D65: Capital Allowance Period | E65: Year | G65: 10
A67: Financing Assumptions
D68: Loan to Value - Loan Cost | G68: 0.8
D69: Repayment Period | G69: 10
D70: Credit Spread | G70: 0.015
C72: Construction Loan
D73: Loan to Value | G73: 0.65
D74: Cash Sweep Percent | G74: 0.7
D75: Credit Spread | G75: 0.02
D77: Up-front Fees | G77: 0.01
D78: Commitment Fees | G78: 0.015
A80: Construction and Development Cost
C81: Development Cost | H81: =G30 -> 710000 | I81: =G22 -> 3 | L81: =$H$81*L3/$I$81 -> 236666.6667 | M81: =$H$81*M3/$I$81 -> 236666.6667 | N81: =$H$81*N3/$I$81 -> 236666.6667 | O81: =$H$81*O3/$I$81 -> 0 | P81: =$H$81*P3/$I$81 -> 0 | Q81: =$H$81*Q3/$I$81 -> 0 | R81: =$H$81*R3/$I$81 -> 0 | S81: =$H$81*S3/$I$81 -> 0 | T81: =$H$81*T3/$I$81 -> 0 | U81: =$H$81*U3/$I$81 -> 0 | V81: =$H$81*V3/$I$81 -> 0 | W81: =$H$81*W3/$I$81 -> 0 | X81: =$H$81*X3/$I$81 -> 0 | Y81: =$H$81*Y3/$I$81 -> 0 | Z81: =$H$81*Z3/$I$81 -> 0 | AA81: =$H$81*AA3/$I$81 -> 0 | AB81: =$H$81*AB3/$I$81 -> 0 | AC81: =$H$81*AC3/$I$81 -> 0 | AD81: =$H$81*AD3/$I$81 -> 0 | AE81: =$H$81*AE3/$I$81 -> 0 | AF81: =$H$81*AF3/$I$81 -> 0 | AG81: =$H$81*AG3/$I$81 -> 0 | AH81: =$H$81*AH3/$I$81 -> 0 | AI81: =$H$81*AI3/$I$81 -> 0 | AJ81: =$H$81*AJ3/$I$81 -> 0 | AK81: =$H$81*AK3/$I$81 -> 0 | AL81: =$H$81*AL3/$I$81 -> 0 | AM81: =$H$81*AM3/$I$81 -> 0 | AN81: =$H$81*AN3/$I$81 -> 0 | AO81: =$H$81*AO3/$I$81 -> 0 | AP81: =$H$81*AP3/$I$81 -> 0 | AQ81: =$H$81*AQ3/$I$81 -> 0 | AR81: =$H$81*AR3/$I$81 -> 0 | AS81: =$H$81*AS3/$I$81 -> 0 | AT81: =$H$81*AT3/$I$81 -> 0 | AU81: =$H$81*AU3/$I$81 -> 0 | AV81: =$H$81*AV3/$I$81 -> 0 | AW81: =$H$81*AW3/$I$81 -> 0 | AX81: =$H$81*AX3/$I$81 -> 0 | AY81: =$H$81*AY3/$I$81 -> 0 | AZ81: =$H$81*AZ3/$I$81 -> 0 | BA81: =$H$81*BA3/$I$81 -> 0 | BB81: =$H$81*BB3/$I$81 -> 0 | BC81: =$H$81*BC3/$I$81 -> 0 | BD81: =$H$81*BD3/$I$81 -> 0 | BE81: =$H$81*BE3/$I$81 -> 0 | BF81: =$H$81*BF3/$I$81 -> 0 | BG81: =$H$81*BG3/$I$81 -> 0 | BH81: =$H$81*BH3/$I$81 -> 0 | BI81: =$H$81*BI3/$I$81 -> 0 | BJ81: =$H$81*BJ3/$I$81 -> 0 | BK81: =$H$81*BK3/$I$81 -> 0 | BL81: =$H$81*BL3/$I$81 -> 0 | BM81: =$H$81*BM3/$I$81 -> 0 | BN81: =$H$81*BN3/$I$81 -> 0 | BO81: =$H$81*BO3/$I$81 -> 0 | BP81: =$H$81*BP3/$I$81 -> 0 | BQ81: =$H$81*BQ3/$I$81 -> 0 | BR81: =$H$81*BR3/$I$81 -> 0 | BS81: =$H$81*BS3/$I$81 -> 0 | BT81: =$H$81*BT3/$I$81 -> 0 | BU81: =$H$81*BU3/$I$81 -> 0 | BV81: =$H$81*BV3/$I$81 -> 0 | BW81: =$H$81*BW3/$I$81 -> 0 | BX81: =$H$81*BX3/$I$81 -> 0 | BY81: =$H$81*BY3/$I$81 -> 0 | BZ81: =$H$81*BZ3/$I$81 -> 0 | CA81: =$H$81*CA3/$I$81 -> 0 | CB81: =$H$81*CB3/$I$81 -> 0 | CC81: =$H$81*CC3/$I$81 -> 0 | CD81: =$H$81*CD3/$I$81 -> 0 | CE81: =$H$81*CE3/$I$81 -> 0 | CF81: =$H$81*CF3/$I$81 -> 0 | CG81: =$H$81*CG3/$I$81 -> 0 | CH81: =$H$81*CH3/$I$81 -> 0 | CI81: =$H$81*CI3/$I$81 -> 0 | CJ81: =$H$81*CJ3/$I$81 -> 0 | CK81: =$H$81*CK3/$I$81 -> 0 | CL81: =$H$81*CL3/$I$81 -> 0 | CM81: =$H$81*CM3/$I$81 -> 0 | CN81: =$H$81*CN3/$I$81 -> 0 | CO81: =$H$81*CO3/$I$81 -> 0 | CP81: =$H$81*CP3/$I$81 -> 0 | CQ81: =$H$81*CQ3/$I$81 -> 0 | CR81: =$H$81*CR3/$I$81 -> 0 | CS81: =$H$81*CS3/$I$81 -> 0 | CT81: =$H$81*CT3/$I$81 -> 0 | CU81: =$H$81*CU3/$I$81 -> 0 | CV81: =$H$81*CV3/$I$81 -> 0 | CW81: =$H$81*CW3/$I$81 -> 0 | CX81: =$H$81*CX3/$I$81 -> 0 | CY81: =$H$81*CY3/$I$81 -> 0 | CZ81: =$H$81*CZ3/$I$81 -> 0 | DA81: =$H$81*DA3/$I$81 -> 0 | DB81: =$H$81*DB3/$I$81 -> 0 | DC81: =$H$81*DC3/$I$81 -> 0 | DD81: =$H$81*DD3/$I$81 -> 0 | DE81: =$H$81*DE3/$I$81 -> 0 | DF81: =$H$81*DF3/$I$81 -> 0 | DG81: =$H$81*DG3/$I$81 -> 0 | DH81: =$H$81*DH3/$I$81 -> 0 | DI81: 0 | DJ81: 0 | DK81: 0 | DL81: 0 | DM81: 0 | DN81: 0 | DO81: 0 | DP81: 0 | DQ81: 0 | DR81: 0 | DS81: 0 | DT81: 0 | DU81: 0 | DV81: 0 | DW81: 0 | DX81: 0 | DY81: 0 | DZ81: 0 | EA81: 0 | EB81: 0 | EC81: 0 | ED81: 0 | EE81: 0 | EF81: 0 | EG81: 0 | EH81: 0 | EI81: 0 | EJ81: 0 | EK81: 0 | EL81: 0 | EM81: 0 | EN81: 0 | EO81: 0 | EP81: 0 | EQ81: 0 | ER81: 0 | ES81: 0 | ET81: 0 | EU81: 0 | EV81: 0 | EW81: 0 | EX81: 0 | EY81: 0 | EZ81: 0 | FA81: 0 | FB81: 0 | FC81: 0 | FD81: 0 | FE81: 0 | FF81: 0 | FG81: 0 | FH81: 0 | FI81: 0 | FJ81: 0 | FK81: 0 | FL81: 0 | FM81: 0 | FN81: 0 | FO81: 0 | FP81: 0 | FQ81: 0 | FR81: 0 | FS81: 0 | FT81: =$H$81*FT3/$I$81 -> 0 | FU81: 0 | FV81: 0 | FW81: 0
C82: S-Cruve | L82: =LOOKUP(L15,38:38,39:39) ->  | M82: =LOOKUP(M15,38:38,39:39) ->  | N82: =LOOKUP(N15,38:38,39:39) ->  | O82: =LOOKUP(O15,38:38,39:39) -> 0.008333333333 | P82: =LOOKUP(P15,38:38,39:39) -> 0.008333333333 | Q82: =LOOKUP(Q15,38:38,39:39) -> 0.008333333333 | R82: =LOOKUP(R15,38:38,39:39) -> 0.008333333333 | S82: =LOOKUP(S15,38:38,39:39) -> 0.008333333333 | T82: =LOOKUP(T15,38:38,39:39) -> 0.008333333333 | U82: =LOOKUP(U15,38:38,39:39) -> 0.008333333333 | V82: =LOOKUP(V15,38:38,39:39) -> 0.008333333333 | W82: =LOOKUP(W15,38:38,39:39) -> 0.008333333333 | X82: =LOOKUP(X15,38:38,39:39) -> 0.008333333333 | Y82: =LOOKUP(Y15,38:38,39:39) -> 0.008333333333 | Z82: =LOOKUP(Z15,38:38,39:39) -> 0.008333333333 | AA82: =LOOKUP(AA15,38:38,39:39) -> 0.02916666667 | AB82: =LOOKUP(AB15,38:38,39:39) -> 0.02916666667 | AC82: =LOOKUP(AC15,38:38,39:39) -> 0.02916666667 | AD82: =LOOKUP(AD15,38:38,39:39) -> 0.02916666667 | AE82: =LOOKUP(AE15,38:38,39:39) -> 0.02916666667 | AF82: =LOOKUP(AF15,38:38,39:39) -> 0.02916666667 | AG82: =LOOKUP(AG15,38:38,39:39) -> 0.02916666667 | AH82: =LOOKUP(AH15,38:38,39:39) -> 0.02916666667 | AI82: =LOOKUP(AI15,38:38,39:39) -> 0.02916666667 | AJ82: =LOOKUP(AJ15,38:38,39:39) -> 0.02916666667 | AK82: =LOOKUP(AK15,38:38,39:39) -> 0.02916666667 | AL82: =LOOKUP(AL15,38:38,39:39) -> 0.02916666667 | AM82: =LOOKUP(AM15,38:38,39:39) -> 0.04166666667 | AN82: =LOOKUP(AN15,38:38,39:39) -> 0.04166666667 | AO82: =LOOKUP(AO15,38:38,39:39) -> 0.04166666667 | AP82: =LOOKUP(AP15,38:38,39:39) -> 0.04166666667 | AQ82: =LOOKUP(AQ15,38:38,39:39) -> 0.04166666667 | AR82: =LOOKUP(AR15,38:38,39:39) -> 0.04166666667 | AS82: =LOOKUP(AS15,38:38,39:39) -> 0.04166666667 | AT82: =LOOKUP(AT15,38:38,39:39) -> 0.04166666667 | AU82: =LOOKUP(AU15,38:38,39:39) -> 0.04166666667 | AV82: =LOOKUP(AV15,38:38,39:39) -> 0.04166666667 | AW82: =LOOKUP(AW15,38:38,39:39) -> 0.04166666667 | AX82: =LOOKUP(AX15,38:38,39:39) -> 0.04166666667 | AY82: =LOOKUP(AY15,38:38,39:39) -> 0.0125 | AZ82: =LOOKUP(AZ15,38:38,39:39) -> 0.0125 | BA82: =LOOKUP(BA15,38:38,39:39) -> 0.0125 | BB82: =LOOKUP(BB15,38:38,39:39) -> 0.0125 | BC82: =LOOKUP(BC15,38:38,39:39) -> 0.0125 | BD82: =LOOKUP(BD15,38:38,39:39) -> 0.0125 | BE82: =LOOKUP(BE15,38:38,39:39) -> 0.0125 | BF82: =LOOKUP(BF15,38:38,39:39) -> 0.0125 | BG82: =LOOKUP(BG15,38:38,39:39) -> 0.0125 | BH82: =LOOKUP(BH15,38:38,39:39) -> 0.0125 | BI82: =LOOKUP(BI15,38:38,39:39) -> 0.0125 | BJ82: =LOOKUP(BJ15,38:38,39:39) -> 0.0125 | BK82: =LOOKUP(BK15,38:38,39:39) -> 0.0125 | BL82: =LOOKUP(BL15,38:38,39:39) -> 0.0125 | BM82: =LOOKUP(BM15,38:38,39:39) -> 0.0125 | BN82: =LOOKUP(BN15,38:38,39:39) -> 0.0125 | BO82: =LOOKUP(BO15,38:38,39:39) -> 0.0125 | BP82: =LOOKUP(BP15,38:38,39:39) -> 0.0125 | BQ82: =LOOKUP(BQ15,38:38,39:39) -> 0.0125 | BR82: =LOOKUP(BR15,38:38,39:39) -> 0.0125 | BS82: =LOOKUP(BS15,38:38,39:39) -> 0.0125 | BT82: =LOOKUP(BT15,38:38,39:39) -> 0.0125 | BU82: =LOOKUP(BU15,38:38,39:39) -> 0.0125 | BV82: =LOOKUP(BV15,38:38,39:39) -> 0.0125 | BW82: =LOOKUP(BW15,38:38,39:39) -> 0.0125 | BX82: =LOOKUP(BX15,38:38,39:39) -> 0.0125 | BY82: =LOOKUP(BY15,38:38,39:39) -> 0.0125 | BZ82: =LOOKUP(BZ15,38:38,39:39) -> 0.0125 | CA82: =LOOKUP(CA15,38:38,39:39) -> 0.0125 | CB82: =LOOKUP(CB15,38:38,39:39) -> 0.0125 | CC82: =LOOKUP(CC15,38:38,39:39) -> 0.0125 | CD82: =LOOKUP(CD15,38:38,39:39) -> 0.0125 | CE82: =LOOKUP(CE15,38:38,39:39) -> 0.0125 | CF82: =LOOKUP(CF15,38:38,39:39) -> 0.0125 | CG82: =LOOKUP(CG15,38:38,39:39) -> 0.0125 | CH82: =LOOKUP(CH15,38:38,39:39) -> 0.0125 | CI82: =LOOKUP(CI15,38:38,39:39) -> 0.0125 | CJ82: =LOOKUP(CJ15,38:38,39:39) -> 0.0125 | CK82: =LOOKUP(CK15,38:38,39:39) -> 0.0125 | CL82: =LOOKUP(CL15,38:38,39:39) -> 0.0125 | CM82: =LOOKUP(CM15,38:38,39:39) -> 0.0125 | CN82: =LOOKUP(CN15,38:38,39:39) -> 0.0125 | CO82: =LOOKUP(CO15,38:38,39:39) -> 0.0125 | CP82: =LOOKUP(CP15,38:38,39:39) -> 0.0125 | CQ82: =LOOKUP(CQ15,38:38,39:39) -> 0.0125 | CR82: =LOOKUP(CR15,38:38,39:39) -> 0.0125 | CS82: =LOOKUP(CS15,38:38,39:39) -> 0.0125 | CT82: =LOOKUP(CT15,38:38,39:39) -> 0.0125 | CU82: =LOOKUP(CU15,38:38,39:39) -> 0.0125 | CV82: =LOOKUP(CV15,38:38,39:39) -> 0.0125 | CW82: =LOOKUP(CW15,38:38,39:39) -> 0.0125 | CX82: =LOOKUP(CX15,38:38,39:39) -> 0.0125 | CY82: =LOOKUP(CY15,38:38,39:39) -> 0.0125 | CZ82: =LOOKUP(CZ15,38:38,39:39) -> 0.0125 | DA82: =LOOKUP(DA15,38:38,39:39) -> 0.0125 | DB82: =LOOKUP(DB15,38:38,39:39) -> 0.0125 | DC82: =LOOKUP(DC15,38:38,39:39) -> 0.0125 | DD82: =LOOKUP(DD15,38:38,39:39) -> 0.0125 | DE82: =LOOKUP(DE15,38:38,39:39) -> 0.0125 | DF82: =LOOKUP(DF15,38:38,39:39) -> 0.0125 | DG82: =LOOKUP(DG15,38:38,39:39) -> 0.0125 | DH82: =LOOKUP(DH15,38:38,39:39) -> 0.0125 | DI82: 0.0125 | DJ82: 0.0125 | DK82: 0.0125 | DL82: 0.0125 | DM82: 0.0125 | DN82: 0.0125 | DO82: 0.0125 | DP82: 0.0125 | DQ82: 0.0125 | DR82: 0.0125 | DS82: 0.0125 | DT82: 0.0125 | DU82: 0.0125 | DV82: 0.0125 | DW82: 0.0125 | DX82: 0.0125 | DY82: 0.0125 | DZ82: 0.0125 | EA82: 0.0125 | EB82: 0.0125 | EC82: 0.0125 | ED82: 0.0125 | EE82: 0.0125 | EF82: 0.0125 | EG82: 0.0125 | EH82: 0.0125 | EI82: 0.0125 | EJ82: 0.0125 | EK82: 0.0125 | EL82: 0.0125 | EM82: 0.0125 | EN82: 0.0125 | EO82: 0.0125 | EP82: 0.0125 | EQ82: 0.0125 | ER82: 0.0125 | ES82: 0.0125 | ET82: 0.0125 | EU82: 0.0125 | EV82: 0.0125 | EW82: 0.0125 | EX82: 0.0125 | EY82: 0.0125 | EZ82: 0.0125 | FA82: 0.0125 | FB82: 0.0125 | FC82: 0.0125 | FD82: 0.0125 | FE82: 0.0125 | FF82: 0.0125 | FG82: 0.0125 | FH82: 0.0125 | FI82: 0.0125 | FJ82: 0.0125 | FK82: 0.0125 | FL82: 0.0125 | FM82: 0.0125 | FN82: 0.0125 | FO82: 0.0125 | FP82: 0.0125 | FQ82: 0.0125 | FR82: 0.0125 | FS82: 0.0125 | FT82: =LOOKUP(FT15,38:38,39:39) -> 0.0125 | FU82: 0.0125 | FV82: 0.0125 | FW82: 0.0125
C83: Construction Expenditures | H83: =G33 -> 11200000 | J83: =SUM(L83:DG83) -> 11200000 | L83: =IF(L4,L82*$H$83) -> FALSE | M83: =IF(M4,M82*$H$83) -> FALSE | N83: =IF(N4,N82*$H$83) -> FALSE | O83: =IF(O4,O82*$H$83) -> 93333.33333 | P83: =IF(P4,P82*$H$83) -> 93333.33333 | Q83: =IF(Q4,Q82*$H$83) -> 93333.33333 | R83: =IF(R4,R82*$H$83) -> 93333.33333 | S83: =IF(S4,S82*$H$83) -> 93333.33333 | T83: =IF(T4,T82*$H$83) -> 93333.33333 | U83: =IF(U4,U82*$H$83) -> 93333.33333 | V83: =IF(V4,V82*$H$83) -> 93333.33333 | W83: =IF(W4,W82*$H$83) -> 93333.33333 | X83: =IF(X4,X82*$H$83) -> 93333.33333 | Y83: =IF(Y4,Y82*$H$83) -> 93333.33333 | Z83: =IF(Z4,Z82*$H$83) -> 93333.33333 | AA83: =IF(AA4,AA82*$H$83) -> 326666.6667 | AB83: =IF(AB4,AB82*$H$83) -> 326666.6667 | AC83: =IF(AC4,AC82*$H$83) -> 326666.6667 | AD83: =IF(AD4,AD82*$H$83) -> 326666.6667 | AE83: =IF(AE4,AE82*$H$83) -> 326666.6667 | AF83: =IF(AF4,AF82*$H$83) -> 326666.6667 | AG83: =IF(AG4,AG82*$H$83) -> 326666.6667 | AH83: =IF(AH4,AH82*$H$83) -> 326666.6667 | AI83: =IF(AI4,AI82*$H$83) -> 326666.6667 | AJ83: =IF(AJ4,AJ82*$H$83) -> 326666.6667 | AK83: =IF(AK4,AK82*$H$83) -> 326666.6667 | AL83: =IF(AL4,AL82*$H$83) -> 326666.6667 | AM83: =IF(AM4,AM82*$H$83) -> 466666.6667 | AN83: =IF(AN4,AN82*$H$83) -> 466666.6667 | AO83: =IF(AO4,AO82*$H$83) -> 466666.6667 | AP83: =IF(AP4,AP82*$H$83) -> 466666.6667 | AQ83: =IF(AQ4,AQ82*$H$83) -> 466666.6667 | AR83: =IF(AR4,AR82*$H$83) -> 466666.6667 | AS83: =IF(AS4,AS82*$H$83) -> 466666.6667 | AT83: =IF(AT4,AT82*$H$83) -> 466666.6667 | AU83: =IF(AU4,AU82*$H$83) -> 466666.6667 | AV83: =IF(AV4,AV82*$H$83) -> 466666.6667 | AW83: =IF(AW4,AW82*$H$83) -> 466666.6667 | AX83: =IF(AX4,AX82*$H$83) -> 466666.6667 | AY83: =IF(AY4,AY82*$H$83) -> 140000 | AZ83: =IF(AZ4,AZ82*$H$83) -> 140000 | BA83: =IF(BA4,BA82*$H$83) -> 140000 | BB83: =IF(BB4,BB82*$H$83) -> 140000 | BC83: =IF(BC4,BC82*$H$83) -> FALSE | BD83: =IF(BD4,BD82*$H$83) -> FALSE | BE83: =IF(BE4,BE82*$H$83) -> FALSE | BF83: =IF(BF4,BF82*$H$83) -> FALSE | BG83: =IF(BG4,BG82*$H$83) -> FALSE | BH83: =IF(BH4,BH82*$H$83) -> FALSE | BI83: =IF(BI4,BI82*$H$83) -> FALSE | BJ83: =IF(BJ4,BJ82*$H$83) -> FALSE | BK83: =IF(BK4,BK82*$H$83) -> FALSE | BL83: =IF(BL4,BL82*$H$83) -> FALSE | BM83: =IF(BM4,BM82*$H$83) -> FALSE | BN83: =IF(BN4,BN82*$H$83) -> FALSE | BO83: =IF(BO4,BO82*$H$83) -> FALSE | BP83: =IF(BP4,BP82*$H$83) -> FALSE | BQ83: =IF(BQ4,BQ82*$H$83) -> FALSE | BR83: =IF(BR4,BR82*$H$83) -> FALSE | BS83: =IF(BS4,BS82*$H$83) -> FALSE | BT83: =IF(BT4,BT82*$H$83) -> FALSE | BU83: =IF(BU4,BU82*$H$83) -> FALSE | BV83: =IF(BV4,BV82*$H$83) -> FALSE | BW83: =IF(BW4,BW82*$H$83) -> FALSE | BX83: =IF(BX4,BX82*$H$83) -> FALSE | BY83: =IF(BY4,BY82*$H$83) -> FALSE | BZ83: =IF(BZ4,BZ82*$H$83) -> FALSE | CA83: =IF(CA4,CA82*$H$83) -> FALSE | CB83: =IF(CB4,CB82*$H$83) -> FALSE | CC83: =IF(CC4,CC82*$H$83) -> FALSE | CD83: =IF(CD4,CD82*$H$83) -> FALSE | CE83: =IF(CE4,CE82*$H$83) -> FALSE | CF83: =IF(CF4,CF82*$H$83) -> FALSE | CG83: =IF(CG4,CG82*$H$83) -> FALSE | CH83: =IF(CH4,CH82*$H$83) -> FALSE | CI83: =IF(CI4,CI82*$H$83) -> FALSE | CJ83: =IF(CJ4,CJ82*$H$83) -> FALSE | CK83: =IF(CK4,CK82*$H$83) -> FALSE | CL83: =IF(CL4,CL82*$H$83) -> FALSE | CM83: =IF(CM4,CM82*$H$83) -> FALSE | CN83: =IF(CN4,CN82*$H$83) -> FALSE | CO83: =IF(CO4,CO82*$H$83) -> FALSE | CP83: =IF(CP4,CP82*$H$83) -> FALSE | CQ83: =IF(CQ4,CQ82*$H$83) -> FALSE | CR83: =IF(CR4,CR82*$H$83) -> FALSE | CS83: =IF(CS4,CS82*$H$83) -> FALSE | CT83: =IF(CT4,CT82*$H$83) -> FALSE | CU83: =IF(CU4,CU82*$H$83) -> FALSE | CV83: =IF(CV4,CV82*$H$83) -> FALSE | CW83: =IF(CW4,CW82*$H$83) -> FALSE | CX83: =IF(CX4,CX82*$H$83) -> FALSE | CY83: =IF(CY4,CY82*$H$83) -> FALSE | CZ83: =IF(CZ4,CZ82*$H$83) -> FALSE | DA83: =IF(DA4,DA82*$H$83) -> FALSE | DB83: =IF(DB4,DB82*$H$83) -> FALSE | DC83: =IF(DC4,DC82*$H$83) -> FALSE | DD83: =IF(DD4,DD82*$H$83) -> FALSE | DE83: =IF(DE4,DE82*$H$83) -> FALSE | DF83: =IF(DF4,DF82*$H$83) -> FALSE | DG83: =IF(DG4,DG82*$H$83) -> FALSE | DH83: =IF(DH4,DH82*$H$83) -> FALSE | DI83: FALSE | DJ83: FALSE | DK83: FALSE | DL83: FALSE | DM83: FALSE | DN83: FALSE | DO83: FALSE | DP83: FALSE | DQ83: FALSE | DR83: FALSE | DS83: FALSE | DT83: FALSE | DU83: FALSE | DV83: FALSE | DW83: FALSE | DX83: FALSE | DY83: FALSE | DZ83: FALSE | EA83: FALSE | EB83: FALSE | EC83: FALSE | ED83: FALSE | EE83: FALSE | EF83: FALSE | EG83: FALSE | EH83: FALSE | EI83: FALSE | EJ83: FALSE | EK83: FALSE | EL83: FALSE | EM83: FALSE | EN83: FALSE | EO83: FALSE | EP83: FALSE | EQ83: FALSE | ER83: FALSE | ES83: FALSE | ET83: FALSE | EU83: FALSE | EV83: FALSE | EW83: FALSE | EX83: FALSE | EY83: FALSE | EZ83: FALSE | FA83: FALSE | FB83: FALSE | FC83: FALSE | FD83: FALSE | FE83: FALSE | FF83: FALSE | FG83: FALSE | FH83: FALSE | FI83: FALSE | FJ83: FALSE | FK83: FALSE | FL83: FALSE | FM83: FALSE | FN83: FALSE | FO83: FALSE | FP83: FALSE | FQ83: FALSE | FR83: FALSE | FS83: FALSE | FT83: =IF(FT4,FT82*$H$83) -> FALSE | FU83: FALSE | FV83: FALSE | FW83: FALSE
C84: Land Expenditures | H84: =G34 -> 3000000 | J84: =G23 -> 2018-01-01 | L84: =$H$84*(L11=$J$84) -> 0 | M84: =$H$84*(M11=$J$84) -> 0 | N84: =$H$84*(N11=$J$84) -> 0 | O84: =$H$84*(O11=$J$84) -> 3000000 | P84: =$H$84*(P11=$J$84) -> 0 | Q84: =$H$84*(Q11=$J$84) -> 0 | R84: =$H$84*(R11=$J$84) -> 0 | S84: =$H$84*(S11=$J$84) -> 0 | T84: =$H$84*(T11=$J$84) -> 0 | U84: =$H$84*(U11=$J$84) -> 0 | V84: =$H$84*(V11=$J$84) -> 0 | W84: =$H$84*(W11=$J$84) -> 0 | X84: =$H$84*(X11=$J$84) -> 0 | Y84: =$H$84*(Y11=$J$84) -> 0 | Z84: =$H$84*(Z11=$J$84) -> 0 | AA84: =$H$84*(AA11=$J$84) -> 0 | AB84: =$H$84*(AB11=$J$84) -> 0 | AC84: =$H$84*(AC11=$J$84) -> 0 | AD84: =$H$84*(AD11=$J$84) -> 0 | AE84: =$H$84*(AE11=$J$84) -> 0 | AF84: =$H$84*(AF11=$J$84) -> 0 | AG84: =$H$84*(AG11=$J$84) -> 0 | AH84: =$H$84*(AH11=$J$84) -> 0 | AI84: =$H$84*(AI11=$J$84) -> 0 | AJ84: =$H$84*(AJ11=$J$84) -> 0 | AK84: =$H$84*(AK11=$J$84) -> 0 | AL84: =$H$84*(AL11=$J$84) -> 0 | AM84: =$H$84*(AM11=$J$84) -> 0 | AN84: =$H$84*(AN11=$J$84) -> 0 | AO84: =$H$84*(AO11=$J$84) -> 0 | AP84: =$H$84*(AP11=$J$84) -> 0 | AQ84: =$H$84*(AQ11=$J$84) -> 0 | AR84: =$H$84*(AR11=$J$84) -> 0 | AS84: =$H$84*(AS11=$J$84) -> 0 | AT84: =$H$84*(AT11=$J$84) -> 0 | AU84: =$H$84*(AU11=$J$84) -> 0 | AV84: =$H$84*(AV11=$J$84) -> 0 | AW84: =$H$84*(AW11=$J$84) -> 0 | AX84: =$H$84*(AX11=$J$84) -> 0 | AY84: =$H$84*(AY11=$J$84) -> 0 | AZ84: =$H$84*(AZ11=$J$84) -> 0 | BA84: =$H$84*(BA11=$J$84) -> 0 | BB84: =$H$84*(BB11=$J$84) -> 0 | BC84: =$H$84*(BC11=$J$84) -> 0 | BD84: =$H$84*(BD11=$J$84) -> 0 | BE84: =$H$84*(BE11=$J$84) -> 0 | BF84: =$H$84*(BF11=$J$84) -> 0 | BG84: =$H$84*(BG11=$J$84) -> 0 | BH84: =$H$84*(BH11=$J$84) -> 0 | BI84: =$H$84*(BI11=$J$84) -> 0 | BJ84: =$H$84*(BJ11=$J$84) -> 0 | BK84: =$H$84*(BK11=$J$84) -> 0 | BL84: =$H$84*(BL11=$J$84) -> 0 | BM84: =$H$84*(BM11=$J$84) -> 0 | BN84: =$H$84*(BN11=$J$84) -> 0 | BO84: =$H$84*(BO11=$J$84) -> 0 | BP84: =$H$84*(BP11=$J$84) -> 0 | BQ84: =$H$84*(BQ11=$J$84) -> 0 | BR84: =$H$84*(BR11=$J$84) -> 0 | BS84: =$H$84*(BS11=$J$84) -> 0 | BT84: =$H$84*(BT11=$J$84) -> 0 | BU84: =$H$84*(BU11=$J$84) -> 0 | BV84: =$H$84*(BV11=$J$84) -> 0 | BW84: =$H$84*(BW11=$J$84) -> 0 | BX84: =$H$84*(BX11=$J$84) -> 0 | BY84: =$H$84*(BY11=$J$84) -> 0 | BZ84: =$H$84*(BZ11=$J$84) -> 0 | CA84: =$H$84*(CA11=$J$84) -> 0 | CB84: =$H$84*(CB11=$J$84) -> 0 | CC84: =$H$84*(CC11=$J$84) -> 0 | CD84: =$H$84*(CD11=$J$84) -> 0 | CE84: =$H$84*(CE11=$J$84) -> 0 | CF84: =$H$84*(CF11=$J$84) -> 0 | CG84: =$H$84*(CG11=$J$84) -> 0 | CH84: =$H$84*(CH11=$J$84) -> 0 | CI84: =$H$84*(CI11=$J$84) -> 0 | CJ84: =$H$84*(CJ11=$J$84) -> 0 | CK84: =$H$84*(CK11=$J$84) -> 0 | CL84: =$H$84*(CL11=$J$84) -> 0 | CM84: =$H$84*(CM11=$J$84) -> 0 | CN84: =$H$84*(CN11=$J$84) -> 0 | CO84: =$H$84*(CO11=$J$84) -> 0 | CP84: =$H$84*(CP11=$J$84) -> 0 | CQ84: =$H$84*(CQ11=$J$84) -> 0 | CR84: =$H$84*(CR11=$J$84) -> 0 | CS84: =$H$84*(CS11=$J$84) -> 0 | CT84: =$H$84*(CT11=$J$84) -> 0 | CU84: =$H$84*(CU11=$J$84) -> 0 | CV84: =$H$84*(CV11=$J$84) -> 0 | CW84: =$H$84*(CW11=$J$84) -> 0 | CX84: =$H$84*(CX11=$J$84) -> 0 | CY84: =$H$84*(CY11=$J$84) -> 0 | CZ84: =$H$84*(CZ11=$J$84) -> 0 | DA84: =$H$84*(DA11=$J$84) -> 0 | DB84: =$H$84*(DB11=$J$84) -> 0 | DC84: =$H$84*(DC11=$J$84) -> 0 | DD84: =$H$84*(DD11=$J$84) -> 0 | DE84: =$H$84*(DE11=$J$84) -> 0 | DF84: =$H$84*(DF11=$J$84) -> 0 | DG84: =$H$84*(DG11=$J$84) -> 0 | DH84: =$H$84*(DH11=$J$84) -> 0 | DI84: 0 | DJ84: 0 | DK84: 0 | DL84: 0 | DM84: 0 | DN84: 0 | DO84: 0 | DP84: 0 | DQ84: 0 | DR84: 0 | DS84: 0 | DT84: 0 | DU84: 0 | DV84: 0 | DW84: 0 | DX84: 0 | DY84: 0 | DZ84: 0 | EA84: 0 | EB84: 0 | EC84: 0 | ED84: 0 | EE84: 0 | EF84: 0 | EG84: 0 | EH84: 0 | EI84: 0 | EJ84: 0 | EK84: 0 | EL84: 0 | EM84: 0 | EN84: 0 | EO84: 0 | EP84: 0 | EQ84: 0 | ER84: 0 | ES84: 0 | ET84: 0 | EU84: 0 | EV84: 0 | EW84: 0 | EX84: 0 | EY84: 0 | EZ84: 0 | FA84: 0 | FB84: 0 | FC84: 0 | FD84: 0 | FE84: 0 | FF84: 0 | FG84: 0 | FH84: 0 | FI84: 0 | FJ84: 0 | FK84: 0 | FL84: 0 | FM84: 0 | FN84: 0 | FO84: 0 | FP84: 0 | FQ84: 0 | FR84: 0 | FS84: 0 | FT84: =$H$84*(FT11=$J$84) -> 0 | FU84: 0 | FV84: 0 | FW84: 0
D85: Total Outlays | L85: =L81+L83+L84 -> 236666.6667 | M85: =M81+M83+M84 -> 236666.6667 | N85: 236666.6667 | O85: 3093333.333 | P85: 93333.33333 | Q85: 93333.33333 | R85: 93333.33333 | S85: 93333.33333 | T85: 93333.33333 | U85: 93333.33333 | V85: 93333.33333 | W85: 93333.33333 | X85: 93333.33333 | Y85: 93333.33333 | Z85: 93333.33333 | AA85: 326666.6667 | AB85: 326666.6667 | AC85: 326666.6667 | AD85: 326666.6667 | AE85: 326666.6667 | AF85: 326666.6667 | AG85: 326666.6667 | AH85: 326666.6667 | AI85: 326666.6667 | AJ85: 326666.6667 | AK85: 326666.6667 | AL85: 326666.6667 | AM85: 466666.6667 | AN85: 466666.6667 | AO85: 466666.6667 | AP85: 466666.6667 | AQ85: 466666.6667 | AR85: 466666.6667 | AS85: 466666.6667 | AT85: 466666.6667 | AU85: 466666.6667 | AV85: 466666.6667 | AW85: 466666.6667 | AX85: 466666.6667 | AY85: 140000 | AZ85: 140000 | BA85: 140000 | BB85: 140000 | BC85: 0 | BD85: 0 | BE85: 0 | BF85: 0 | BG85: 0 | BH85: 0 | BI85: 0 | BJ85: 0 | BK85: 0 | BL85: 0 | BM85: 0 | BN85: 0 | BO85: 0 | BP85: 0 | BQ85: 0 | BR85: 0 | BS85: 0 | BT85: 0 | BU85: 0 | BV85: 0 | BW85: 0 | BX85: 0 | BY85: =BY81+BY83+BY84 -> 0 | BZ85: 0 | CA85: 0 | CB85: 0 | CC85: 0 | CD85: 0 | CE85: 0 | CF85: 0 | CG85: 0 | CH85: 0 | CI85: 0 | CJ85: 0 | CK85: 0 | CL85: 0 | CM85: 0 | CN85: 0 | CO85: 0 | CP85: 0 | CQ85: 0 | CR85: 0 | CS85: 0 | CT85: 0 | CU85: 0 | CV85: 0 | CW85: 0 | CX85: 0 | CY85: 0 | CZ85: 0 | DA85: 0 | DB85: 0 | DC85: 0 | DD85: 0 | DE85: 0 | DF85: 0 | DG85: 0 | DH85: =DH81+DH83+DH84 -> 0 | DI85: =DI81+DI83+DI84 -> 0 | DJ85: =DJ81+DJ83+DJ84 -> 0 | DK85: =DK81+DK83+DK84 -> 0 | DL85: =DL81+DL83+DL84 -> 0 | DM85: =DM81+DM83+DM84 -> 0 | DN85: =DN81+DN83+DN84 -> 0 | DO85: =DO81+DO83+DO84 -> 0 | DP85: =DP81+DP83+DP84 -> 0 | DQ85: =DQ81+DQ83+DQ84 -> 0 | DR85: =DR81+DR83+DR84 -> 0 | DS85: =DS81+DS83+DS84 -> 0 | DT85: =DT81+DT83+DT84 -> 0 | DU85: =DU81+DU83+DU84 -> 0 | DV85: =DV81+DV83+DV84 -> 0 | DW85: =DW81+DW83+DW84 -> 0 | DX85: =DX81+DX83+DX84 -> 0 | DY85: =DY81+DY83+DY84 -> 0 | DZ85: =DZ81+DZ83+DZ84 -> 0 | EA85: =EA81+EA83+EA84 -> 0 | EB85: =EB81+EB83+EB84 -> 0 | EC85: =EC81+EC83+EC84 -> 0 | ED85: =ED81+ED83+ED84 -> 0 | EE85: =EE81+EE83+EE84 -> 0 | EF85: =EF81+EF83+EF84 -> 0 | EG85: =EG81+EG83+EG84 -> 0 | EH85: =EH81+EH83+EH84 -> 0 | EI85: =EI81+EI83+EI84 -> 0 | EJ85: =EJ81+EJ83+EJ84 -> 0 | EK85: =EK81+EK83+EK84 -> 0 | EL85: =EL81+EL83+EL84 -> 0 | EM85: =EM81+EM83+EM84 -> 0 | EN85: =EN81+EN83+EN84 -> 0 | EO85: =EO81+EO83+EO84 -> 0 | EP85: =EP81+EP83+EP84 -> 0 | EQ85: =EQ81+EQ83+EQ84 -> 0 | ER85: =ER81+ER83+ER84 -> 0 | ES85: =ES81+ES83+ES84 -> 0 | ET85: =ET81+ET83+ET84 -> 0 | EU85: =EU81+EU83+EU84 -> 0 | EV85: =EV81+EV83+EV84 -> 0 | EW85: =EW81+EW83+EW84 -> 0 | EX85: =EX81+EX83+EX84 -> 0 | EY85: =EY81+EY83+EY84 -> 0 | EZ85: =EZ81+EZ83+EZ84 -> 0 | FA85: =FA81+FA83+FA84 -> 0 | FB85: =FB81+FB83+FB84 -> 0 | FC85: =FC81+FC83+FC84 -> 0 | FD85: =FD81+FD83+FD84 -> 0 | FE85: =FE81+FE83+FE84 -> 0 | FF85: =FF81+FF83+FF84 -> 0 | FG85: =FG81+FG83+FG84 -> 0 | FH85: =FH81+FH83+FH84 -> 0 | FI85: =FI81+FI83+FI84 -> 0 | FJ85: =FJ81+FJ83+FJ84 -> 0 | FK85: =FK81+FK83+FK84 -> 0 | FL85: =FL81+FL83+FL84 -> 0 | FM85: =FM81+FM83+FM84 -> 0 | FN85: =FN81+FN83+FN84 -> 0 | FO85: =FO81+FO83+FO84 -> 0 | FP85: =FP81+FP83+FP84 -> 0 | FQ85: =FQ81+FQ83+FQ84 -> 0 | FR85: =FR81+FR83+FR84 -> 0 | FS85: =FS81+FS83+FS84 -> 0 | FT85: =FT81+FT83+FT84 -> 0 | FU85: =FU81+FU83+FU84 -> 0 | FV85: =FV81+FV83+FV84 -> 0 | FW85: =FW81+FW83+FW84 -> 0
C87: Rooms | H87: =G31 -> 80 | L87: =L5*$H$87 -> 0 | M87: =M5*$H$87 -> 0 | N87: 0 | O87: 0 | P87: 0 | Q87: 0 | R87: 0 | S87: 0 | T87: 0 | U87: 0 | V87: 0 | W87: 0 | X87: 0 | Y87: 0 | Z87: 0 | AA87: 0 | AB87: 0 | AC87: 0 | AD87: 0 | AE87: 0 | AF87: 0 | AG87: 0 | AH87: 0 | AI87: 0 | AJ87: 0 | AK87: 0 | AL87: 0 | AM87: 0 | AN87: 0 | AO87: 0 | AP87: 0 | AQ87: 0 | AR87: 0 | AS87: 0 | AT87: 0 | AU87: 0 | AV87: 0 | AW87: 0 | AX87: 0 | AY87: 0 | AZ87: 0 | BA87: 0 | BB87: 0 | BC87: 80 | BD87: 80 | BE87: 80 | BF87: 80 | BG87: 80 | BH87: 80 | BI87: 80 | BJ87: 80 | BK87: 80 | BL87: 80 | BM87: 80 | BN87: 80 | BO87: 80 | BP87: 80 | BQ87: 80 | BR87: 80 | BS87: 80 | BT87: 80 | BU87: 80 | BV87: 80 | BW87: 80 | BX87: 80 | BY87: =BY5*$H$87 -> 80 | BZ87: 80 | CA87: 80 | CB87: 80 | CC87: 80 | CD87: 80 | CE87: 80 | CF87: 80 | CG87: 80 | CH87: 80 | CI87: 80 | CJ87: 80 | CK87: 80 | CL87: 80 | CM87: 80 | CN87: 80 | CO87: 80 | CP87: 80 | CQ87: 80 | CR87: 80 | CS87: 80 | CT87: 80 | CU87: 80 | CV87: 80 | CW87: 80 | CX87: 80 | CY87: 80 | CZ87: 80 | DA87: 80 | DB87: 80 | DC87: 80 | DD87: 80 | DE87: 80 | DF87: 80 | DG87: 80 | DH87: =DH5*$H$87 -> 80 | DI87: 80 | DJ87: 80 | DK87: 80 | DL87: 80 | DM87: 80 | DN87: 80 | DO87: 80 | DP87: 80 | DQ87: 80 | DR87: 80 | DS87: 80 | DT87: 80 | DU87: 80 | DV87: 80 | DW87: 80 | DX87: 80 | DY87: 80 | DZ87: 80 | EA87: 80 | EB87: 80 | EC87: 80 | ED87: 80 | EE87: 80 | EF87: 80 | EG87: 80 | EH87: 80 | EI87: 80 | EJ87: 80 | EK87: 80 | EL87: 80 | EM87: 80 | EN87: 80 | EO87: 80 | EP87: 80 | EQ87: 80 | ER87: 80 | ES87: 80 | ET87: 80 | EU87: 80 | EV87: 80 | EW87: 80 | EX87: 80 | EY87: 0 | EZ87: 0 | FA87: 0 | FB87: 0 | FC87: 0 | FD87: 0 | FE87: 0 | FF87: 0 | FG87: 0 | FH87: 0 | FI87: 0 | FJ87: 0 | FK87: 0 | FL87: 0 | FM87: 0 | FN87: 0 | FO87: 0 | FP87: 0 | FQ87: 0 | FR87: 0 | FS87: 0 | FT87: =FT5*$H$87 -> 0 | FU87: 0 | FV87: 0 | FW87: 0
A89: Operating Cash Flow
B90: Revenues
C91: Inflation Rate - Revenues | E91: Pct | L91: =(1+LOOKUP(L12,42:42,43:43))^(1/L13)-1 -> 0.005 | M91: =(1+LOOKUP(M12,42:42,43:43))^(1/M13)-1 -> 0.005 | N91: 0.005 | O91: 0.0004157148447 | P91: 0.0004157148447 | Q91: 0.0004157148447 | R91: 0.0004157148447 | S91: 0.0004157148447 | T91: 0.0004157148447 | U91: 0.0004157148447 | V91: 0.0004157148447 | W91: 0.0004157148447 | X91: 0.0004157148447 | Y91: 0.0004157148447 | Z91: 0.0004157148447 | AA91: 0.0008295381143 | AB91: 0.0008295381143 | AC91: 0.0008295381143 | AD91: 0.0008295381143 | AE91: 0.0008295381143 | AF91: 0.0008295381143 | AG91: 0.0008295381143 | AH91: 0.0008295381143 | AI91: 0.0008295381143 | AJ91: 0.0008295381143 | AK91: 0.0008295381143 | AL91: 0.0008295381143 | AM91: 0.0008295381143 | AN91: 0.0008295381143 | AO91: 0.0008295381143 | AP91: 0.0008295381143 | AQ91: 0.0008295381143 | AR91: 0.0008295381143 | AS91: 0.0008295381143 | AT91: 0.0008295381143 | AU91: 0.0008295381143 | AV91: 0.0008295381143 | AW91: 0.0008295381143 | AX91: 0.0008295381143 | AY91: 0.0008295381143 | AZ91: 0.0008295381143 | BA91: 0.0008295381143 | BB91: 0.0008295381143 | BC91: 0.002490679314 | BD91: 0.002490679314 | BE91: 0.002490679314 | BF91: 0.002490679314 | BG91: 0.002490679314 | BH91: 0.002490679314 | BI91: 0.002490679314 | BJ91: 0.002738728493 | BK91: 0.002738728493 | BL91: 0.002738728493 | BM91: 0.002738728493 | BN91: 0.002738728493 | BO91: 0.002738728493 | BP91: 0.002738728493 | BQ91: 0.002738728493 | BR91: 0.002738728493 | BS91: 0.002738728493 | BT91: 0.002738728493 | BU91: 0.002738728493 | BV91: 0.002738728493 | BW91: 0.002738728493 | BX91: 0.002738728493 | BY91: =(1+LOOKUP(BY12,42:42,43:43))^(1/BY13)-1 -> 0.002738728493 | BZ91: 0.003729088938 | CA91: 0.003729088938 | CB91: 0.003729088938 | CC91: 0.003729088938 | CD91: 0.003729088938 | CE91: 0.003729088938 | CF91: 0.003729088938 | CG91: 0.003729088938 | CH91: 0.003729088938 | CI91: 0.003729088938 | CJ91: 0.003729088938 | CK91: 0.003729088938 | CL91: 0.003729088938 | CM91: 0.003729088938 | CN91: 0.003729088938 | CO91: 0.003729088938 | CP91: 0.004469940043 | CQ91: 0.004469940043 | CR91: 0.004469940043 | CS91: 0.004469940043 | CT91: 0.004469940043 | CU91: 0.004469940043 | CV91: 0.004469940043 | CW91: 0.004469940043 | CX91: 0.004469940043 | CY91: 0.004469940043 | CZ91: 0.004469940043 | DA91: 0.004469940043 | DB91: 0.004469940043 | DC91: 0.004469940043 | DD91: 0.004469940043 | DE91: 0.004469940043 | DF91: 0.004469940043 | DG91: 0.004469940043 | DH91: =(1+LOOKUP(DH12,42:42,43:43))^(1/DH13)-1 -> 0.004469940043 | DI91: 0.004469940043 | DJ91: 0.004469940043 | DK91: 0.004469940043 | DL91: 0.004469940043 | DM91: 0.004469940043 | DN91: 0.004469940043 | DO91: 0.004469940043 | DP91: 0.004469940043 | DQ91: 0.004469940043 | DR91: 0.004469940043 | DS91: 0.004469940043 | DT91: 0.004469940043 | DU91: 0.004469940043 | DV91: 0.004469940043 | DW91: 0.004469940043 | DX91: 0.004469940043 | DY91: 0.004469940043 | DZ91: 0.004469940043 | EA91: 0.004469940043 | EB91: 0.004469940043 | EC91: 0.004469940043 | ED91: 0.004469940043 | EE91: 0.004469940043 | EF91: 0.004469940043 | EG91: 0.004469940043 | EH91: 0.004469940043 | EI91: 0.004469940043 | EJ91: 0.004469940043 | EK91: 0.004469940043 | EL91: 0.004469940043 | EM91: 0.004469940043 | EN91: 0.004469940043 | EO91: 0.004469940043 | EP91: 0.004469940043 | EQ91: 0.004469940043 | ER91: 0.004469940043 | ES91: 0.004469940043 | ET91: 0.004469940043 | EU91: 0.004469940043 | EV91: 0.004469940043 | EW91: 0.004469940043 | EX91: 0.004469940043 | EY91: 0.018 | EZ91: 0.018 | FA91: 0.018 | FB91: 0.018 | FC91: 0.018 | FD91: 0.018 | FE91: 0.018 | FF91: 0.018 | FG91: 0.018 | FH91: 0.018 | FI91: 0.018 | FJ91: 0.018 | FK91: 0.018 | FL91: 0.018 | FM91: 0.018 | FN91: 0.018 | FO91: 0.018 | FP91: 0.018 | FQ91: 0.018 | FR91: 0.018 | FS91: 0.018 | FT91: =(1+LOOKUP(FT12,42:42,43:43))^(1/FT13)-1 -> 0.018 | FU91: 0.018 | FV91: 0.018 | FW91: 0.018
C92: Inflation Rate - Costs | E92: Pct | L92: =(1+LOOKUP(L12,42:42,44:44))^(1/L13)-1 -> 0.005 | M92: =(1+LOOKUP(M12,42:42,44:44))^(1/M13)-1 -> 0.005 | N92: 0.005 | O92: 0.0004157148447 | P92: 0.0004157148447 | Q92: 0.0004157148447 | R92: 0.0004157148447 | S92: 0.0004157148447 | T92: 0.0004157148447 | U92: 0.0004157148447 | V92: 0.0004157148447 | W92: 0.0004157148447 | X92: 0.0004157148447 | Y92: 0.0004157148447 | Z92: 0.0004157148447 | AA92: 0.0008295381143 | AB92: 0.0008295381143 | AC92: 0.0008295381143 | AD92: 0.0008295381143 | AE92: 0.0008295381143 | AF92: 0.0008295381143 | AG92: 0.0008295381143 | AH92: 0.0008295381143 | AI92: 0.0008295381143 | AJ92: 0.0008295381143 | AK92: 0.0008295381143 | AL92: 0.0008295381143 | AM92: 0.0008295381143 | AN92: 0.0008295381143 | AO92: 0.0008295381143 | AP92: 0.0008295381143 | AQ92: 0.0008295381143 | AR92: 0.0008295381143 | AS92: 0.0008295381143 | AT92: 0.0008295381143 | AU92: 0.0008295381143 | AV92: 0.0008295381143 | AW92: 0.0008295381143 | AX92: 0.0008295381143 | AY92: 0.0008295381143 | AZ92: 0.0008295381143 | BA92: 0.0008295381143 | BB92: 0.0008295381143 | BC92: 0.002490679314 | BD92: 0.002490679314 | BE92: 0.002490679314 | BF92: 0.002490679314 | BG92: 0.002490679314 | BH92: 0.002490679314 | BI92: 0.002490679314 | BJ92: 0.002738728493 | BK92: 0.002738728493 | BL92: 0.002738728493 | BM92: 0.002738728493 | BN92: 0.002738728493 | BO92: 0.002738728493 | BP92: 0.002738728493 | BQ92: 0.002738728493 | BR92: 0.002738728493 | BS92: 0.002738728493 | BT92: 0.002738728493 | BU92: 0.002738728493 | BV92: 0.002738728493 | BW92: 0.002738728493 | BX92: 0.002738728493 | BY92: =(1+LOOKUP(BY12,42:42,44:44))^(1/BY13)-1 -> 0.002738728493 | BZ92: 0.003729088938 | CA92: 0.003729088938 | CB92: 0.003729088938 | CC92: 0.003729088938 | CD92: 0.003729088938 | CE92: 0.003729088938 | CF92: 0.003729088938 | CG92: 0.003729088938 | CH92: 0.003729088938 | CI92: 0.003729088938 | CJ92: 0.003729088938 | CK92: 0.003729088938 | CL92: 0.003729088938 | CM92: 0.003729088938 | CN92: 0.003729088938 | CO92: 0.003729088938 | CP92: 0.004962931573 | CQ92: 0.004962931573 | CR92: 0.004962931573 | CS92: 0.004962931573 | CT92: 0.004962931573 | CU92: 0.004962931573 | CV92: 0.004962931573 | CW92: 0.004962931573 | CX92: 0.004962931573 | CY92: 0.004962931573 | CZ92: 0.004962931573 | DA92: 0.004962931573 | DB92: 0.004962931573 | DC92: 0.004962931573 | DD92: 0.004962931573 | DE92: 0.004962931573 | DF92: 0.005455198648 | DG92: 0.005455198648 | DH92: =(1+LOOKUP(DH12,42:42,44:44))^(1/DH13)-1 -> 0.005455198648 | DI92: 0.005455198648 | DJ92: 0.005455198648 | DK92: 0.005455198648 | DL92: 0.005455198648 | DM92: 0.005455198648 | DN92: 0.005455198648 | DO92: 0.005455198648 | DP92: 0.005455198648 | DQ92: 0.005455198648 | DR92: 0.005455198648 | DS92: 0.005455198648 | DT92: 0.005455198648 | DU92: 0.005455198648 | DV92: 0.005455198648 | DW92: 0.005455198648 | DX92: 0.005455198648 | DY92: 0.005455198648 | DZ92: 0.005455198648 | EA92: 0.005455198648 | EB92: 0.005455198648 | EC92: 0.005455198648 | ED92: 0.005455198648 | EE92: 0.005455198648 | EF92: 0.005455198648 | EG92: 0.005455198648 | EH92: 0.005455198648 | EI92: 0.005455198648 | EJ92: 0.005455198648 | EK92: 0.005455198648 | EL92: 0.005455198648 | EM92: 0.005455198648 | EN92: 0.005455198648 | EO92: 0.005455198648 | EP92: 0.005455198648 | EQ92: 0.005455198648 | ER92: 0.005455198648 | ES92: 0.005455198648 | ET92: 0.005455198648 | EU92: 0.005455198648 | EV92: 0.005455198648 | EW92: 0.005455198648 | EX92: 0.005455198648 | EY92: 0.022 | EZ92: 0.022 | FA92: 0.022 | FB92: 0.022 | FC92: 0.022 | FD92: 0.022 | FE92: 0.022 | FF92: 0.022 | FG92: 0.022 | FH92: 0.022 | FI92: 0.022 | FJ92: 0.022 | FK92: 0.022 | FL92: 0.022 | FM92: 0.022 | FN92: 0.022 | FO92: 0.022 | FP92: 0.022 | FQ92: 0.022 | FR92: 0.022 | FS92: 0.022 | FT92: =(1+LOOKUP(FT12,42:42,44:44))^(1/FT13)-1 -> 0.022 | FU92: 0.022 | FV92: 0.022 | FW92: 0.022
C93: Inflation Index Revenues | E93: Index | K93: 1 | L93: =K93*(1+L91) -> 1.005 | M93: =L93*(1+M91) -> 1.010025 | N93: 1.015075125 | O93: 1.015497107 | P93: 1.015919264 | Q93: 1.016341597 | R93: 1.016764105 | S93: 1.017186789 | T93: 1.017609649 | U93: 1.018032684 | V93: 1.018455895 | W93: 1.018879283 | X93: 1.019302846 | Y93: 1.019726585 | Z93: 1.020150501 | AA93: 1.020996754 | AB93: 1.02184371 | AC93: 1.022691368 | AD93: 1.02353973 | AE93: 1.024388795 | AF93: 1.025238565 | AG93: 1.026089039 | AH93: 1.026940219 | AI93: 1.027792105 | AJ93: 1.028644698 | AK93: 1.029497998 | AL93: 1.030352006 | AM93: 1.031206722 | AN93: 1.032062147 | AO93: 1.032918282 | AP93: 1.033775127 | AQ93: 1.034632683 | AR93: 1.03549095 | AS93: 1.036349929 | AT93: 1.037209621 | AU93: 1.038070026 | AV93: 1.038931145 | AW93: 1.039792978 | AX93: 1.040655526 | AY93: 1.041518789 | AZ93: 1.042382769 | BA93: 1.043247465 | BB93: 1.044112878 | BC93: 1.046713429 | BD93: 1.049320456 | BE93: 1.051933977 | BF93: 1.054554007 | BG93: 1.057180563 | BH93: 1.059813661 | BI93: 1.062453317 | BJ93: 1.065363088 | BK93: 1.068280828 | BL93: 1.071206559 | BM93: 1.074140303 | BN93: 1.077082082 | BO93: 1.080031917 | BP93: 1.082989831 | BQ93: 1.085955847 | BR93: 1.088929985 | BS93: 1.091912268 | BT93: 1.09490272 | BU93: 1.097901361 | BV93: 1.100908215 | BW93: 1.103923303 | BX93: 1.10694665 | BY93: =BX93*(1+BY91) -> 1.109978276 | BZ93: 1.114117484 | CA93: 1.118272127 | CB93: 1.122442263 | CC93: 1.12662795 | CD93: 1.130829246 | CE93: 1.135046209 | CF93: 1.139278897 | CG93: 1.143527369 | CH93: 1.147791685 | CI93: 1.152071902 | CJ93: 1.15636808 | CK93: 1.16068028 | CL93: 1.16500856 | CM93: 1.16935298 | CN93: 1.173713602 | CO93: 1.178090484 | CP93: 1.183356478 | CQ93: 1.18864601 | CR93: 1.193959187 | CS93: 1.199296113 | CT93: 1.204656894 | CU93: 1.210041639 | CV93: 1.215450452 | CW93: 1.220883443 | CX93: 1.226340719 | CY93: 1.231822388 | CZ93: 1.23732856 | DA93: 1.242859345 | DB93: 1.248414851 | DC93: 1.253995191 | DD93: 1.259600474 | DE93: 1.265230813 | DF93: 1.270886319 | DG93: 1.276567104 | DH93: =DG93*(1+DH91) -> 1.282273283 | DI93: 1.288004968 | DJ93: 1.293762273 | DK93: 1.299545312 | DL93: 1.305354202 | DM93: 1.311189057 | DN93: 1.317049993 | DO93: 1.322937128 | DP93: 1.328850578 | DQ93: 1.33479046 | DR93: 1.340756893 | DS93: 1.346749996 | DT93: 1.352769888 | DU93: 1.358816688 | DV93: 1.364890517 | DW93: 1.370991496 | DX93: 1.377119746 | DY93: 1.383275389 | DZ93: 1.389458547 | EA93: 1.395669343 | EB93: 1.401907901 | EC93: 1.408174346 | ED93: 1.414468801 | EE93: 1.420791391 | EF93: 1.427142244 | EG93: 1.433521484 | EH93: 1.439929239 | EI93: 1.446365636 | EJ93: 1.452830804 | EK93: 1.459324871 | EL93: 1.465847965 | EM93: 1.472400218 | EN93: 1.478981758 | EO93: 1.485592718 | EP93: 1.492233229 | EQ93: 1.498903422 | ER93: 1.50560343 | ES93: 1.512333387 | ET93: 1.519093427 | EU93: 1.525883683 | EV93: 1.532704292 | EW93: 1.539555388 | EX93: 1.546437108 | EY93: 1.574272976 | EZ93: 1.60260989 | FA93: 1.631456868 | FB93: 1.660823092 | FC93: 1.690717907 | FD93: 1.72115083 | FE93: 1.752131545 | FF93: 1.783669912 | FG93: 1.815775971 | FH93: 1.848459938 | FI93: 1.881732217 | FJ93: 1.915603397 | FK93: 1.950084258 | FL93: 1.985185775 | FM93: 2.020919119 | FN93: 2.057295663 | FO93: 2.094326985 | FP93: 2.132024871 | FQ93: 2.170401318 | FR93: 2.209468542 | FS93: 2.249238976 | FT93: =FS93*(1+FT91) -> 2.289725277 | FU93: 2.330940332 | FV93: 2.372897258 | FW93: 2.415609409
C94: Inflation Index Costs | E94: Index | K94: 1 | L94: =K94*(1+L92) -> 1.005 | M94: =L94*(1+M92) -> 1.010025 | N94: 1.015075125 | O94: 1.015497107 | P94: 1.015919264 | Q94: 1.016341597 | R94: 1.016764105 | S94: 1.017186789 | T94: 1.017609649 | U94: 1.018032684 | V94: 1.018455895 | W94: 1.018879283 | X94: 1.019302846 | Y94: 1.019726585 | Z94: 1.020150501 | AA94: 1.020996754 | AB94: 1.02184371 | AC94: 1.022691368 | AD94: 1.02353973 | AE94: 1.024388795 | AF94: 1.025238565 | AG94: 1.026089039 | AH94: 1.026940219 | AI94: 1.027792105 | AJ94: 1.028644698 | AK94: 1.029497998 | AL94: 1.030352006 | AM94: 1.031206722 | AN94: 1.032062147 | AO94: 1.032918282 | AP94: 1.033775127 | AQ94: 1.034632683 | AR94: 1.03549095 | AS94: 1.036349929 | AT94: 1.037209621 | AU94: 1.038070026 | AV94: 1.038931145 | AW94: 1.039792978 | AX94: 1.040655526 | AY94: 1.041518789 | AZ94: 1.042382769 | BA94: 1.043247465 | BB94: 1.044112878 | BC94: 1.046713429 | BD94: 1.049320456 | BE94: 1.051933977 | BF94: 1.054554007 | BG94: 1.057180563 | BH94: 1.059813661 | BI94: 1.062453317 | BJ94: 1.065363088 | BK94: 1.068280828 | BL94: 1.071206559 | BM94: 1.074140303 | BN94: 1.077082082 | BO94: 1.080031917 | BP94: 1.082989831 | BQ94: 1.085955847 | BR94: 1.088929985 | BS94: 1.091912268 | BT94: 1.09490272 | BU94: 1.097901361 | BV94: 1.100908215 | BW94: 1.103923303 | BX94: 1.10694665 | BY94: =BX94*(1+BY92) -> 1.109978276 | BZ94: 1.114117484 | CA94: 1.118272127 | CB94: 1.122442263 | CC94: 1.12662795 | CD94: 1.130829246 | CE94: 1.135046209 | CF94: 1.139278897 | CG94: 1.143527369 | CH94: 1.147791685 | CI94: 1.152071902 | CJ94: 1.15636808 | CK94: 1.16068028 | CL94: 1.16500856 | CM94: 1.16935298 | CN94: 1.173713602 | CO94: 1.178090484 | CP94: 1.183937266 | CQ94: 1.189813066 | CR94: 1.195718027 | CS94: 1.201652294 | CT94: 1.207616012 | CU94: 1.213609327 | CV94: 1.219632387 | CW94: 1.22568534 | CX94: 1.231768332 | CY94: 1.237881514 | CZ94: 1.244025035 | DA94: 1.250199046 | DB94: 1.256403699 | DC94: 1.262639144 | DD94: 1.268905536 | DE94: 1.275203027 | DF94: 1.282159513 | DG94: 1.289153948 | DH94: =DG94*(1+DH92) -> 1.296186539 | DI94: 1.303257494 | DJ94: 1.310367022 | DK94: 1.317515335 | DL94: 1.324702643 | DM94: 1.331929159 | DN94: 1.339195097 | DO94: 1.346500672 | DP94: 1.353846101 | DQ94: 1.3612316 | DR94: 1.368657389 | DS94: 1.376123687 | DT94: 1.383630715 | DU94: 1.391178695 | DV94: 1.398767852 | DW94: 1.406398408 | DX94: 1.414070591 | DY94: 1.421784627 | DZ94: 1.429540744 | EA94: 1.437339173 | EB94: 1.445180144 | EC94: 1.453063889 | ED94: 1.460990641 | EE94: 1.468960635 | EF94: 1.476974107 | EG94: 1.485031294 | EH94: 1.493132435 | EI94: 1.501277769 | EJ94: 1.509467537 | EK94: 1.517701983 | EL94: 1.525981348 | EM94: 1.53430588 | EN94: 1.542675823 | EO94: 1.551091426 | EP94: 1.559552938 | EQ94: 1.568060609 | ER94: 1.576614691 | ES94: 1.585215438 | ET94: 1.593863103 | EU94: 1.602557942 | EV94: 1.611300214 | EW94: 1.620090177 | EX94: 1.628928091 | EY94: 1.664764509 | EZ94: 1.701389328 | FA94: 1.738819893 | FB94: 1.777073931 | FC94: 1.816169557 | FD94: 1.856125288 | FE94: 1.896960044 | FF94: 1.938693165 | FG94: 1.981344415 | FH94: 2.024933992 | FI94: 2.06948254 | FJ94: 2.115011155 | FK94: 2.161541401 | FL94: 2.209095312 | FM94: 2.257695409 | FN94: 2.307364708 | FO94: 2.358126731 | FP94: 2.410005519 | FQ94: 2.463025641 | FR94: 2.517212205 | FS94: 2.572590873 | FT94: =FS94*(1+FT92) -> 2.629187872 | FU94: 2.687030006 | FV94: 2.746144666 | FW94: 2.806559848
C96: Room Rate per Day | E96: USD/Day | H96: =G48 -> 180 | L96: =$H$96 -> 180 | M96: =$H$96 -> 180 | N96: 180 | O96: 180 | P96: 180 | Q96: 180 | R96: 180 | S96: 180 | T96: 180 | U96: 180 | V96: 180 | W96: 180 | X96: 180 | Y96: 180 | Z96: 180 | AA96: 180 | AB96: 180 | AC96: 180 | AD96: 180 | AE96: 180 | AF96: 180 | AG96: 180 | AH96: 180 | AI96: 180 | AJ96: 180 | AK96: 180 | AL96: 180 | AM96: 180 | AN96: 180 | AO96: 180 | AP96: 180 | AQ96: 180 | AR96: 180 | AS96: 180 | AT96: 180 | AU96: 180 | AV96: 180 | AW96: 180 | AX96: 180 | AY96: 180 | AZ96: 180 | BA96: 180 | BB96: 180 | BC96: 180 | BD96: 180 | BE96: 180 | BF96: 180 | BG96: 180 | BH96: 180 | BI96: 180 | BJ96: 180 | BK96: 180 | BL96: 180 | BM96: 180 | BN96: 180 | BO96: 180 | BP96: 180 | BQ96: 180 | BR96: 180 | BS96: 180 | BT96: 180 | BU96: 180 | BV96: 180 | BW96: 180 | BX96: 180 | BY96: =$H$96 -> 180 | BZ96: 180 | CA96: 180 | CB96: 180 | CC96: 180 | CD96: 180 | CE96: 180 | CF96: 180 | CG96: 180 | CH96: 180 | CI96: 180 | CJ96: 180 | CK96: 180 | CL96: 180 | CM96: 180 | CN96: 180 | CO96: 180 | CP96: 180 | CQ96: 180 | CR96: 180 | CS96: 180 | CT96: 180 | CU96: 180 | CV96: 180 | CW96: 180 | CX96: 180 | CY96: 180 | CZ96: 180 | DA96: 180 | DB96: 180 | DC96: 180 | DD96: 180 | DE96: 180 | DF96: 180 | DG96: 180 | DH96: 180 | DI96: 180 | DJ96: 180 | DK96: 180 | DL96: 180 | DM96: 180 | DN96: 180 | DO96: 180 | DP96: 180 | DQ96: 180 | DR96: 180 | DS96: 180 | DT96: 180 | DU96: 180 | DV96: 180 | DW96: 180 | DX96: 180 | DY96: 180 | DZ96: 180 | EA96: 180 | EB96: 180 | EC96: 180 | ED96: 180 | EE96: 180 | EF96: 180 | EG96: 180 | EH96: 180 | EI96: 180 | EJ96: 180 | EK96: =$H$96 -> 180 | EL96: 180 | EM96: 180 | EN96: 180 | EO96: 180 | EP96: 180 | EQ96: 180 | ER96: 180 | ES96: 180 | ET96: 180 | EU96: 180 | EV96: 180 | EW96: 180 | EX96: 180 | EY96: 180 | EZ96: 180 | FA96: 180 | FB96: 180 | FC96: 180 | FD96: 180 | FE96: 180 | FF96: 180 | FG96: 180 | FH96: 180 | FI96: 180 | FJ96: 180 | FK96: 180 | FL96: 180 | FM96: 180 | FN96: 180 | FO96: 180 | FP96: 180 | FQ96: 180 | FR96: 180 | FS96: 180 | FT96: 180 | FU96: 180 | FV96: 180 | FW96: 180
C97: Inflated Room Rate per Day | E97: USD/Day | L97: =L96*L93 -> 180.9 | M97: =M96*M93 -> 181.8045 | N97: 182.7135225 | O97: 182.7894792 | P97: 182.8654675 | Q97: 182.9414874 | R97: 183.0175389 | S97: 183.093622 | T97: 183.1697367 | U97: 183.2458831 | V97: 183.3220612 | W97: 183.3982709 | X97: 183.4745122 | Y97: 183.5507853 | Z97: 183.6270901 | AA97: 183.7794158 | AB97: 183.9318678 | AC97: 184.0844463 | AD97: 184.2371514 | AE97: 184.3899831 | AF97: 184.5429416 | AG97: 184.696027 | AH97: 184.8492394 | AI97: 185.0025789 | AJ97: 185.1560456 | AK97: 185.3096396 | AL97: 185.463361 | AM97: 185.6172099 | AN97: 185.7711865 | AO97: 185.9252908 | AP97: 186.0795229 | AQ97: 186.2338829 | AR97: 186.388371 | AS97: 186.5429873 | AT97: 186.6977318 | AU97: 186.8526047 | AV97: 187.0076061 | AW97: 187.162736 | AX97: 187.3179946 | AY97: 187.473382 | AZ97: 187.6288984 | BA97: 187.7845437 | BB97: 187.9403181 | BC97: 188.4084172 | BD97: 188.8776821 | BE97: 189.3481159 | BF97: 189.8197213 | BG97: 190.2925013 | BH97: 190.7664589 | BI97: 191.241597 | BJ97: 191.7653558 | BK97: 192.2905491 | BL97: 192.8171807 | BM97: 193.3452546 | BN97: 193.8747747 | BO97: 194.4057451 | BP97: 194.9381697 | BQ97: 195.4720524 | BR97: 196.0073973 | BS97: 196.5442083 | BT97: 197.0824895 | BU97: 197.622245 | BV97: 198.1634786 | BW97: 198.7061946 | BX97: 199.2503969 | BY97: =BY96*BY93 -> 199.7960897 | BZ97: 200.541147 | CA97: 201.2889828 | CB97: 202.0396073 | CC97: 202.793031 | CD97: 203.5492643 | CE97: 204.3083176 | CF97: 205.0702014 | CG97: 205.8349265 | CH97: 206.6025032 | CI97: 207.3729423 | CJ97: 208.1462545 | CK97: 208.9224504 | CL97: 209.7015408 | CM97: 210.4835365 | CN97: 211.2684483 | CO97: 212.0562871 | CP97: 213.004166 | CQ97: 213.9562819 | CR97: 214.9126536 | CS97: 215.8733003 | CT97: 216.838241 | CU97: 217.8074949 | CV97: 218.7810814 | CW97: 219.7590197 | CX97: 220.7413293 | CY97: 221.7280298 | CZ97: 222.7191408 | DA97: 223.714682 | DB97: 224.7146733 | DC97: 225.7191344 | DD97: 226.7280854 | DE97: 227.7415463 | DF97: 228.7595374 | DG97: 229.7820788 | DH97: =DH96*DH93 -> 230.8091909 | DI97: =DI96*DI93 -> 231.8408942 | DJ97: =DJ96*DJ93 -> 232.8772091 | DK97: =DK96*DK93 -> 233.9181562 | DL97: =DL96*DL93 -> 234.9637563 | DM97: =DM96*DM93 -> 236.0140303 | DN97: =DN96*DN93 -> 237.0689988 | DO97: =DO96*DO93 -> 238.128683 | DP97: =DP96*DP93 -> 239.193104 | DQ97: =DQ96*DQ93 -> 240.2622828 | DR97: =DR96*DR93 -> 241.3362408 | DS97: =DS96*DS93 -> 242.4149993 | DT97: =DT96*DT93 -> 243.4985798 | DU97: =DU96*DU93 -> 244.5870039 | DV97: =DV96*DV93 -> 245.6802931 | DW97: =DW96*DW93 -> 246.7784693 | DX97: =DX96*DX93 -> 247.8815543 | DY97: =DY96*DY93 -> 248.98957 | DZ97: =DZ96*DZ93 -> 250.1025384 | EA97: =EA96*EA93 -> 251.2204818 | EB97: =EB96*EB93 -> 252.3434222 | EC97: =EC96*EC93 -> 253.4713822 | ED97: =ED96*ED93 -> 254.6043841 | EE97: =EE96*EE93 -> 255.7424504 | EF97: =EF96*EF93 -> 256.8856038 | EG97: =EG96*EG93 -> 258.0338671 | EH97: =EH96*EH93 -> 259.187263 | EI97: =EI96*EI93 -> 260.3458145 | EJ97: =EJ96*EJ93 -> 261.5095447 | EK97: =EK96*EK93 -> 262.6784767 | EL97: =EL96*EL93 -> 263.8526337 | EM97: =EM96*EM93 -> 265.0320392 | EN97: =EN96*EN93 -> 266.2167165 | EO97: =EO96*EO93 -> 267.4066893 | EP97: =EP96*EP93 -> 268.6019812 | EQ97: =EQ96*EQ93 -> 269.8026159 | ER97: =ER96*ER93 -> 271.0086174 | ES97: =ES96*ES93 -> 272.2200097 | ET97: =ET96*ET93 -> 273.4368168 | EU97: =EU96*EU93 -> 274.659063 | EV97: =EV96*EV93 -> 275.8867725 | EW97: =EW96*EW93 -> 277.1199699 | EX97: =EX96*EX93 -> 278.3586795 | EY97: =EY96*EY93 -> 283.3691357 | EZ97: =EZ96*EZ93 -> 288.4697802 | FA97: =FA96*FA93 -> 293.6622362 | FB97: =FB96*FB93 -> 298.9481565 | FC97: =FC96*FC93 -> 304.3292233 | FD97: =FD96*FD93 -> 309.8071493 | FE97: =FE96*FE93 -> 315.383678 | FF97: =FF96*FF93 -> 321.0605842 | FG97: =FG96*FG93 -> 326.8396747 | FH97: =FH96*FH93 -> 332.7227889 | FI97: =FI96*FI93 -> 338.7117991 | FJ97: =FJ96*FJ93 -> 344.8086115 | FK97: =FK96*FK93 -> 351.0151665 | FL97: =FL96*FL93 -> 357.3334395 | FM97: =FM96*FM93 -> 363.7654414 | FN97: =FN96*FN93 -> 370.3132193 | FO97: =FO96*FO93 -> 376.9788573 | FP97: =FP96*FP93 -> 383.7644767 | FQ97: =FQ96*FQ93 -> 390.6722373 | FR97: =FR96*FR93 -> 397.7043375 | FS97: =FS96*FS93 -> 404.8630156 | FT97: =FT96*FT93 -> 412.1505499 | FU97: =FU96*FU93 -> 419.5692598 | FV97: =FV96*FV93 -> 427.1215065 | FW97: =FW96*FW93 -> 434.8096936
C99: Utilisation Rate | E99: Pct | L99: =LOOKUP(L8,50:50,51:51) ->  | M99: =LOOKUP(M8,50:50,51:51) ->  | BC99: 0.6 | BD99: 0.6 | BE99: 0.6 | BF99: 0.6 | BG99: 0.65 | BH99: 0.65 | BI99: 0.65 | BJ99: 0.65 | BK99: 0.7 | BL99: 0.7 | BM99: 0.7 | BN99: 0.7 | BO99: 0.75 | BP99: 0.75 | BQ99: 0.75 | BR99: 0.75 | BS99: 0.75 | BT99: 0.75 | BU99: 0.75 | BV99: 0.75 | BW99: 0.75 | BX99: 0.75 | BY99: =LOOKUP(BY8,50:50,51:51) -> 0.75 | BZ99: 0.75 | CA99: 0.75 | CB99: 0.75 | CC99: 0.75 | CD99: 0.75 | CE99: 0.75 | CF99: 0.75 | CG99: 0.75 | CH99: 0.75 | CI99: 0.75 | CJ99: 0.75 | CK99: 0.75 | CL99: 0.75 | CM99: 0.75 | CN99: 0.75 | CO99: 0.75 | CP99: 0.75 | CQ99: 0.75 | CR99: 0.75 | CS99: 0.75 | CT99: 0.75 | CU99: 0.75 | CV99: 0.75 | CW99: 0.75 | CX99: 0.75 | CY99: 0.75 | CZ99: 0.75 | DA99: 0.75 | DB99: 0.75 | DC99: 0.75 | DD99: 0.75 | DE99: 0.75 | DF99: 0.75 | DG99: 0.75 | DH99: =LOOKUP(DH8,50:50,51:51) -> 0.75 | DI99: 0.75 | DJ99: 0.75 | DK99: 0.75 | DL99: 0.75 | DM99: 0.75 | DN99: 0.75 | DO99: 0.75 | DP99: 0.75 | DQ99: 0.75 | DR99: 0.75 | DS99: 0.75 | DT99: 0.75 | DU99: 0.75 | DV99: 0.75 | DW99: 0.75 | DX99: 0.75 | DY99: 0.75 | DZ99: 0.75 | EA99: 0.75 | EB99: 0.75 | EC99: 0.75 | ED99: 0.75 | EE99: 0.75 | EF99: 0.75 | EG99: 0.75 | EH99: 0.75 | EI99: 0.75 | EJ99: 0.75 | EK99: 0.75 | EL99: 0.75 | EM99: 0.75 | EN99: 0.75 | EO99: 0.75 | EP99: 0.75 | EQ99: 0.75 | ER99: 0.75 | ES99: 0.75 | ET99: 0.75 | EU99: 0.75 | EV99: 0.75 | EW99: 0.75 | EX99: 0.75 | EY99: 0.75 | EZ99: 0.75 | FA99: 0.75 | FB99: 0.75 | FC99: 0.75 | FD99: 0.75 | FE99: 0.75 | FF99: 0.75 | FG99: 0.75 | FH99: 0.75 | FI99: 0.75 | FJ99: 0.75 | FK99: 0.75 | FL99: 0.75 | FM99: 0.75 | FN99: 0.75 | FO99: 0.75 | FP99: 0.75 | FQ99: 0.75 | FR99: 0.75 | FS99: 0.75 | FT99: =LOOKUP(FT8,50:50,51:51) -> 0.75 | FU99: 0.75 | FV99: 0.75 | FW99: 0.75
C100: Rooms Sold | E100: Room/Period | L100: =IF(L5,L99*L87*360*L14) -> FALSE | M100: =IF(M5,M99*M87*360*M14) -> FALSE | N100: FALSE | O100: FALSE | P100: FALSE | Q100: FALSE | R100: FALSE | S100: FALSE | T100: FALSE | U100: FALSE | V100: FALSE | W100: FALSE | X100: FALSE | Y100: FALSE | Z100: FALSE | AA100: FALSE | AB100: FALSE | AC100: FALSE | AD100: FALSE | AE100: FALSE | AF100: FALSE | AG100: FALSE | AH100: FALSE | AI100: FALSE | AJ100: FALSE | AK100: FALSE | AL100: FALSE | AM100: FALSE | AN100: FALSE | AO100: FALSE | AP100: FALSE | AQ100: FALSE | AR100: FALSE | AS100: FALSE | AT100: FALSE | AU100: FALSE | AV100: FALSE | AW100: FALSE | AX100: FALSE | AY100: FALSE | AZ100: FALSE | BA100: FALSE | BB100: FALSE | BC100: 4320 | BD100: 4320 | BE100: 4320 | BF100: 4320 | BG100: 4680 | BH100: 4680 | BI100: 4680 | BJ100: 4680 | BK100: 5040 | BL100: 5040 | BM100: 5040 | BN100: 5040 | BO100: 5400 | BP100: 5400 | BQ100: 5400 | BR100: 5400 | BS100: 5400 | BT100: 5400 | BU100: 5400 | BV100: 5400 | BW100: 5400 | BX100: 5400 | BY100: =IF(BY5,BY99*BY87*360*BY14) -> 5400 | BZ100: 5400 | CA100: 5400 | CB100: 5400 | CC100: 5400 | CD100: 5400 | CE100: 5400 | CF100: 5400 | CG100: 5400 | CH100: 5400 | CI100: 5400 | CJ100: 5400 | CK100: 5400 | CL100: 5400 | CM100: 5400 | CN100: 5400 | CO100: 5400 | CP100: 5400 | CQ100: 5400 | CR100: 5400 | CS100: 5400 | CT100: 5400 | CU100: 5400 | CV100: 5400 | CW100: 5400 | CX100: 5400 | CY100: 5400 | CZ100: 5400 | DA100: 5400 | DB100: 5400 | DC100: 5400 | DD100: 5400 | DE100: 5400 | DF100: 5400 | DG100: 5400 | DH100: =IF(DH5,DH99*DH87*360*DH14) -> 5400 | DI100: =IF(DI5,DI99*DI87*360*DI14) -> 5400 | DJ100: =IF(DJ5,DJ99*DJ87*360*DJ14) -> 5400 | DK100: =IF(DK5,DK99*DK87*360*DK14) -> 5400 | DL100: =IF(DL5,DL99*DL87*360*DL14) -> 5400 | DM100: =IF(DM5,DM99*DM87*360*DM14) -> 5400 | DN100: =IF(DN5,DN99*DN87*360*DN14) -> 5400 | DO100: =IF(DO5,DO99*DO87*360*DO14) -> 5400 | DP100: =IF(DP5,DP99*DP87*360*DP14) -> 5400 | DQ100: =IF(DQ5,DQ99*DQ87*360*DQ14) -> 5400 | DR100: =IF(DR5,DR99*DR87*360*DR14) -> 5400 | DS100: =IF(DS5,DS99*DS87*360*DS14) -> 5400 | DT100: =IF(DT5,DT99*DT87*360*DT14) -> 5400 | DU100: =IF(DU5,DU99*DU87*360*DU14) -> 5400 | DV100: =IF(DV5,DV99*DV87*360*DV14) -> 5400 | DW100: =IF(DW5,DW99*DW87*360*DW14) -> 5400 | DX100: =IF(DX5,DX99*DX87*360*DX14) -> 5400 | DY100: =IF(DY5,DY99*DY87*360*DY14) -> 5400 | DZ100: =IF(DZ5,DZ99*DZ87*360*DZ14) -> 5400 | EA100: =IF(EA5,EA99*EA87*360*EA14) -> 5400 | EB100: =IF(EB5,EB99*EB87*360*EB14) -> 5400 | EC100: =IF(EC5,EC99*EC87*360*EC14) -> 5400 | ED100: =IF(ED5,ED99*ED87*360*ED14) -> 5400 | EE100: =IF(EE5,EE99*EE87*360*EE14) -> 5400 | EF100: =IF(EF5,EF99*EF87*360*EF14) -> 5400 | EG100: =IF(EG5,EG99*EG87*360*EG14) -> 5400 | EH100: =IF(EH5,EH99*EH87*360*EH14) -> 5400 | EI100: =IF(EI5,EI99*EI87*360*EI14) -> 5400 | EJ100: =IF(EJ5,EJ99*EJ87*360*EJ14) -> 5400 | EK100: =IF(EK5,EK99*EK87*360*EK14) -> 5400 | EL100: =IF(EL5,EL99*EL87*360*EL14) -> 5400 | EM100: =IF(EM5,EM99*EM87*360*EM14) -> 5400 | EN100: =IF(EN5,EN99*EN87*360*EN14) -> 5400 | EO100: =IF(EO5,EO99*EO87*360*EO14) -> 5400 | EP100: =IF(EP5,EP99*EP87*360*EP14) -> 5400 | EQ100: =IF(EQ5,EQ99*EQ87*360*EQ14) -> 5400 | ER100: =IF(ER5,ER99*ER87*360*ER14) -> 5400 | ES100: =IF(ES5,ES99*ES87*360*ES14) -> 5400 | ET100: =IF(ET5,ET99*ET87*360*ET14) -> 5400 | EU100: =IF(EU5,EU99*EU87*360*EU14) -> 5400 | EV100: =IF(EV5,EV99*EV87*360*EV14) -> 5400 | EW100: =IF(EW5,EW99*EW87*360*EW14) -> 5400 | EX100: =IF(EX5,EX99*EX87*360*EX14) -> 5400 | EY100: =IF(EY5,EY99*EY87*360*EY14) -> FALSE | EZ100: =IF(EZ5,EZ99*EZ87*360*EZ14) -> FALSE | FA100: =IF(FA5,FA99*FA87*360*FA14) -> FALSE | FB100: =IF(FB5,FB99*FB87*360*FB14) -> FALSE | FC100: =IF(FC5,FC99*FC87*360*FC14) -> FALSE | FD100: =IF(FD5,FD99*FD87*360*FD14) -> FALSE | FE100: =IF(FE5,FE99*FE87*360*FE14) -> FALSE | FF100: =IF(FF5,FF99*FF87*360*FF14) -> FALSE | FG100: =IF(FG5,FG99*FG87*360*FG14) -> FALSE | FH100: =IF(FH5,FH99*FH87*360*FH14) -> FALSE | FI100: =IF(FI5,FI99*FI87*360*FI14) -> FALSE | FJ100: =IF(FJ5,FJ99*FJ87*360*FJ14) -> FALSE | FK100: =IF(FK5,FK99*FK87*360*FK14) -> FALSE | FL100: =IF(FL5,FL99*FL87*360*FL14) -> FALSE | FM100: =IF(FM5,FM99*FM87*360*FM14) -> FALSE | FN100: =IF(FN5,FN99*FN87*360*FN14) -> FALSE | FO100: =IF(FO5,FO99*FO87*360*FO14) -> FALSE | FP100: =IF(FP5,FP99*FP87*360*FP14) -> FALSE | FQ100: =IF(FQ5,FQ99*FQ87*360*FQ14) -> FALSE | FR100: =IF(FR5,FR99*FR87*360*FR14) -> FALSE | FS100: =IF(FS5,FS99*FS87*360*FS14) -> FALSE | FT100: =IF(FT5,FT99*FT87*360*FT14) -> FALSE | FU100: =IF(FU5,FU99*FU87*360*FU14) -> FALSE | FV100: =IF(FV5,FV99*FV87*360*FV14) -> FALSE | FW100: =IF(FW5,FW99*FW87*360*FW14) -> FALSE
D101: Total Revenues from Rooms | L101: =L100*L97 -> 0 | M101: =M100*M97 -> 0 | N101: 0 | O101: 0 | P101: 0 | Q101: 0 | R101: 0 | S101: 0 | T101: 0 | U101: 0 | V101: 0 | W101: 0 | X101: 0 | Y101: 0 | Z101: 0 | AA101: 0 | AB101: 0 | AC101: 0 | AD101: 0 | AE101: 0 | AF101: 0 | AG101: 0 | AH101: 0 | AI101: 0 | AJ101: 0 | AK101: 0 | AL101: 0 | AM101: 0 | AN101: 0 | AO101: 0 | AP101: 0 | AQ101: 0 | AR101: 0 | AS101: 0 | AT101: 0 | AU101: 0 | AV101: 0 | AW101: 0 | AX101: 0 | AY101: 0 | AZ101: 0 | BA101: 0 | BB101: 0 | BC101: 813924.3622 | BD101: 815951.5868 | BE101: 817983.8605 | BF101: 820021.196 | BG101: 890568.9063 | BH101: 892787.0279 | BI101: 895010.674 | BJ101: 897461.8653 | BK101: 969144.3673 | BL101: 971798.5906 | BM101: 974460.0831 | BN101: 977128.8647 | BO101: 1049791.024 | BP101: 1052666.116 | BQ101: 1055549.083 | BR101: 1058439.945 | BS101: 1061338.725 | BT101: 1064245.443 | BU101: 1067160.123 | BV101: 1070082.785 | BW101: 1073013.451 | BX101: 1075952.143 | BY101: =BY100*BY97 -> 1078898.884 | BZ101: 1082922.194 | CA101: 1086960.507 | CB101: 1091013.88 | CC101: 1095082.367 | CD101: 1099166.027 | CE101: 1103264.915 | CF101: 1107379.088 | CG101: 1111508.603 | CH101: 1115653.517 | CI101: 1119813.889 | CJ101: 1123989.774 | CK101: 1128181.232 | CL101: 1132388.32 | CM101: 1136611.097 | CN101: 1140849.621 | CO101: 1145103.95 | CP101: 1150222.496 | CQ101: 1155363.922 | CR101: 1160528.33 | CS101: 1165715.822 | CT101: 1170926.501 | CU101: 1176160.473 | CV101: 1181417.839 | CW101: 1186698.706 | CX101: 1192003.178 | CY101: 1197331.361 | CZ101: 1202683.361 | DA101: 1208059.283 | DB101: 1213459.236 | DC101: 1218883.326 | DD101: 1224331.661 | DE101: 1229804.35 | DF101: 1235301.502 | DG101: 1240823.226 | DH101: =DH100*DH97 -> 1246369.631 | DI101: =DI100*DI97 -> 1251940.828 | DJ101: =DJ100*DJ97 -> 1257536.929 | DK101: =DK100*DK97 -> 1263158.044 | DL101: =DL100*DL97 -> 1268804.284 | DM101: =DM100*DM97 -> 1274475.763 | DN101: =DN100*DN97 -> 1280172.594 | DO101: =DO100*DO97 -> 1285894.888 | DP101: =DP100*DP97 -> 1291642.761 | DQ101: =DQ100*DQ97 -> 1297416.327 | DR101: =DR100*DR97 -> 1303215.7 | DS101: =DS100*DS97 -> 1309040.996 | DT101: =DT100*DT97 -> 1314892.331 | DU101: =DU100*DU97 -> 1320769.821 | DV101: =DV100*DV97 -> 1326673.583 | DW101: =DW100*DW97 -> 1332603.734 | DX101: =DX100*DX97 -> 1338560.393 | DY101: =DY100*DY97 -> 1344543.678 | DZ101: =DZ100*DZ97 -> 1350553.707 | EA101: =EA100*EA97 -> 1356590.601 | EB101: =EB100*EB97 -> 1362654.48 | EC101: =EC100*EC97 -> 1368745.464 | ED101: =ED100*ED97 -> 1374863.674 | EE101: =EE100*EE97 -> 1381009.232 | EF101: =EF100*EF97 -> 1387182.261 | EG101: =EG100*EG97 -> 1393382.882 | EH101: =EH100*EH97 -> 1399611.22 | EI101: =EI100*EI97 -> 1405867.399 | EJ101: =EJ100*EJ97 -> 1412151.541 | EK101: =EK100*EK97 -> 1418463.774 | EL101: =EL100*EL97 -> 1424804.222 | EM101: =EM100*EM97 -> 1431173.012 | EN101: =EN100*EN97 -> 1437570.269 | EO101: =EO100*EO97 -> 1443996.122 | EP101: =EP100*EP97 -> 1450450.698 | EQ101: =EQ100*EQ97 -> 1456934.126 | ER101: =ER100*ER97 -> 1463446.534 | ES101: =ES100*ES97 -> 1469988.052 | ET101: =ET100*ET97 -> 1476558.811 | EU101: =EU100*EU97 -> 1483158.94 | EV101: =EV100*EV97 -> 1489788.572 | EW101: =EW100*EW97 -> 1496447.837 | EX101: =EX100*EX97 -> 1503136.869 | EY101: =EY100*EY97 -> 0 | EZ101: =EZ100*EZ97 -> 0 | FA101: =FA100*FA97 -> 0 | FB101: =FB100*FB97 -> 0 | FC101: =FC100*FC97 -> 0 | FD101: =FD100*FD97 -> 0 | FE101: =FE100*FE97 -> 0 | FF101: =FF100*FF97 -> 0 | FG101: =FG100*FG97 -> 0 | FH101: =FH100*FH97 -> 0 | FI101: =FI100*FI97 -> 0 | FJ101: =FJ100*FJ97 -> 0 | FK101: =FK100*FK97 -> 0 | FL101: =FL100*FL97 -> 0 | FM101: =FM100*FM97 -> 0 | FN101: =FN100*FN97 -> 0 | FO101: =FO100*FO97 -> 0 | FP101: =FP100*FP97 -> 0 | FQ101: =FQ100*FQ97 -> 0 | FR101: =FR100*FR97 -> 0 | FS101: =FS100*FS97 -> 0 | FT101: =FT100*FT97 -> 0 | FU101: =FU100*FU97 -> 0 | FV101: =FV100*FV97 -> 0 | FW101: =FW100*FW97 -> 0
C103: Other Revenue Percent | E103: Pct | L103: =LOOKUP(L8,50:50,52:52) ->  | M103: =LOOKUP(M8,50:50,52:52) ->  | BC103: 0.31 | BD103: 0.31 | BE103: 0.31 | BF103: 0.31 | BG103: 0.31 | BH103: 0.31 | BI103: 0.31 | BJ103: 0.31 | BK103: 0.31 | BL103: 0.31 | BM103: 0.31 | BN103: 0.31 | BO103: 0.31 | BP103: 0.31 | BQ103: 0.31 | BR103: 0.31 | BS103: 0.31 | BT103: 0.31 | BU103: 0.31 | BV103: 0.31 | BW103: 0.31 | BX103: 0.31 | BY103: =LOOKUP(BY8,50:50,52:52) -> 0.31 | BZ103: 0.31 | CA103: 0.31 | CB103: 0.31 | CC103: 0.31 | CD103: 0.31 | CE103: 0.31 | CF103: 0.31 | CG103: 0.31 | CH103: 0.31 | CI103: 0.31 | CJ103: 0.31 | CK103: 0.31 | CL103: 0.31 | CM103: 0.31 | CN103: 0.31 | CO103: 0.31 | CP103: 0.31 | CQ103: 0.31 | CR103: 0.31 | CS103: 0.31 | CT103: 0.31 | CU103: 0.31 | CV103: 0.31 | CW103: 0.31 | CX103: 0.31 | CY103: 0.31 | CZ103: 0.31 | DA103: 0.31 | DB103: 0.31 | DC103: 0.31 | DD103: 0.31 | DE103: 0.31 | DF103: 0.31 | DG103: 0.31 | DH103: =LOOKUP(DH8,50:50,52:52) -> 0.31 | DI103: 0.31 | DJ103: 0.31 | DK103: 0.31 | DL103: 0.31 | DM103: 0.31 | DN103: 0.31 | DO103: 0.31 | DP103: 0.31 | DQ103: 0.31 | DR103: 0.31 | DS103: 0.31 | DT103: 0.31 | DU103: 0.31 | DV103: 0.31 | DW103: 0.31 | DX103: 0.31 | DY103: 0.31 | DZ103: 0.31 | EA103: 0.31 | EB103: 0.31 | EC103: 0.31 | ED103: 0.31 | EE103: 0.31 | EF103: 0.31 | EG103: 0.31 | EH103: 0.31 | EI103: 0.31 | EJ103: 0.31 | EK103: 0.31 | EL103: 0.31 | EM103: 0.31 | EN103: 0.31 | EO103: 0.31 | EP103: 0.31 | EQ103: 0.31 | ER103: 0.31 | ES103: 0.31 | ET103: 0.31 | EU103: 0.31 | EV103: 0.31 | EW103: 0.31 | EX103: 0.31 | EY103: 0.31 | EZ103: 0.31 | FA103: 0.31 | FB103: 0.31 | FC103: 0.31 | FD103: 0.31 | FE103: 0.31 | FF103: 0.31 | FG103: 0.31 | FH103: 0.31 | FI103: 0.31 | FJ103: 0.31 | FK103: 0.31 | FL103: 0.31 | FM103: 0.31 | FN103: 0.31 | FO103: 0.31 | FP103: 0.31 | FQ103: 0.31 | FR103: 0.31 | FS103: 0.31 | FT103: =LOOKUP(FT8,50:50,52:52) -> 0.31 | FU103: 0.31 | FV103: 0.31 | FW103: 0.31
D104: Other Revenues | L104: =IF(L5,L101*L103) -> FALSE | M104: =IF(M5,M101*M103) -> FALSE | N104: FALSE | O104: FALSE | P104: FALSE | Q104: FALSE | R104: FALSE | S104: FALSE | T104: FALSE | U104: FALSE | V104: FALSE | W104: FALSE | X104: FALSE | Y104: FALSE | Z104: FALSE | AA104: FALSE | AB104: FALSE | AC104: FALSE | AD104: FALSE | AE104: FALSE | AF104: FALSE | AG104: FALSE | AH104: FALSE | AI104: FALSE | AJ104: FALSE | AK104: FALSE | AL104: FALSE | AM104: FALSE | AN104: FALSE | AO104: FALSE | AP104: FALSE | AQ104: FALSE | AR104: FALSE | AS104: FALSE | AT104: FALSE | AU104: FALSE | AV104: FALSE | AW104: FALSE | AX104: FALSE | AY104: FALSE | AZ104: FALSE | BA104: FALSE | BB104: FALSE | BC104: 252316.5523 | BD104: 252944.9919 | BE104: 253574.9968 | BF104: 254206.5708 | BG104: 276076.361 | BH104: 276763.9786 | BI104: 277453.309 | BJ104: 278213.1782 | BK104: 300434.7539 | BL104: 301257.5631 | BM104: 302082.6258 | BN104: 302909.9481 | BO104: 325435.2173 | BP104: 326326.496 | BQ104: 327220.2157 | BR104: 328116.383 | BS104: 329015.0047 | BT104: 329916.0875 | BU104: 330819.6381 | BV104: 331725.6632 | BW104: 332634.1698 | BX104: 333545.1644 | BY104: =IF(BY5,BY101*BY103) -> 334458.6541 | BZ104: 335705.8802 | CA104: 336957.7572 | CB104: 338214.3027 | CC104: 339475.5339 | CD104: 340741.4684 | CE104: 342012.1236 | CF104: 343287.5172 | CG104: 344567.6669 | CH104: 345852.5904 | CI104: 347142.3055 | CJ104: 348436.83 | CK104: 349736.1819 | CL104: 351040.3792 | CM104: 352349.44 | CN104: 353663.3824 | CO104: 354982.2246 | CP104: 356568.9739 | CQ104: 358162.8158 | CR104: 359763.7821 | CS104: 361371.9047 | CT104: 362987.2154 | CU104: 364609.7465 | CV104: 366239.5302 | CW104: 367876.599 | CX104: 369520.9853 | CY104: 371172.722 | CZ104: 372831.8418 | DA104: 374498.3777 | DB104: 376172.363 | DC104: 377853.831 | DD104: 379542.8149 | DE104: 381239.3485 | DF104: 382943.4656 | DG104: 384655.1999 | DH104: =IF(DH5,DH101*DH103) -> 386374.5856 | DI104: =IF(DI5,DI101*DI103) -> 388101.6568 | DJ104: =IF(DJ5,DJ101*DJ103) -> 389836.448 | DK104: =IF(DK5,DK101*DK103) -> 391578.9935 | DL104: =IF(DL5,DL101*DL103) -> 393329.3281 | DM104: =IF(DM5,DM101*DM103) -> 395087.4866 | DN104: =IF(DN5,DN101*DN103) -> 396853.504 | DO104: =IF(DO5,DO101*DO103) -> 398627.4154 | DP104: =IF(DP5,DP101*DP103) -> 400409.256 | DQ104: =IF(DQ5,DQ101*DQ103) -> 402199.0614 | DR104: =IF(DR5,DR101*DR103) -> 403996.8671 | DS104: =IF(DS5,DS101*DS103) -> 405802.7089 | DT104: =IF(DT5,DT101*DT103) -> 407616.6226 | DU104: =IF(DU5,DU101*DU103) -> 409438.6445 | DV104: =IF(DV5,DV101*DV103) -> 411268.8107 | DW104: =IF(DW5,DW101*DW103) -> 413107.1576 | DX104: =IF(DX5,DX101*DX103) -> 414953.7219 | DY104: =IF(DY5,DY101*DY103) -> 416808.5401 | DZ104: =IF(DZ5,DZ101*DZ103) -> 418671.6493 | EA104: =IF(EA5,EA101*EA103) -> 420543.0865 | EB104: =IF(EB5,EB101*EB103) -> 422422.8888 | EC104: =IF(EC5,EC101*EC103) -> 424311.0938 | ED104: =IF(ED5,ED101*ED103) -> 426207.739 | EE104: =IF(EE5,EE101*EE103) -> 428112.862 | EF104: =IF(EF5,EF101*EF103) -> 430026.5008 | EG104: =IF(EG5,EG101*EG103) -> 431948.6935 | EH104: =IF(EH5,EH101*EH103) -> 433879.4783 | EI104: =IF(EI5,EI101*EI103) -> 435818.8935 | EJ104: =IF(EJ5,EJ101*EJ103) -> 437766.9779 | EK104: =IF(EK5,EK101*EK103) -> 439723.77 | EL104: =IF(EL5,EL101*EL103) -> 441689.3089 | EM104: =IF(EM5,EM101*EM103) -> 443663.6336 | EN104: =IF(EN5,EN101*EN103) -> 445646.7835 | EO104: =IF(EO5,EO101*EO103) -> 447638.7979 | EP104: =IF(EP5,EP101*EP103) -> 449639.7165 | EQ104: =IF(EQ5,EQ101*EQ103) -> 451649.579 | ER104: =IF(ER5,ER101*ER103) -> 453668.4256 | ES104: =IF(ES5,ES101*ES103) -> 455696.2962 | ET104: =IF(ET5,ET101*ET103) -> 457733.2313 | EU104: =IF(EU5,EU101*EU103) -> 459779.2714 | EV104: =IF(EV5,EV101*EV103) -> 461834.4572 | EW104: =IF(EW5,EW101*EW103) -> 463898.8296 | EX104: =IF(EX5,EX101*EX103) -> 465972.4295 | EY104: =IF(EY5,EY101*EY103) -> FALSE | EZ104: =IF(EZ5,EZ101*EZ103) -> FALSE | FA104: =IF(FA5,FA101*FA103) -> FALSE | FB104: =IF(FB5,FB101*FB103) -> FALSE | FC104: =IF(FC5,FC101*FC103) -> FALSE | FD104: =IF(FD5,FD101*FD103) -> FALSE | FE104: =IF(FE5,FE101*FE103) -> FALSE | FF104: =IF(FF5,FF101*FF103) -> FALSE | FG104: =IF(FG5,FG101*FG103) -> FALSE | FH104: =IF(FH5,FH101*FH103) -> FALSE | FI104: =IF(FI5,FI101*FI103) -> FALSE | FJ104: =IF(FJ5,FJ101*FJ103) -> FALSE | FK104: =IF(FK5,FK101*FK103) -> FALSE | FL104: =IF(FL5,FL101*FL103) -> FALSE | FM104: =IF(FM5,FM101*FM103) -> FALSE | FN104: =IF(FN5,FN101*FN103) -> FALSE | FO104: =IF(FO5,FO101*FO103) -> FALSE | FP104: =IF(FP5,FP101*FP103) -> FALSE | FQ104: =IF(FQ5,FQ101*FQ103) -> FALSE | FR104: =IF(FR5,FR101*FR103) -> FALSE | FS104: =IF(FS5,FS101*FS103) -> FALSE | FT104: =IF(FT5,FT101*FT103) -> FALSE | FU104: =IF(FU5,FU101*FU103) -> FALSE | FV104: =IF(FV5,FV101*FV103) -> FALSE | FW104: =IF(FW5,FW101*FW103) -> FALSE
D106: Total Revenues | L106: =L104+L101 -> 0 | M106: =M104+M101 -> 0 | N106: 0 | O106: 0 | P106: 0 | Q106: 0 | R106: 0 | S106: 0 | T106: 0 | U106: 0 | V106: 0 | W106: 0 | X106: 0 | Y106: 0 | Z106: 0 | AA106: 0 | AB106: 0 | AC106: 0 | AD106: 0 | AE106: 0 | AF106: 0 | AG106: 0 | AH106: 0 | AI106: 0 | AJ106: 0 | AK106: 0 | AL106: 0 | AM106: 0 | AN106: 0 | AO106: 0 | AP106: 0 | AQ106: 0 | AR106: 0 | AS106: 0 | AT106: 0 | AU106: 0 | AV106: 0 | AW106: 0 | AX106: 0 | AY106: 0 | AZ106: 0 | BA106: 0 | BB106: 0 | BC106: 1066240.914 | BD106: 1068896.579 | BE106: 1071558.857 | BF106: 1074227.767 | BG106: 1166645.267 | BH106: 1169551.007 | BI106: 1172463.983 | BJ106: 1175675.044 | BK106: 1269579.121 | BL106: 1273056.154 | BM106: 1276542.709 | BN106: 1280038.813 | BO106: 1375226.241 | BP106: 1378992.612 | BQ106: 1382769.299 | BR106: 1386556.328 | BS106: 1390353.73 | BT106: 1394161.531 | BU106: 1397979.761 | BV106: 1401808.448 | BW106: 1405647.621 | BX106: 1409497.308 | BY106: =BY104+BY101 -> 1413357.538 | BZ106: 1418628.074 | CA106: 1423918.264 | CB106: 1429228.182 | CC106: 1434557.901 | CD106: 1439907.495 | CE106: 1445277.038 | CF106: 1450666.605 | CG106: 1456076.27 | CH106: 1461506.108 | CI106: 1466956.194 | CJ106: 1472426.604 | CK106: 1477917.414 | CL106: 1483428.699 | CM106: 1488960.537 | CN106: 1494513.003 | CO106: 1500086.175 | CP106: 1506791.47 | CQ106: 1513526.738 | CR106: 1520292.112 | CS106: 1527087.726 | CT106: 1533913.717 | CU106: 1540770.219 | CV106: 1547657.37 | CW106: 1554575.305 | CX106: 1561524.164 | CY106: 1568504.083 | CZ106: 1575515.202 | DA106: 1582557.661 | DB106: 1589631.599 | DC106: 1596737.157 | DD106: 1603874.476 | DE106: 1611043.699 | DF106: 1618244.967 | DG106: 1625478.425 | DH106: =DH104+DH101 -> 1632744.217 | DI106: 1640042.485 | DJ106: 1647373.377 | DK106: 1654737.037 | DL106: 1662133.612 | DM106: 1669563.25 | DN106: 1677026.098 | DO106: 1684522.304 | DP106: 1692052.017 | DQ106: 1699615.389 | DR106: 1707212.567 | DS106: 1714843.705 | DT106: 1722508.954 | DU106: 1730208.466 | DV106: 1737942.394 | DW106: 1745710.892 | DX106: 1753514.115 | DY106: 1761352.218 | DZ106: 1769225.357 | EA106: 1777133.688 | EB106: 1785077.369 | EC106: 1793056.558 | ED106: 1801071.413 | EE106: 1809122.094 | EF106: 1817208.762 | EG106: 1825331.576 | EH106: 1833490.699 | EI106: 1841686.292 | EJ106: 1849918.519 | EK106: 1858187.544 | EL106: 1866493.531 | EM106: 1874836.645 | EN106: 1883217.053 | EO106: 1891634.92 | EP106: 1900090.415 | EQ106: 1908583.705 | ER106: 1917114.96 | ES106: 1925684.349 | ET106: 1934292.042 | EU106: 1942938.212 | EV106: 1951623.029 | EW106: 1960346.667 | EX106: 1969109.299 | EY106: 0 | EZ106: 0 | FA106: 0 | FB106: 0 | FC106: 0 | FD106: 0 | FE106: 0 | FF106: 0 | FG106: 0 | FH106: 0 | FI106: 0 | FJ106: 0 | FK106: 0 | FL106: 0 | FM106: 0 | FN106: 0 | FO106: 0 | FP106: 0 | FQ106: 0 | FR106: 0 | FS106: 0 | FT106: =FT104+FT101 -> 0 | FU106: 0 | FV106: 0 | FW106: 0
B108: Operating Costs
C109: Salaries
D110: Number of Staff | H110: =G55 -> 60 | L110: =$H$110*L5 -> 0 | M110: =$H$110*M5 -> 0 | N110: =$H$110*N5 -> 0 | O110: =$H$110*O5 -> 0 | P110: =$H$110*P5 -> 0 | Q110: =$H$110*Q5 -> 0 | R110: =$H$110*R5 -> 0 | S110: =$H$110*S5 -> 0 | T110: =$H$110*T5 -> 0 | U110: =$H$110*U5 -> 0 | V110: =$H$110*V5 -> 0 | W110: =$H$110*W5 -> 0 | X110: =$H$110*X5 -> 0 | Y110: =$H$110*Y5 -> 0 | Z110: =$H$110*Z5 -> 0 | AA110: =$H$110*AA5 -> 0 | AB110: =$H$110*AB5 -> 0 | AC110: =$H$110*AC5 -> 0 | AD110: =$H$110*AD5 -> 0 | AE110: =$H$110*AE5 -> 0 | AF110: =$H$110*AF5 -> 0 | AG110: =$H$110*AG5 -> 0 | AH110: =$H$110*AH5 -> 0 | AI110: =$H$110*AI5 -> 0 | AJ110: =$H$110*AJ5 -> 0 | AK110: =$H$110*AK5 -> 0 | AL110: =$H$110*AL5 -> 0 | AM110: =$H$110*AM5 -> 0 | AN110: =$H$110*AN5 -> 0 | AO110: =$H$110*AO5 -> 0 | AP110: =$H$110*AP5 -> 0 | AQ110: =$H$110*AQ5 -> 0 | AR110: =$H$110*AR5 -> 0 | AS110: =$H$110*AS5 -> 0 | AT110: =$H$110*AT5 -> 0 | AU110: =$H$110*AU5 -> 0 | AV110: =$H$110*AV5 -> 0 | AW110: =$H$110*AW5 -> 0 | AX110: =$H$110*AX5 -> 0 | AY110: =$H$110*AY5 -> 0 | AZ110: =$H$110*AZ5 -> 0 | BA110: =$H$110*BA5 -> 0 | BB110: =$H$110*BB5 -> 0 | BC110: =$H$110*BC5 -> 60 | BD110: =$H$110*BD5 -> 60 | BE110: =$H$110*BE5 -> 60 | BF110: =$H$110*BF5 -> 60 | BG110: =$H$110*BG5 -> 60 | BH110: =$H$110*BH5 -> 60 | BI110: =$H$110*BI5 -> 60 | BJ110: =$H$110*BJ5 -> 60 | BK110: =$H$110*BK5 -> 60 | BL110: =$H$110*BL5 -> 60 | BM110: =$H$110*BM5 -> 60 | BN110: =$H$110*BN5 -> 60 | BO110: =$H$110*BO5 -> 60 | BP110: =$H$110*BP5 -> 60 | BQ110: =$H$110*BQ5 -> 60 | BR110: =$H$110*BR5 -> 60 | BS110: =$H$110*BS5 -> 60 | BT110: =$H$110*BT5 -> 60 | BU110: =$H$110*BU5 -> 60 | BV110: =$H$110*BV5 -> 60 | BW110: =$H$110*BW5 -> 60 | BX110: =$H$110*BX5 -> 60 | BY110: =$H$110*BY5 -> 60 | BZ110: =$H$110*BZ5 -> 60 | CA110: =$H$110*CA5 -> 60 | CB110: =$H$110*CB5 -> 60 | CC110: =$H$110*CC5 -> 60 | CD110: =$H$110*CD5 -> 60 | CE110: =$H$110*CE5 -> 60 | CF110: =$H$110*CF5 -> 60 | CG110: =$H$110*CG5 -> 60 | CH110: =$H$110*CH5 -> 60 | CI110: =$H$110*CI5 -> 60 | CJ110: =$H$110*CJ5 -> 60 | CK110: =$H$110*CK5 -> 60 | CL110: =$H$110*CL5 -> 60 | CM110: =$H$110*CM5 -> 60 | CN110: =$H$110*CN5 -> 60 | CO110: =$H$110*CO5 -> 60 | CP110: =$H$110*CP5 -> 60 | CQ110: =$H$110*CQ5 -> 60 | CR110: =$H$110*CR5 -> 60 | CS110: =$H$110*CS5 -> 60 | CT110: =$H$110*CT5 -> 60 | CU110: =$H$110*CU5 -> 60 | CV110: =$H$110*CV5 -> 60 | CW110: =$H$110*CW5 -> 60 | CX110: =$H$110*CX5 -> 60 | CY110: =$H$110*CY5 -> 60 | CZ110: =$H$110*CZ5 -> 60 | DA110: =$H$110*DA5 -> 60 | DB110: =$H$110*DB5 -> 60 | DC110: =$H$110*DC5 -> 60 | DD110: =$H$110*DD5 -> 60 | DE110: =$H$110*DE5 -> 60 | DF110: =$H$110*DF5 -> 60 | DG110: =$H$110*DG5 -> 60 | DH110: =$H$110*DH5 -> 60 | DI110: 60 | DJ110: 60 | DK110: 60 | DL110: 60 | DM110: 60 | DN110: 60 | DO110: 60 | DP110: 60 | DQ110: 60 | DR110: 60 | DS110: 60 | DT110: 60 | DU110: 60 | DV110: 60 | DW110: 60 | DX110: 60 | DY110: 60 | DZ110: 60 | EA110: 60 | EB110: 60 | EC110: 60 | ED110: 60 | EE110: 60 | EF110: 60 | EG110: 60 | EH110: 60 | EI110: 60 | EJ110: 60 | EK110: 60 | EL110: 60 | EM110: 60 | EN110: 60 | EO110: 60 | EP110: 60 | EQ110: 60 | ER110: 60 | ES110: 60 | ET110: 60 | EU110: 60 | EV110: 60 | EW110: 60 | EX110: 60 | EY110: 0 | EZ110: 0 | FA110: 0 | FB110: 0 | FC110: 0 | FD110: 0 | FE110: 0 | FF110: 0 | FG110: 0 | FH110: 0 | FI110: 0 | FJ110: 0 | FK110: 0 | FL110: 0 | FM110: 0 | FN110: 0 | FO110: 0 | FP110: 0 | FQ110: 0 | FR110: 0 | FS110: 0 | FT110: =$H$110*FT5 -> 0 | FU110: 0 | FV110: 0 | FW110: 0
D112: Average Salary per Annum USD No Inflation | H112: =G56 -> 25000 | L112: =$H$112*L5 -> 0 | M112: =$H$112*M5 -> 0 | N112: =$H$112*N5 -> 0 | O112: =$H$112*O5 -> 0 | P112: =$H$112*P5 -> 0 | Q112: =$H$112*Q5 -> 0 | R112: =$H$112*R5 -> 0 | S112: =$H$112*S5 -> 0 | T112: =$H$112*T5 -> 0 | U112: =$H$112*U5 -> 0 | V112: =$H$112*V5 -> 0 | W112: =$H$112*W5 -> 0 | X112: =$H$112*X5 -> 0 | Y112: =$H$112*Y5 -> 0 | Z112: =$H$112*Z5 -> 0 | AA112: =$H$112*AA5 -> 0 | AB112: =$H$112*AB5 -> 0 | AC112: =$H$112*AC5 -> 0 | AD112: =$H$112*AD5 -> 0 | AE112: =$H$112*AE5 -> 0 | AF112: =$H$112*AF5 -> 0 | AG112: =$H$112*AG5 -> 0 | AH112: =$H$112*AH5 -> 0 | AI112: =$H$112*AI5 -> 0 | AJ112: =$H$112*AJ5 -> 0 | AK112: =$H$112*AK5 -> 0 | AL112: =$H$112*AL5 -> 0 | AM112: =$H$112*AM5 -> 0 | AN112: =$H$112*AN5 -> 0 | AO112: =$H$112*AO5 -> 0 | AP112: =$H$112*AP5 -> 0 | AQ112: =$H$112*AQ5 -> 0 | AR112: =$H$112*AR5 -> 0 | AS112: =$H$112*AS5 -> 0 | AT112: =$H$112*AT5 -> 0 | AU112: =$H$112*AU5 -> 0 | AV112: =$H$112*AV5 -> 0 | AW112: =$H$112*AW5 -> 0 | AX112: =$H$112*AX5 -> 0 | AY112: =$H$112*AY5 -> 0 | AZ112: =$H$112*AZ5 -> 0 | BA112: =$H$112*BA5 -> 0 | BB112: =$H$112*BB5 -> 0 | BC112: =$H$112*BC5 -> 25000 | BD112: =$H$112*BD5 -> 25000 | BE112: =$H$112*BE5 -> 25000 | BF112: =$H$112*BF5 -> 25000 | BG112: =$H$112*BG5 -> 25000 | BH112: =$H$112*BH5 -> 25000 | BI112: =$H$112*BI5 -> 25000 | BJ112: =$H$112*BJ5 -> 25000 | BK112: =$H$112*BK5 -> 25000 | BL112: =$H$112*BL5 -> 25000 | BM112: =$H$112*BM5 -> 25000 | BN112: =$H$112*BN5 -> 25000 | BO112: =$H$112*BO5 -> 25000 | BP112: =$H$112*BP5 -> 25000 | BQ112: =$H$112*BQ5 -> 25000 | BR112: =$H$112*BR5 -> 25000 | BS112: =$H$112*BS5 -> 25000 | BT112: =$H$112*BT5 -> 25000 | BU112: =$H$112*BU5 -> 25000 | BV112: =$H$112*BV5 -> 25000 | BW112: =$H$112*BW5 -> 25000 | BX112: =$H$112*BX5 -> 25000 | BY112: =$H$112*BY5 -> 25000 | BZ112: =$H$112*BZ5 -> 25000 | CA112: =$H$112*CA5 -> 25000 | CB112: =$H$112*CB5 -> 25000 | CC112: =$H$112*CC5 -> 25000 | CD112: =$H$112*CD5 -> 25000 | CE112: =$H$112*CE5 -> 25000 | CF112: =$H$112*CF5 -> 25000 | CG112: =$H$112*CG5 -> 25000 | CH112: =$H$112*CH5 -> 25000 | CI112: =$H$112*CI5 -> 25000 | CJ112: =$H$112*CJ5 -> 25000 | CK112: =$H$112*CK5 -> 25000 | CL112: =$H$112*CL5 -> 25000 | CM112: =$H$112*CM5 -> 25000 | CN112: =$H$112*CN5 -> 25000 | CO112: =$H$112*CO5 -> 25000 | CP112: =$H$112*CP5 -> 25000 | CQ112: =$H$112*CQ5 -> 25000 | CR112: =$H$112*CR5 -> 25000 | CS112: =$H$112*CS5 -> 25000 | CT112: =$H$112*CT5 -> 25000 | CU112: =$H$112*CU5 -> 25000 | CV112: =$H$112*CV5 -> 25000 | CW112: =$H$112*CW5 -> 25000 | CX112: =$H$112*CX5 -> 25000 | CY112: =$H$112*CY5 -> 25000 | CZ112: =$H$112*CZ5 -> 25000 | DA112: =$H$112*DA5 -> 25000 | DB112: =$H$112*DB5 -> 25000 | DC112: =$H$112*DC5 -> 25000 | DD112: =$H$112*DD5 -> 25000 | DE112: =$H$112*DE5 -> 25000 | DF112: =$H$112*DF5 -> 25000 | DG112: =$H$112*DG5 -> 25000 | DH112: =$H$112*DH5 -> 25000 | DI112: 25000 | DJ112: 25000 | DK112: 25000 | DL112: 25000 | DM112: 25000 | DN112: 25000 | DO112: 25000 | DP112: 25000 | DQ112: 25000 | DR112: 25000 | DS112: 25000 | DT112: 25000 | DU112: 25000 | DV112: 25000 | DW112: 25000 | DX112: 25000 | DY112: 25000 | DZ112: 25000 | EA112: 25000 | EB112: 25000 | EC112: 25000 | ED112: 25000 | EE112: 25000 | EF112: 25000 | EG112: 25000 | EH112: 25000 | EI112: 25000 | EJ112: 25000 | EK112: 25000 | EL112: 25000 | EM112: 25000 | EN112: 25000 | EO112: 25000 | EP112: 25000 | EQ112: 25000 | ER112: 25000 | ES112: 25000 | ET112: 25000 | EU112: 25000 | EV112: 25000 | EW112: 25000 | EX112: 25000 | EY112: 0 | EZ112: 0 | FA112: 0 | FB112: 0 | FC112: 0 | FD112: 0 | FE112: 0 | FF112: 0 | FG112: 0 | FH112: 0 | FI112: 0 | FJ112: 0 | FK112: 0 | FL112: 0 | FM112: 0 | FN112: 0 | FO112: 0 | FP112: 0 | FQ112: 0 | FR112: 0 | FS112: 0 | FT112: =$H$112*FT5 -> 0 | FU112: 0 | FV112: 0 | FW112: 0
D113: Average Salary per Annum USD With Inflation | L113: =L112*L94 -> 0 | M113: =M112*M94 -> 0 | N113: 0 | O113: 0 | P113: 0 | Q113: 0 | R113: 0 | S113: 0 | T113: 0 | U113: 0 | V113: 0 | W113: 0 | X113: 0 | Y113: 0 | Z113: 0 | AA113: 0 | AB113: 0 | AC113: 0 | AD113: 0 | AE113: 0 | AF113: 0 | AG113: 0 | AH113: 0 | AI113: 0 | AJ113: 0 | AK113: 0 | AL113: 0 | AM113: 0 | AN113: 0 | AO113: 0 | AP113: 0 | AQ113: 0 | AR113: 0 | AS113: 0 | AT113: 0 | AU113: 0 | AV113: 0 | AW113: 0 | AX113: 0 | AY113: 0 | AZ113: 0 | BA113: 0 | BB113: 0 | BC113: 26167.83572 | BD113: 26233.01141 | BE113: 26298.34943 | BF113: 26363.85018 | BG113: 26429.51408 | BH113: 26495.34152 | BI113: 26561.33292 | BJ113: 26634.0772 | BK113: 26707.0207 | BL113: 26780.16398 | BM113: 26853.50758 | BN113: 26927.05205 | BO113: 27000.79793 | BP113: 27074.74579 | BQ113: 27148.89616 | BR113: 27223.24962 | BS113: 27297.80671 | BT113: 27372.56799 | BU113: 27447.53402 | BV113: 27522.70537 | BW113: 27598.08258 | BX113: 27673.66624 | BY113: =BY112*BY94 -> 27749.4569 | BZ113: 27852.93709 | CA113: 27956.80317 | CB113: 28061.05657 | CC113: 28165.69875 | CD113: 28270.73115 | CE113: 28376.15522 | CF113: 28481.97242 | CG113: 28588.18423 | CH113: 28694.79211 | CI113: 28801.79754 | CJ113: 28909.20201 | CK113: 29017.007 | CL113: 29125.21399 | CM113: 29233.82451 | CN113: 29342.84004 | CO113: 29452.2621 | CP113: 29598.43166 | CQ113: 29745.32665 | CR113: 29892.95067 | CS113: 30041.30734 | CT113: 30190.40029 | CU113: 30340.23319 | CV113: 30490.80969 | CW113: 30642.13349 | CX113: 30794.2083 | CY113: 30947.03785 | CZ113: 31100.62588 | DA113: 31254.97616 | DB113: 31410.09247 | DC113: 31565.97861 | DD113: 31722.6384 | DE113: 31880.07568 | DF113: 32053.98783 | DG113: 32228.8487 | DH113: =DH112*DH94 -> 32404.66347 | DI113: =DI112*DI94 -> 32581.43735 | DJ113: =DJ112*DJ94 -> 32759.17556 | DK113: =DK112*DK94 -> 32937.88337 | DL113: =DL112*DL94 -> 33117.56607 | DM113: =DM112*DM94 -> 33298.22897 | DN113: =DN112*DN94 -> 33479.87742 | DO113: =DO112*DO94 -> 33662.5168 | DP113: =DP112*DP94 -> 33846.15252 | DQ113: =DQ112*DQ94 -> 34030.79001 | DR113: =DR112*DR94 -> 34216.43473 | DS113: =DS112*DS94 -> 34403.09217 | DT113: =DT112*DT94 -> 34590.76788 | DU113: =DU112*DU94 -> 34779.46739 | DV113: =DV112*DV94 -> 34969.19629 | DW113: =DW112*DW94 -> 35159.9602 | DX113: =DX112*DX94 -> 35351.76477 | DY113: =DY112*DY94 -> 35544.61567 | DZ113: =DZ112*DZ94 -> 35738.51861 | EA113: =EA112*EA94 -> 35933.47933 | EB113: =EB112*EB94 -> 36129.50359 | EC113: =EC112*EC94 -> 36326.59721 | ED113: =ED112*ED94 -> 36524.76602 | EE113: =EE112*EE94 -> 36724.01587 | EF113: =EF112*EF94 -> 36924.35267 | EG113: =EG112*EG94 -> 37125.78235 | EH113: =EH112*EH94 -> 37328.31087 | EI113: =EI112*EI94 -> 37531.94422 | EJ113: =EJ112*EJ94 -> 37736.68843 | EK113: =EK112*EK94 -> 37942.54956 | EL113: =EL112*EL94 -> 38149.53371 | EM113: =EM112*EM94 -> 38357.64699 | EN113: =EN112*EN94 -> 38566.89558 | EO113: =EO112*EO94 -> 38777.28565 | EP113: =EP112*EP94 -> 38988.82345 | EQ113: =EQ112*EQ94 -> 39201.51523 | ER113: =ER112*ER94 -> 39415.36728 | ES113: =ES112*ES94 -> 39630.38594 | ET113: =ET112*ET94 -> 39846.57757 | EU113: =EU112*EU94 -> 40063.94856 | EV113: =EV112*EV94 -> 40282.50536 | EW113: =EW112*EW94 -> 40502.25443 | EX113: =EX112*EX94 -> 40723.20227 | EY113: =EY112*EY94 -> 0 | EZ113: =EZ112*EZ94 -> 0 | FA113: =FA112*FA94 -> 0 | FB113: =FB112*FB94 -> 0 | FC113: =FC112*FC94 -> 0 | FD113: =FD112*FD94 -> 0 | FE113: =FE112*FE94 -> 0 | FF113: =FF112*FF94 -> 0 | FG113: =FG112*FG94 -> 0 | FH113: =FH112*FH94 -> 0 | FI113: =FI112*FI94 -> 0 | FJ113: =FJ112*FJ94 -> 0 | FK113: =FK112*FK94 -> 0 | FL113: =FL112*FL94 -> 0 | FM113: =FM112*FM94 -> 0 | FN113: =FN112*FN94 -> 0 | FO113: =FO112*FO94 -> 0 | FP113: =FP112*FP94 -> 0 | FQ113: =FQ112*FQ94 -> 0 | FR113: =FR112*FR94 -> 0 | FS113: =FS112*FS94 -> 0 | FT113: =FT112*FT94 -> 0 | FU113: =FU112*FU94 -> 0 | FV113: =FV112*FV94 -> 0 | FW113: =FW112*FW94 -> 0
D114: Average Salary per Period USD With Inflation | L114: =L113*L110*L14 -> 0 | M114: =M113*M110*M14 -> 0 | N114: 0 | O114: 0 | P114: 0 | Q114: 0 | R114: 0 | S114: 0 | T114: 0 | U114: 0 | V114: 0 | W114: 0 | X114: 0 | Y114: 0 | Z114: 0 | AA114: 0 | AB114: 0 | AC114: 0 | AD114: 0 | AE114: 0 | AF114: 0 | AG114: 0 | AH114: 0 | AI114: 0 | AJ114: 0 | AK114: 0 | AL114: 0 | AM114: 0 | AN114: 0 | AO114: 0 | AP114: 0 | AQ114: 0 | AR114: 0 | AS114: 0 | AT114: 0 | AU114: 0 | AV114: 0 | AW114: 0 | AX114: 0 | AY114: 0 | AZ114: 0 | BA114: 0 | BB114: 0 | BC114: 392517.5358 | BD114: 393495.1711 | BE114: 394475.2414 | BF114: 395457.7527 | BG114: 396442.7111 | BH114: 397430.1228 | BI114: 398419.9938 | BJ114: 399511.158 | BK114: 400605.3106 | BL114: 401702.4597 | BM114: 402802.6137 | BN114: 403905.7807 | BO114: 405011.969 | BP114: 406121.1868 | BQ114: 407233.4425 | BR114: 408348.7443 | BS114: 409467.1006 | BT114: 410588.5199 | BU114: 411713.0103 | BV114: 412840.5805 | BW114: 413971.2388 | BX114: 415104.9936 | BY114: =BY113*BY110*BY14 -> 416241.8535 | BZ114: 417794.0563 | CA114: 419352.0475 | CB114: 420915.8486 | CC114: 422485.4813 | CD114: 424060.9672 | CE114: 425642.3283 | CF114: 427229.5863 | CG114: 428822.7635 | CH114: 430421.8817 | CI114: 432026.9632 | CJ114: 433638.0301 | CK114: 435255.1049 | CL114: 436878.2099 | CM114: 438507.3676 | CN114: 440142.6006 | CO114: 441783.9315 | CP114: 443976.4749 | CQ114: 446179.8998 | CR114: 448394.2601 | CS114: 450619.6101 | CT114: 452856.0044 | CU114: 455103.4978 | CV114: 457362.1453 | CW114: 459632.0023 | CX114: 461913.1245 | CY114: 464205.5677 | CZ114: 466509.3882 | DA114: 468824.6424 | DB114: 471151.387 | DC114: 473489.6791 | DD114: 475839.576 | DE114: 478201.1352 | DF114: 480809.8174 | DG114: 483432.7305 | DH114: =DH113*DH110*DH14 -> 486069.9521 | DI114: =DI113*DI110*DI14 -> 488721.5602 | DJ114: =DJ113*DJ110*DJ14 -> 491387.6334 | DK114: =DK113*DK110*DK14 -> 494068.2505 | DL114: =DL113*DL110*DL14 -> 496763.491 | DM114: =DM113*DM110*DM14 -> 499473.4345 | DN114: =DN113*DN110*DN14 -> 502198.1613 | DO114: =DO113*DO110*DO14 -> 504937.7521 | DP114: =DP113*DP110*DP14 -> 507692.2878 | DQ114: =DQ113*DQ110*DQ14 -> 510461.8501 | DR114: =DR113*DR110*DR14 -> 513246.5209 | DS114: =DS113*DS110*DS14 -> 516046.3826 | DT114: =DT113*DT110*DT14 -> 518861.5181 | DU114: =DU113*DU110*DU14 -> 521692.0108 | DV114: =DV113*DV110*DV14 -> 524537.9443 | DW114: =DW113*DW110*DW14 -> 527399.403 | DX114: =DX113*DX110*DX14 -> 530276.4715 | DY114: =DY113*DY110*DY14 -> 533169.235 | DZ114: =DZ113*DZ110*DZ14 -> 536077.7791 | EA114: =EA113*EA110*EA14 -> 539002.1899 | EB114: =EB113*EB110*EB14 -> 541942.5539 | EC114: =EC113*EC110*EC14 -> 544898.9582 | ED114: =ED113*ED110*ED14 -> 547871.4903 | EE114: =EE113*EE110*EE14 -> 550860.2381 | EF114: =EF113*EF110*EF14 -> 553865.2901 | EG114: =EG113*EG110*EG14 -> 556886.7353 | EH114: =EH113*EH110*EH14 -> 559924.663 | EI114: =EI113*EI110*EI14 -> 562979.1633 | EJ114: =EJ113*EJ110*EJ14 -> 566050.3265 | EK114: =EK113*EK110*EK14 -> 569138.2435 | EL114: =EL113*EL110*EL14 -> 572243.0056 | EM114: =EM113*EM110*EM14 -> 575364.7049 | EN114: =EN113*EN110*EN14 -> 578503.4337 | EO114: =EO113*EO110*EO14 -> 581659.2848 | EP114: =EP113*EP110*EP14 -> 584832.3518 | EQ114: =EQ113*EQ110*EQ14 -> 588022.7284 | ER114: =ER113*ER110*ER14 -> 591230.5092 | ES114: =ES113*ES110*ES14 -> 594455.7891 | ET114: =ET113*ET110*ET14 -> 597698.6635 | EU114: =EU113*EU110*EU14 -> 600959.2284 | EV114: =EV113*EV110*EV14 -> 604237.5804 | EW114: =EW113*EW110*EW14 -> 607533.8164 | EX114: =EX113*EX110*EX14 -> 610848.0341 | EY114: =EY113*EY110*EY14 -> 0 | EZ114: =EZ113*EZ110*EZ14 -> 0 | FA114: =FA113*FA110*FA14 -> 0 | FB114: =FB113*FB110*FB14 -> 0 | FC114: =FC113*FC110*FC14 -> 0 | FD114: =FD113*FD110*FD14 -> 0 | FE114: =FE113*FE110*FE14 -> 0 | FF114: =FF113*FF110*FF14 -> 0 | FG114: =FG113*FG110*FG14 -> 0 | FH114: =FH113*FH110*FH14 -> 0 | FI114: =FI113*FI110*FI14 -> 0 | FJ114: =FJ113*FJ110*FJ14 -> 0 | FK114: =FK113*FK110*FK14 -> 0 | FL114: =FL113*FL110*FL14 -> 0 | FM114: =FM113*FM110*FM14 -> 0 | FN114: =FN113*FN110*FN14 -> 0 | FO114: =FO113*FO110*FO14 -> 0 | FP114: =FP113*FP110*FP14 -> 0 | FQ114: =FQ113*FQ110*FQ14 -> 0 | FR114: =FR113*FR110*FR14 -> 0 | FS114: =FS113*FS110*FS14 -> 0 | FT114: =FT113*FT110*FT14 -> 0 | FU114: =FU113*FU110*FU14 -> 0 | FV114: =FV113*FV110*FV14 -> 0 | FW114: =FW113*FW110*FW14 -> 0
C116: Other Costs
D117: Overhead Percent | H117: =G57 -> 0.3 | L117: =$H117*L$114 -> 0 | M117: =$H117*M$114 -> 0 | N117: =$H117*N$114 -> 0 | O117: =$H117*O$114 -> 0 | P117: =$H117*P$114 -> 0 | Q117: =$H117*Q$114 -> 0 | R117: =$H117*R$114 -> 0 | S117: =$H117*S$114 -> 0 | T117: =$H117*T$114 -> 0 | U117: =$H117*U$114 -> 0 | V117: =$H117*V$114 -> 0 | W117: =$H117*W$114 -> 0 | X117: =$H117*X$114 -> 0 | Y117: =$H117*Y$114 -> 0 | Z117: =$H117*Z$114 -> 0 | AA117: =$H117*AA$114 -> 0 | AB117: =$H117*AB$114 -> 0 | AC117: =$H117*AC$114 -> 0 | AD117: =$H117*AD$114 -> 0 | AE117: =$H117*AE$114 -> 0 | AF117: =$H117*AF$114 -> 0 | AG117: =$H117*AG$114 -> 0 | AH117: =$H117*AH$114 -> 0 | AI117: =$H117*AI$114 -> 0 | AJ117: =$H117*AJ$114 -> 0 | AK117: =$H117*AK$114 -> 0 | AL117: =$H117*AL$114 -> 0 | AM117: =$H117*AM$114 -> 0 | AN117: =$H117*AN$114 -> 0 | AO117: =$H117*AO$114 -> 0 | AP117: =$H117*AP$114 -> 0 | AQ117: =$H117*AQ$114 -> 0 | AR117: =$H117*AR$114 -> 0 | AS117: =$H117*AS$114 -> 0 | AT117: =$H117*AT$114 -> 0 | AU117: =$H117*AU$114 -> 0 | AV117: =$H117*AV$114 -> 0 | AW117: =$H117*AW$114 -> 0 | AX117: =$H117*AX$114 -> 0 | AY117: =$H117*AY$114 -> 0 | AZ117: =$H117*AZ$114 -> 0 | BA117: =$H117*BA$114 -> 0 | BB117: =$H117*BB$114 -> 0 | BC117: =$H117*BC$114 -> 117755.2607 | BD117: =$H117*BD$114 -> 118048.5513 | BE117: =$H117*BE$114 -> 118342.5724 | BF117: =$H117*BF$114 -> 118637.3258 | BG117: =$H117*BG$114 -> 118932.8133 | BH117: =$H117*BH$114 -> 119229.0368 | BI117: =$H117*BI$114 -> 119525.9981 | BJ117: =$H117*BJ$114 -> 119853.3474 | BK117: =$H117*BK$114 -> 120181.5932 | BL117: =$H117*BL$114 -> 120510.7379 | BM117: =$H117*BM$114 -> 120840.7841 | BN117: =$H117*BN$114 -> 121171.7342 | BO117: =$H117*BO$114 -> 121503.5907 | BP117: =$H117*BP$114 -> 121836.356 | BQ117: =$H117*BQ$114 -> 122170.0327 | BR117: =$H117*BR$114 -> 122504.6233 | BS117: =$H117*BS$114 -> 122840.1302 | BT117: =$H117*BT$114 -> 123176.556 | BU117: =$H117*BU$114 -> 123513.9031 | BV117: =$H117*BV$114 -> 123852.1741 | BW117: =$H117*BW$114 -> 124191.3716 | BX117: =$H117*BX$114 -> 124531.4981 | BY117: =$H117*BY$114 -> 124872.556 | BZ117: =$H117*BZ$114 -> 125338.2169 | CA117: =$H117*CA$114 -> 125805.6143 | CB117: =$H117*CB$114 -> 126274.7546 | CC117: =$H117*CC$114 -> 126745.6444 | CD117: =$H117*CD$114 -> 127218.2902 | CE117: =$H117*CE$114 -> 127692.6985 | CF117: =$H117*CF$114 -> 128168.8759 | CG117: =$H117*CG$114 -> 128646.829 | CH117: =$H117*CH$114 -> 129126.5645 | CI117: =$H117*CI$114 -> 129608.089 | CJ117: =$H117*CJ$114 -> 130091.409 | CK117: =$H117*CK$114 -> 130576.5315 | CL117: =$H117*CL$114 -> 131063.463 | CM117: =$H117*CM$114 -> 131552.2103 | CN117: =$H117*CN$114 -> 132042.7802 | CO117: =$H117*CO$114 -> 132535.1794 | CP117: =$H117*CP$114 -> 133192.9425 | CQ117: =$H117*CQ$114 -> 133853.9699 | CR117: =$H117*CR$114 -> 134518.278 | CS117: =$H117*CS$114 -> 135185.883 | CT117: =$H117*CT$114 -> 135856.8013 | CU117: =$H117*CU$114 -> 136531.0493 | CV117: =$H117*CV$114 -> 137208.6436 | CW117: =$H117*CW$114 -> 137889.6007 | CX117: =$H117*CX$114 -> 138573.9374 | CY117: =$H117*CY$114 -> 139261.6703 | CZ117: =$H117*CZ$114 -> 139952.8165 | DA117: =$H117*DA$114 -> 140647.3927 | DB117: =$H117*DB$114 -> 141345.4161 | DC117: =$H117*DC$114 -> 142046.9037 | DD117: =$H117*DD$114 -> 142751.8728 | DE117: =$H117*DE$114 -> 143460.3406 | DF117: =$H117*DF$114 -> 144242.9452 | DG117: =$H117*DG$114 -> 145029.8191 | DH117: =$H117*DH$114 -> 145820.9856 | DI117: 146616.4681 | DJ117: 147416.29 | DK117: 148220.4752 | DL117: 149029.0473 | DM117: 149842.0304 | DN117: 150659.4484 | DO117: 151481.3256 | DP117: 152307.6863 | DQ117: 153138.555 | DR117: 153973.9563 | DS117: 154813.9148 | DT117: 155658.4554 | DU117: 156507.6032 | DV117: 157361.3833 | DW117: 158219.8209 | DX117: 159082.9415 | DY117: 159950.7705 | DZ117: 160823.3337 | EA117: 161700.657 | EB117: 162582.7662 | EC117: 163469.6875 | ED117: 164361.4471 | EE117: 165258.0714 | EF117: 166159.587 | EG117: 167066.0206 | EH117: 167977.3989 | EI117: 168893.749 | EJ117: 169815.0979 | EK117: 170741.473 | EL117: 171672.9017 | EM117: 172609.4115 | EN117: 173551.0301 | EO117: 174497.7854 | EP117: 175449.7055 | EQ117: 176406.8185 | ER117: 177369.1528 | ES117: 178336.7367 | ET117: 179309.599 | EU117: 180287.7685 | EV117: 181271.2741 | EW117: 182260.1449 | EX117: 183254.4102 | EY117: 0 | EZ117: 0 | FA117: 0 | FB117: 0 | FC117: 0 | FD117: 0 | FE117: 0 | FF117: 0 | FG117: 0 | FH117: 0 | FI117: 0 | FJ117: 0 | FK117: 0 | FL117: 0 | FM117: 0 | FN117: 0 | FO117: 0 | FP117: 0 | FQ117: 0 | FR117: 0 | FS117: 0 | FT117: =$H117*FT$114 -> 0 | FU117: 0 | FV117: 0 | FW117: 0
D118: Other Cost | H118: =G58 -> 0.6 | L118: =$H118*L$114 -> 0 | M118: =$H118*M$114 -> 0 | N118: =$H118*N$114 -> 0 | O118: =$H118*O$114 -> 0 | P118: =$H118*P$114 -> 0 | Q118: =$H118*Q$114 -> 0 | R118: =$H118*R$114 -> 0 | S118: =$H118*S$114 -> 0 | T118: =$H118*T$114 -> 0 | U118: =$H118*U$114 -> 0 | V118: =$H118*V$114 -> 0 | W118: =$H118*W$114 -> 0 | X118: =$H118*X$114 -> 0 | Y118: =$H118*Y$114 -> 0 | Z118: =$H118*Z$114 -> 0 | AA118: =$H118*AA$114 -> 0 | AB118: =$H118*AB$114 -> 0 | AC118: =$H118*AC$114 -> 0 | AD118: =$H118*AD$114 -> 0 | AE118: =$H118*AE$114 -> 0 | AF118: =$H118*AF$114 -> 0 | AG118: =$H118*AG$114 -> 0 | AH118: =$H118*AH$114 -> 0 | AI118: =$H118*AI$114 -> 0 | AJ118: =$H118*AJ$114 -> 0 | AK118: =$H118*AK$114 -> 0 | AL118: =$H118*AL$114 -> 0 | AM118: =$H118*AM$114 -> 0 | AN118: =$H118*AN$114 -> 0 | AO118: =$H118*AO$114 -> 0 | AP118: =$H118*AP$114 -> 0 | AQ118: =$H118*AQ$114 -> 0 | AR118: =$H118*AR$114 -> 0 | AS118: =$H118*AS$114 -> 0 | AT118: =$H118*AT$114 -> 0 | AU118: =$H118*AU$114 -> 0 | AV118: =$H118*AV$114 -> 0 | AW118: =$H118*AW$114 -> 0 | AX118: =$H118*AX$114 -> 0 | AY118: =$H118*AY$114 -> 0 | AZ118: =$H118*AZ$114 -> 0 | BA118: =$H118*BA$114 -> 0 | BB118: =$H118*BB$114 -> 0 | BC118: =$H118*BC$114 -> 235510.5215 | BD118: =$H118*BD$114 -> 236097.1027 | BE118: =$H118*BE$114 -> 236685.1448 | BF118: =$H118*BF$114 -> 237274.6516 | BG118: =$H118*BG$114 -> 237865.6267 | BH118: =$H118*BH$114 -> 238458.0737 | BI118: =$H118*BI$114 -> 239051.9963 | BJ118: =$H118*BJ$114 -> 239706.6948 | BK118: =$H118*BK$114 -> 240363.1863 | BL118: =$H118*BL$114 -> 241021.4758 | BM118: =$H118*BM$114 -> 241681.5682 | BN118: =$H118*BN$114 -> 242343.4684 | BO118: =$H118*BO$114 -> 243007.1814 | BP118: =$H118*BP$114 -> 243672.7121 | BQ118: =$H118*BQ$114 -> 244340.0655 | BR118: =$H118*BR$114 -> 245009.2466 | BS118: =$H118*BS$114 -> 245680.2604 | BT118: =$H118*BT$114 -> 246353.1119 | BU118: =$H118*BU$114 -> 247027.8062 | BV118: =$H118*BV$114 -> 247704.3483 | BW118: =$H118*BW$114 -> 248382.7433 | BX118: =$H118*BX$114 -> 249062.9961 | BY118: =$H118*BY$114 -> 249745.1121 | BZ118: =$H118*BZ$114 -> 250676.4338 | CA118: =$H118*CA$114 -> 251611.2285 | CB118: =$H118*CB$114 -> 252549.5092 | CC118: =$H118*CC$114 -> 253491.2888 | CD118: =$H118*CD$114 -> 254436.5803 | CE118: =$H118*CE$114 -> 255385.397 | CF118: =$H118*CF$114 -> 256337.7518 | CG118: =$H118*CG$114 -> 257293.6581 | CH118: =$H118*CH$114 -> 258253.129 | CI118: =$H118*CI$114 -> 259216.1779 | CJ118: =$H118*CJ$114 -> 260182.8181 | CK118: =$H118*CK$114 -> 261153.063 | CL118: =$H118*CL$114 -> 262126.926 | CM118: =$H118*CM$114 -> 263104.4206 | CN118: =$H118*CN$114 -> 264085.5604 | CO118: =$H118*CO$114 -> 265070.3589 | CP118: =$H118*CP$114 -> 266385.885 | CQ118: =$H118*CQ$114 -> 267707.9399 | CR118: =$H118*CR$114 -> 269036.5561 | CS118: =$H118*CS$114 -> 270371.7661 | CT118: =$H118*CT$114 -> 271713.6027 | CU118: =$H118*CU$114 -> 273062.0987 | CV118: =$H118*CV$114 -> 274417.2872 | CW118: =$H118*CW$114 -> 275779.2014 | CX118: =$H118*CX$114 -> 277147.8747 | CY118: =$H118*CY$114 -> 278523.3406 | CZ118: =$H118*CZ$114 -> 279905.6329 | DA118: =$H118*DA$114 -> 281294.7854 | DB118: =$H118*DB$114 -> 282690.8322 | DC118: =$H118*DC$114 -> 284093.8075 | DD118: =$H118*DD$114 -> 285503.7456 | DE118: =$H118*DE$114 -> 286920.6811 | DF118: =$H118*DF$114 -> 288485.8904 | DG118: =$H118*DG$114 -> 290059.6383 | DH118: 291641.9712 | DI118: 293232.9361 | DJ118: 294832.58 | DK118: 296440.9503 | DL118: 298058.0946 | DM118: 299684.0607 | DN118: 301318.8968 | DO118: 302962.6512 | DP118: 304615.3727 | DQ118: 306277.1101 | DR118: 307947.9125 | DS118: 309627.8296 | DT118: 311316.9109 | DU118: 313015.2065 | DV118: 314722.7666 | DW118: 316439.6418 | DX118: 318165.8829 | DY118: 319901.541 | DZ118: 321646.6675 | EA118: 323401.3139 | EB118: 325165.5323 | EC118: 326939.3749 | ED118: 328722.8942 | EE118: 330516.1428 | EF118: 332319.1741 | EG118: 334132.0412 | EH118: 335954.7978 | EI118: 337787.498 | EJ118: 339630.1959 | EK118: 341482.9461 | EL118: 343345.8034 | EM118: 345218.8229 | EN118: 347102.0602 | EO118: 348995.5709 | EP118: 350899.4111 | EQ118: 352813.637 | ER118: 354738.3055 | ES118: 356673.4734 | ET118: 358619.1981 | EU118: 360575.5371 | EV118: 362542.5482 | EW118: 364520.2899 | EX118: 366508.8205 | EY118: 0 | EZ118: 0 | FA118: 0 | FB118: 0 | FC118: 0 | FD118: 0 | FE118: 0 | FF118: 0 | FG118: 0 | FH118: 0 | FI118: 0 | FJ118: 0 | FK118: 0 | FL118: 0 | FM118: 0 | FN118: 0 | FO118: 0 | FP118: 0 | FQ118: 0 | FR118: 0 | FS118: 0 | FT118: 0 | FU118: 0 | FV118: 0 | FW118: 0
D119: Food and Other Costs | H119: =G59 -> 0.39 | L119: =$H119*L$114 -> 0 | M119: =$H119*M$114 -> 0 | N119: =$H119*N$114 -> 0 | O119: =$H119*O$114 -> 0 | P119: =$H119*P$114 -> 0 | Q119: =$H119*Q$114 -> 0 | R119: =$H119*R$114 -> 0 | S119: =$H119*S$114 -> 0 | T119: =$H119*T$114 -> 0 | U119: =$H119*U$114 -> 0 | V119: =$H119*V$114 -> 0 | W119: =$H119*W$114 -> 0 | X119: =$H119*X$114 -> 0 | Y119: =$H119*Y$114 -> 0 | Z119: =$H119*Z$114 -> 0 | AA119: =$H119*AA$114 -> 0 | AB119: =$H119*AB$114 -> 0 | AC119: =$H119*AC$114 -> 0 | AD119: =$H119*AD$114 -> 0 | AE119: =$H119*AE$114 -> 0 | AF119: =$H119*AF$114 -> 0 | AG119: =$H119*AG$114 -> 0 | AH119: =$H119*AH$114 -> 0 | AI119: =$H119*AI$114 -> 0 | AJ119: =$H119*AJ$114 -> 0 | AK119: =$H119*AK$114 -> 0 | AL119: =$H119*AL$114 -> 0 | AM119: =$H119*AM$114 -> 0 | AN119: =$H119*AN$114 -> 0 | AO119: =$H119*AO$114 -> 0 | AP119: =$H119*AP$114 -> 0 | AQ119: =$H119*AQ$114 -> 0 | AR119: =$H119*AR$114 -> 0 | AS119: =$H119*AS$114 -> 0 | AT119: =$H119*AT$114 -> 0 | AU119: =$H119*AU$114 -> 0 | AV119: =$H119*AV$114 -> 0 | AW119: =$H119*AW$114 -> 0 | AX119: =$H119*AX$114 -> 0 | AY119: =$H119*AY$114 -> 0 | AZ119: =$H119*AZ$114 -> 0 | BA119: =$H119*BA$114 -> 0 | BB119: =$H119*BB$114 -> 0 | BC119: =$H119*BC$114 -> 153081.839 | BD119: =$H119*BD$114 -> 153463.1167 | BE119: =$H119*BE$114 -> 153845.3441 | BF119: =$H119*BF$114 -> 154228.5236 | BG119: =$H119*BG$114 -> 154612.6573 | BH119: =$H119*BH$114 -> 154997.7479 | BI119: =$H119*BI$114 -> 155383.7976 | BJ119: =$H119*BJ$114 -> 155809.3516 | BK119: =$H119*BK$114 -> 156236.0711 | BL119: =$H119*BL$114 -> 156663.9593 | BM119: =$H119*BM$114 -> 157093.0194 | BN119: =$H119*BN$114 -> 157523.2545 | BO119: =$H119*BO$114 -> 157954.6679 | BP119: =$H119*BP$114 -> 158387.2629 | BQ119: =$H119*BQ$114 -> 158821.0426 | BR119: =$H119*BR$114 -> 159256.0103 | BS119: =$H119*BS$114 -> 159692.1693 | BT119: =$H119*BT$114 -> 160129.5227 | BU119: =$H119*BU$114 -> 160568.074 | BV119: =$H119*BV$114 -> 161007.8264 | BW119: =$H119*BW$114 -> 161448.7831 | BX119: =$H119*BX$114 -> 161890.9475 | BY119: =$H119*BY$114 -> 162334.3228 | BZ119: =$H119*BZ$114 -> 162939.682 | CA119: =$H119*CA$114 -> 163547.2985 | CB119: =$H119*CB$114 -> 164157.181 | CC119: =$H119*CC$114 -> 164769.3377 | CD119: =$H119*CD$114 -> 165383.7772 | CE119: =$H119*CE$114 -> 166000.508 | CF119: =$H119*CF$114 -> 166619.5387 | CG119: =$H119*CG$114 -> 167240.8778 | CH119: =$H119*CH$114 -> 167864.5339 | CI119: =$H119*CI$114 -> 168490.5156 | CJ119: =$H119*CJ$114 -> 169118.8318 | CK119: =$H119*CK$114 -> 169749.4909 | CL119: =$H119*CL$114 -> 170382.5019 | CM119: =$H119*CM$114 -> 171017.8734 | CN119: =$H119*CN$114 -> 171655.6142 | CO119: =$H119*CO$114 -> 172295.7333 | CP119: =$H119*CP$114 -> 173150.8252 | CQ119: =$H119*CQ$114 -> 174010.1609 | CR119: =$H119*CR$114 -> 174873.7614 | CS119: =$H119*CS$114 -> 175741.648 | CT119: =$H119*CT$114 -> 176613.8417 | CU119: =$H119*CU$114 -> 177490.3641 | CV119: =$H119*CV$114 -> 178371.2367 | CW119: =$H119*CW$114 -> 179256.4809 | CX119: =$H119*CX$114 -> 180146.1186 | CY119: =$H119*CY$114 -> 181040.1714 | CZ119: =$H119*CZ$114 -> 181938.6614 | DA119: =$H119*DA$114 -> 182841.6105 | DB119: =$H119*DB$114 -> 183749.0409 | DC119: =$H119*DC$114 -> 184660.9748 | DD119: =$H119*DD$114 -> 185577.4346 | DE119: =$H119*DE$114 -> 186498.4427 | DF119: =$H119*DF$114 -> 187515.8288 | DG119: =$H119*DG$114 -> 188538.7649 | DH119: 189567.2813 | DI119: 190601.4085 | DJ119: 191641.177 | DK119: 192686.6177 | DL119: 193737.7615 | DM119: 194794.6395 | DN119: 195857.2829 | DO119: 196925.7233 | DP119: 197999.9922 | DQ119: 199080.1215 | DR119: 200166.1431 | DS119: 201258.0892 | DT119: 202355.9921 | DU119: 203459.8842 | DV119: 204569.7983 | DW119: 205685.7672 | DX119: 206807.8239 | DY119: 207936.0017 | DZ119: 209070.3339 | EA119: 210210.8541 | EB119: 211357.596 | EC119: 212510.5937 | ED119: 213669.8812 | EE119: 214835.4928 | EF119: 216007.4631 | EG119: 217185.8268 | EH119: 218370.6186 | EI119: 219561.8737 | EJ119: 220759.6273 | EK119: 221963.9149 | EL119: 223174.7722 | EM119: 224392.2349 | EN119: 225616.3391 | EO119: 226847.1211 | EP119: 228084.6172 | EQ119: 229328.8641 | ER119: 230579.8986 | ES119: 231837.7577 | ET119: 233102.4788 | EU119: 234374.0991 | EV119: 235652.6564 | EW119: 236938.1884 | EX119: 238230.7333 | EY119: 0 | EZ119: 0 | FA119: 0 | FB119: 0 | FC119: 0 | FD119: 0 | FE119: 0 | FF119: 0 | FG119: 0 | FH119: 0 | FI119: 0 | FJ119: 0 | FK119: 0 | FL119: 0 | FM119: 0 | FN119: 0 | FO119: 0 | FP119: 0 | FQ119: 0 | FR119: 0 | FS119: 0 | FT119: 0 | FU119: 0 | FV119: 0 | FW119: 0
D120: Total Other Cost | L120: =SUM(L117:L119) -> 0 | M120: =SUM(M117:M119) -> 0 | N120: =SUM(N117:N119) -> 0 | O120: =SUM(O117:O119) -> 0 | P120: =SUM(P117:P119) -> 0 | Q120: =SUM(Q117:Q119) -> 0 | R120: =SUM(R117:R119) -> 0 | S120: =SUM(S117:S119) -> 0 | T120: =SUM(T117:T119) -> 0 | U120: =SUM(U117:U119) -> 0 | V120: =SUM(V117:V119) -> 0 | W120: =SUM(W117:W119) -> 0 | X120: =SUM(X117:X119) -> 0 | Y120: =SUM(Y117:Y119) -> 0 | Z120: =SUM(Z117:Z119) -> 0 | AA120: =SUM(AA117:AA119) -> 0 | AB120: =SUM(AB117:AB119) -> 0 | AC120: =SUM(AC117:AC119) -> 0 | AD120: =SUM(AD117:AD119) -> 0 | AE120: =SUM(AE117:AE119) -> 0 | AF120: =SUM(AF117:AF119) -> 0 | AG120: =SUM(AG117:AG119) -> 0 | AH120: =SUM(AH117:AH119) -> 0 | AI120: =SUM(AI117:AI119) -> 0 | AJ120: =SUM(AJ117:AJ119) -> 0 | AK120: =SUM(AK117:AK119) -> 0 | AL120: =SUM(AL117:AL119) -> 0 | AM120: =SUM(AM117:AM119) -> 0 | AN120: =SUM(AN117:AN119) -> 0 | AO120: =SUM(AO117:AO119) -> 0 | AP120: =SUM(AP117:AP119) -> 0 | AQ120: =SUM(AQ117:AQ119) -> 0 | AR120: =SUM(AR117:AR119) -> 0 | AS120: =SUM(AS117:AS119) -> 0 | AT120: =SUM(AT117:AT119) -> 0 | AU120: =SUM(AU117:AU119) -> 0 | AV120: =SUM(AV117:AV119) -> 0 | AW120: =SUM(AW117:AW119) -> 0 | AX120: =SUM(AX117:AX119) -> 0 | AY120: =SUM(AY117:AY119) -> 0 | AZ120: =SUM(AZ117:AZ119) -> 0 | BA120: =SUM(BA117:BA119) -> 0 | BB120: =SUM(BB117:BB119) -> 0 | BC120: =SUM(BC117:BC119) -> 506347.6212 | BD120: =SUM(BD117:BD119) -> 507608.7707 | BE120: =SUM(BE117:BE119) -> 508873.0614 | BF120: =SUM(BF117:BF119) -> 510140.501 | BG120: =SUM(BG117:BG119) -> 511411.0974 | BH120: =SUM(BH117:BH119) -> 512684.8584 | BI120: =SUM(BI117:BI119) -> 513961.792 | BJ120: =SUM(BJ117:BJ119) -> 515369.3938 | BK120: =SUM(BK117:BK119) -> 516780.8506 | BL120: =SUM(BL117:BL119) -> 518196.1731 | BM120: =SUM(BM117:BM119) -> 519615.3717 | BN120: =SUM(BN117:BN119) -> 521038.4571 | BO120: =SUM(BO117:BO119) -> 522465.44 | BP120: =SUM(BP117:BP119) -> 523896.331 | BQ120: =SUM(BQ117:BQ119) -> 525331.1408 | BR120: =SUM(BR117:BR119) -> 526769.8802 | BS120: =SUM(BS117:BS119) -> 528212.5598 | BT120: =SUM(BT117:BT119) -> 529659.1906 | BU120: =SUM(BU117:BU119) -> 531109.7833 | BV120: =SUM(BV117:BV119) -> 532564.3488 | BW120: =SUM(BW117:BW119) -> 534022.898 | BX120: =SUM(BX117:BX119) -> 535485.4417 | BY120: =SUM(BY117:BY119) -> 536951.991 | BZ120: =SUM(BZ117:BZ119) -> 538954.3327 | CA120: =SUM(CA117:CA119) -> 540964.1413 | CB120: =SUM(CB117:CB119) -> 542981.4447 | CC120: =SUM(CC117:CC119) -> 545006.2708 | CD120: =SUM(CD117:CD119) -> 547038.6477 | CE120: =SUM(CE117:CE119) -> 549078.6034 | CF120: =SUM(CF117:CF119) -> 551126.1664 | CG120: =SUM(CG117:CG119) -> 553181.3649 | CH120: =SUM(CH117:CH119) -> 555244.2274 | CI120: =SUM(CI117:CI119) -> 557314.7825 | CJ120: =SUM(CJ117:CJ119) -> 559393.0589 | CK120: =SUM(CK117:CK119) -> 561479.0854 | CL120: =SUM(CL117:CL119) -> 563572.8908 | CM120: =SUM(CM117:CM119) -> 565674.5042 | CN120: =SUM(CN117:CN119) -> 567783.9548 | CO120: =SUM(CO117:CO119) -> 569901.2716 | CP120: =SUM(CP117:CP119) -> 572729.6526 | CQ120: =SUM(CQ117:CQ119) -> 575572.0707 | CR120: =SUM(CR117:CR119) -> 578428.5955 | CS120: =SUM(CS117:CS119) -> 581299.2971 | CT120: =SUM(CT117:CT119) -> 584184.2457 | CU120: =SUM(CU117:CU119) -> 587083.5121 | CV120: =SUM(CV117:CV119) -> 589997.1674 | CW120: =SUM(CW117:CW119) -> 592925.283 | CX120: =SUM(CX117:CX119) -> 595867.9306 | CY120: =SUM(CY117:CY119) -> 598825.1824 | CZ120: =SUM(CZ117:CZ119) -> 601797.1108 | DA120: =SUM(DA117:DA119) -> 604783.7887 | DB120: =SUM(DB117:DB119) -> 607785.2892 | DC120: =SUM(DC117:DC119) -> 610801.686 | DD120: =SUM(DD117:DD119) -> 613833.053 | DE120: =SUM(DE117:DE119) -> 616879.4644 | DF120: =SUM(DF117:DF119) -> 620244.6645 | DG120: =SUM(DG117:DG119) -> 623628.2223 | DH120: =SUM(DH117:DH119) -> 627030.2382 | DI120: 630450.8127 | DJ120: 633890.0471 | DK120: 637348.0432 | DL120: 640824.9034 | DM120: 644320.7305 | DN120: 647835.6281 | DO120: 651369.7002 | DP120: 654923.0513 | DQ120: 658495.7866 | DR120: 662088.0119 | DS120: 665699.8336 | DT120: 669331.3584 | DU120: 672982.6939 | DV120: 676653.9482 | DW120: 680345.2299 | DX120: 684056.6483 | DY120: 687788.3132 | DZ120: 691540.3351 | EA120: 695312.825 | EB120: 699105.8945 | EC120: 702919.6561 | ED120: 706754.2224 | EE120: 710609.7071 | EF120: 714486.2242 | EG120: 718383.8885 | EH120: 722302.8153 | EI120: 726243.1207 | EJ120: 730204.9212 | EK120: 734188.3341 | EL120: 738193.4773 | EM120: 742220.4693 | EN120: 746269.4294 | EO120: 750340.4774 | EP120: 754433.7338 | EQ120: 758549.3196 | ER120: 762687.3569 | ES120: 766847.9679 | ET120: 771031.2759 | EU120: 775237.4047 | EV120: 779466.4787 | EW120: 783718.6232 | EX120: 787993.964 | EY120: 0 | EZ120: 0 | FA120: 0 | FB120: 0 | FC120: 0 | FD120: 0 | FE120: 0 | FF120: 0 | FG120: 0 | FH120: 0 | FI120: 0 | FJ120: 0 | FK120: 0 | FL120: 0 | FM120: 0 | FN120: 0 | FO120: 0 | FP120: 0 | FQ120: 0 | FR120: 0 | FS120: 0 | FT120: =SUM(FT117:FT119) -> 0 | FU120: 0 | FV120: 0 | FW120: 0
D122: Total Cost | L122: =L114+L120 -> 0 | M122: =M114+M120 -> 0 | N122: 0 | O122: 0 | P122: 0 | Q122: 0 | R122: 0 | S122: 0 | T122: 0 | U122: 0 | V122: 0 | W122: 0 | X122: 0 | Y122: 0 | Z122: 0 | AA122: 0 | AB122: 0 | AC122: 0 | AD122: 0 | AE122: 0 | AF122: 0 | AG122: 0 | AH122: 0 | AI122: 0 | AJ122: 0 | AK122: 0 | AL122: 0 | AM122: 0 | AN122: 0 | AO122: 0 | AP122: 0 | AQ122: 0 | AR122: 0 | AS122: 0 | AT122: 0 | AU122: 0 | AV122: 0 | AW122: 0 | AX122: 0 | AY122: 0 | AZ122: 0 | BA122: 0 | BB122: 0 | BC122: 898865.1569 | BD122: 901103.9418 | BE122: 903348.3027 | BF122: 905598.2537 | BG122: 907853.8085 | BH122: 910114.9812 | BI122: 912381.7858 | BJ122: 914880.5518 | BK122: 917386.1612 | BL122: 919898.6328 | BM122: 922417.9854 | BN122: 924944.2378 | BO122: 927477.409 | BP122: 930017.5178 | BQ122: 932564.5833 | BR122: 935118.6245 | BS122: 937679.6605 | BT122: 940247.7105 | BU122: 942822.7937 | BV122: 945404.9293 | BW122: 947994.1367 | BX122: 950590.4353 | BY122: =BY114+BY120 -> 953193.8444 | BZ122: 956748.389 | CA122: 960316.1889 | CB122: 963897.2933 | CC122: 967491.7521 | CD122: 971099.6149 | CE122: 974720.9317 | CF122: 978355.7527 | CG122: 982004.1284 | CH122: 985666.1091 | CI122: 989341.7457 | CJ122: 993031.089 | CK122: 996734.1903 | CL122: 1000451.101 | CM122: 1004181.872 | CN122: 1007926.555 | CO122: 1011685.203 | CP122: 1016706.128 | CQ122: 1021751.971 | CR122: 1026822.856 | CS122: 1031918.907 | CT122: 1037040.25 | CU122: 1042187.01 | CV122: 1047359.313 | CW122: 1052557.285 | CX122: 1057781.055 | CY122: 1063030.75 | CZ122: 1068306.499 | DA122: 1073608.431 | DB122: 1078936.676 | DC122: 1084291.365 | DD122: 1089672.629 | DE122: 1095080.6 | DF122: 1101054.482 | DG122: 1107060.953 | DH122: =DH114+DH120 -> 1113100.19 | DI122: 1119172.373 | DJ122: 1125277.68 | DK122: 1131416.294 | DL122: 1137588.394 | DM122: 1143794.165 | DN122: 1150033.789 | DO122: 1156307.452 | DP122: 1162615.339 | DQ122: 1168957.637 | DR122: 1175334.533 | DS122: 1181746.216 | DT122: 1188192.877 | DU122: 1194674.705 | DV122: 1201191.893 | DW122: 1207744.633 | DX122: 1214333.12 | DY122: 1220957.548 | DZ122: 1227618.114 | EA122: 1234315.015 | EB122: 1241048.448 | EC122: 1247818.614 | ED122: 1254625.713 | EE122: 1261469.945 | EF122: 1268351.514 | EG122: 1275270.624 | EH122: 1282227.478 | EI122: 1289222.284 | EJ122: 1296255.248 | EK122: 1303326.578 | EL122: 1310436.483 | EM122: 1317585.174 | EN122: 1324772.863 | EO122: 1331999.762 | EP122: 1339266.086 | EQ122: 1346572.048 | ER122: 1353917.866 | ES122: 1361303.757 | ET122: 1368729.939 | EU122: 1376196.633 | EV122: 1383704.059 | EW122: 1391252.44 | EX122: 1398841.998 | EY122: 0 | EZ122: 0 | FA122: 0 | FB122: 0 | FC122: 0 | FD122: 0 | FE122: 0 | FF122: 0 | FG122: 0 | FH122: 0 | FI122: 0 | FJ122: 0 | FK122: 0 | FL122: 0 | FM122: 0 | FN122: 0 | FO122: 0 | FP122: 0 | FQ122: 0 | FR122: 0 | FS122: 0 | FT122: =FT114+FT120 -> 0 | FU122: 0 | FV122: 0 | FW122: 0
D124: Operating Cash Flow | L124: =L106-L122 -> 0 | M124: =M106-M122 -> 0 | N124: 0 | O124: 0 | P124: 0 | Q124: 0 | R124: 0 | S124: 0 | T124: 0 | U124: 0 | V124: 0 | W124: 0 | X124: 0 | Y124: 0 | Z124: 0 | AA124: 0 | AB124: 0 | AC124: 0 | AD124: 0 | AE124: 0 | AF124: 0 | AG124: 0 | AH124: 0 | AI124: 0 | AJ124: 0 | AK124: 0 | AL124: 0 | AM124: 0 | AN124: 0 | AO124: 0 | AP124: 0 | AQ124: 0 | AR124: 0 | AS124: 0 | AT124: 0 | AU124: 0 | AV124: 0 | AW124: 0 | AX124: 0 | AY124: 0 | AZ124: 0 | BA124: 0 | BB124: 0 | BC124: 167375.7575 | BD124: 167792.6369 | BE124: 168210.5545 | BF124: 168629.5131 | BG124: 258791.4588 | BH124: 259436.0253 | BI124: 260082.1972 | BJ124: 260794.4917 | BK124: 352192.96 | BL124: 353157.5209 | BM124: 354124.7235 | BN124: 355094.5749 | BO124: 447748.832 | BP124: 448975.0944 | BQ124: 450204.7153 | BR124: 451437.7038 | BS124: 452674.0691 | BT124: 453913.8205 | BU124: 455156.9672 | BV124: 456403.5185 | BW124: 457653.4839 | BX124: 458906.8725 | BY124: =BY106-BY122 -> 460163.6938 | BZ124: 461879.6852 | CA124: 463602.0756 | CB124: 465330.889 | CC124: 467066.1492 | CD124: 468807.8804 | CE124: 470556.1067 | CF124: 472310.8523 | CG124: 474072.1415 | CH124: 475839.9987 | CI124: 477614.4483 | CJ124: 479395.5151 | CK124: 481183.2236 | CL124: 482977.5986 | CM124: 484778.6651 | CN124: 486586.4478 | CO124: 488400.972 | CP124: 490085.3428 | CQ124: 491774.7674 | CR124: 493469.256 | CS124: 495168.819 | CT124: 496873.4667 | CU124: 498583.2092 | CV124: 500298.0569 | CW124: 502018.02 | CX124: 503743.1086 | CY124: 505473.333 | CZ124: 507208.7033 | DA124: 508949.2298 | DB124: 510694.9224 | DC124: 512445.7915 | DD124: 514201.847 | DE124: 515963.099 | DF124: 517190.4856 | DG124: 518417.4726 | DH124: =DH106-DH122 -> 519644.0263 | DI124: 520870.1124 | DJ124: 522095.6964 | DK124: 523320.7433 | DL124: 524545.218 | DM124: 525769.0849 | DN124: 526992.3082 | DO124: 528214.8515 | DP124: 529436.6784 | DQ124: 530657.7518 | DR124: 531878.0346 | DS124: 533097.489 | DT124: 534316.0772 | DU124: 535533.7608 | DV124: 536750.5011 | DW124: 537966.259 | DX124: 539180.9951 | DY124: 540394.6697 | DZ124: 541607.2425 | EA124: 542818.6731 | EB124: 544028.9205 | EC124: 545237.9435 | ED124: 546445.7004 | EE124: 547652.1492 | EF124: 548857.2473 | EG124: 550060.9521 | EH124: 551263.2202 | EI124: 552464.0081 | EJ124: 553663.2717 | EK124: 554860.9667 | EL124: 556057.0482 | EM124: 557251.4711 | EN124: 558444.1896 | EO124: 559635.1578 | EP124: 560824.3292 | EQ124: 562011.6569 | ER124: 563197.0936 | ES124: 564380.5916 | ET124: 565562.1028 | EU124: 566741.5785 | EV124: 567918.9698 | EW124: 569094.2272 | EX124: 570267.3008 | EY124: 0 | EZ124: 0 | FA124: 0 | FB124: 0 | FC124: 0 | FD124: 0 | FE124: 0 | FF124: 0 | FG124: 0 | FH124: 0 | FI124: 0 | FJ124: 0 | FK124: 0 | FL124: 0 | FM124: 0 | FN124: 0 | FO124: 0 | FP124: 0 | FQ124: 0 | FR124: 0 | FS124: 0 | FT124: =FT106-FT122 -> 0 | FU124: 0 | FV124: 0 | FW124: 0
D126: Cap Rate/ Exit Proceed | H126: =G61 -> 0.06 | L126: =L124*L9/$H$126*L6 -> 0 | M126: =M124*M9/$H$126*M6 -> 0 | N126: =N124*N9/$H$126*N6 -> 0 | O126: =O124*O9/$H$126*O6 -> 0 | P126: =P124*P9/$H$126*P6 -> 0 | Q126: =Q124*Q9/$H$126*Q6 -> 0 | R126: =R124*R9/$H$126*R6 -> 0 | S126: =S124*S9/$H$126*S6 -> 0 | T126: =T124*T9/$H$126*T6 -> 0 | U126: =U124*U9/$H$126*U6 -> 0 | V126: =V124*V9/$H$126*V6 -> 0 | W126: =W124*W9/$H$126*W6 -> 0 | X126: =X124*X9/$H$126*X6 -> 0 | Y126: =Y124*Y9/$H$126*Y6 -> 0 | Z126: =Z124*Z9/$H$126*Z6 -> 0 | AA126: =AA124*AA9/$H$126*AA6 -> 0 | AB126: =AB124*AB9/$H$126*AB6 -> 0 | AC126: =AC124*AC9/$H$126*AC6 -> 0 | AD126: =AD124*AD9/$H$126*AD6 -> 0 | AE126: =AE124*AE9/$H$126*AE6 -> 0 | AF126: =AF124*AF9/$H$126*AF6 -> 0 | AG126: =AG124*AG9/$H$126*AG6 -> 0 | AH126: =AH124*AH9/$H$126*AH6 -> 0 | AI126: =AI124*AI9/$H$126*AI6 -> 0 | AJ126: =AJ124*AJ9/$H$126*AJ6 -> 0 | AK126: =AK124*AK9/$H$126*AK6 -> 0 | AL126: =AL124*AL9/$H$126*AL6 -> 0 | AM126: =AM124*AM9/$H$126*AM6 -> 0 | AN126: =AN124*AN9/$H$126*AN6 -> 0 | AO126: =AO124*AO9/$H$126*AO6 -> 0 | AP126: =AP124*AP9/$H$126*AP6 -> 0 | AQ126: =AQ124*AQ9/$H$126*AQ6 -> 0 | AR126: =AR124*AR9/$H$126*AR6 -> 0 | AS126: =AS124*AS9/$H$126*AS6 -> 0 | AT126: =AT124*AT9/$H$126*AT6 -> 0 | AU126: =AU124*AU9/$H$126*AU6 -> 0 | AV126: =AV124*AV9/$H$126*AV6 -> 0 | AW126: =AW124*AW9/$H$126*AW6 -> 0 | AX126: =AX124*AX9/$H$126*AX6 -> 0 | AY126: =AY124*AY9/$H$126*AY6 -> 0 | AZ126: =AZ124*AZ9/$H$126*AZ6 -> 0 | BA126: =BA124*BA9/$H$126*BA6 -> 0 | BB126: =BB124*BB9/$H$126*BB6 -> 0 | BC126: =BC124*BC9/$H$126*BC6 -> 0 | BD126: =BD124*BD9/$H$126*BD6 -> 0 | BE126: =BE124*BE9/$H$126*BE6 -> 0 | BF126: =BF124*BF9/$H$126*BF6 -> 0 | BG126: =BG124*BG9/$H$126*BG6 -> 0 | BH126: =BH124*BH9/$H$126*BH6 -> 0 | BI126: =BI124*BI9/$H$126*BI6 -> 0 | BJ126: =BJ124*BJ9/$H$126*BJ6 -> 0 | BK126: =BK124*BK9/$H$126*BK6 -> 0 | BL126: =BL124*BL9/$H$126*BL6 -> 0 | BM126: =BM124*BM9/$H$126*BM6 -> 0 | BN126: =BN124*BN9/$H$126*BN6 -> 0 | BO126: =BO124*BO9/$H$126*BO6 -> 0 | BP126: =BP124*BP9/$H$126*BP6 -> 0 | BQ126: =BQ124*BQ9/$H$126*BQ6 -> 0 | BR126: =BR124*BR9/$H$126*BR6 -> 0 | BS126: =BS124*BS9/$H$126*BS6 -> 0 | BT126: =BT124*BT9/$H$126*BT6 -> 0 | BU126: =BU124*BU9/$H$126*BU6 -> 0 | BV126: =BV124*BV9/$H$126*BV6 -> 0 | BW126: =BW124*BW9/$H$126*BW6 -> 0 | BX126: =BX124*BX9/$H$126*BX6 -> 0 | BY126: =BY124*BY9/$H$126*BY6 -> 0 | BZ126: =BZ124*BZ9/$H$126*BZ6 -> 0 | CA126: =CA124*CA9/$H$126*CA6 -> 0 | CB126: =CB124*CB9/$H$126*CB6 -> 0 | CC126: =CC124*CC9/$H$126*CC6 -> 0 | CD126: =CD124*CD9/$H$126*CD6 -> 0 | CE126: =CE124*CE9/$H$126*CE6 -> 0 | CF126: =CF124*CF9/$H$126*CF6 -> 0 | CG126: =CG124*CG9/$H$126*CG6 -> 0 | CH126: =CH124*CH9/$H$126*CH6 -> 0 | CI126: =CI124*CI9/$H$126*CI6 -> 0 | CJ126: =CJ124*CJ9/$H$126*CJ6 -> 0 | CK126: =CK124*CK9/$H$126*CK6 -> 0 | CL126: =CL124*CL9/$H$126*CL6 -> 0 | CM126: =CM124*CM9/$H$126*CM6 -> 0 | CN126: =CN124*CN9/$H$126*CN6 -> 0 | CO126: =CO124*CO9/$H$126*CO6 -> 0 | CP126: =CP124*CP9/$H$126*CP6 -> 0 | CQ126: =CQ124*CQ9/$H$126*CQ6 -> 0 | CR126: =CR124*CR9/$H$126*CR6 -> 0 | CS126: =CS124*CS9/$H$126*CS6 -> 0 | CT126: =CT124*CT9/$H$126*CT6 -> 0 | CU126: =CU124*CU9/$H$126*CU6 -> 0 | CV126: =CV124*CV9/$H$126*CV6 -> 0 | CW126: =CW124*CW9/$H$126*CW6 -> 0 | CX126: =CX124*CX9/$H$126*CX6 -> 0 | CY126: =CY124*CY9/$H$126*CY6 -> 0 | CZ126: =CZ124*CZ9/$H$126*CZ6 -> 0 | DA126: =DA124*DA9/$H$126*DA6 -> 0 | DB126: =DB124*DB9/$H$126*DB6 -> 0 | DC126: =DC124*DC9/$H$126*DC6 -> 0 | DD126: =DD124*DD9/$H$126*DD6 -> 0 | DE126: =DE124*DE9/$H$126*DE6 -> 0 | DF126: =DF124*DF9/$H$126*DF6 -> 0 | DG126: =DG124*DG9/$H$126*DG6 -> 0 | DH126: =DH124*DH9/$H$126*DH6 -> 0 | DI126: 0 | DJ126: 0 | DK126: 0 | DL126: 0 | DM126: 0 | DN126: 0 | DO126: 0 | DP126: 0 | DQ126: 0 | DR126: 0 | DS126: 0 | DT126: 0 | DU126: 0 | DV126: 0 | DW126: 0 | DX126: 0 | DY126: 0 | DZ126: 0 | EA126: 0 | EB126: 0 | EC126: 0 | ED126: 0 | EE126: 0 | EF126: 0 | EG126: 0 | EH126: 0 | EI126: 0 | EJ126: 0 | EK126: 0 | EL126: 0 | EM126: 0 | EN126: 0 | EO126: 0 | EP126: 0 | EQ126: 0 | ER126: 0 | ES126: 0 | ET126: 0 | EU126: 0 | EV126: 0 | EW126: 0 | EX126: 28513365.04 | EY126: 0 | EZ126: 0 | FA126: 0 | FB126: 0 | FC126: 0 | FD126: 0 | FE126: 0 | FF126: 0 | FG126: 0 | FH126: 0 | FI126: 0 | FJ126: 0 | FK126: 0 | FL126: 0 | FM126: 0 | FN126: 0 | FO126: 0 | FP126: 0 | FQ126: 0 | FR126: 0 | FS126: 0 | FT126: =FT124*FT9/$H$126*FT6 -> 0 | FU126: 0 | FV126: 0 | FW126: 0
A128: Capital Allowances and Taxes on Operations
B130: Balance of Assets
C131: Opening Balance | L131: =K133 -> 0 | M131: =L133 -> 236666.6667 | N131: 473333.3333 | O131: 710000 | P131: 803333.3333 | Q131: 896666.6667 | R131: 990000 | S131: 1083333.333 | T131: 1176666.667 | U131: 1270000 | V131: 1363333.333 | W131: 1456666.667 | X131: 1550000 | Y131: 1643333.333 | Z131: 1736666.667 | AA131: 1830000 | AB131: 2156666.667 | AC131: 2483333.333 | AD131: 2810000 | AE131: 3136666.667 | AF131: 3463333.333 | AG131: 3790000 | AH131: 4116666.667 | AI131: 4443333.333 | AJ131: 4770000 | AK131: 5096666.667 | AL131: 5423333.333 | AM131: 5750000 | AN131: 6216666.667 | AO131: 6683333.333 | AP131: 7150000 | AQ131: 7616666.667 | AR131: 8083333.333 | AS131: 8550000 | AT131: 9016666.667 | AU131: 9483333.333 | AV131: 9950000 | AW131: 10416666.67 | AX131: 10883333.33 | AY131: 11350000 | AZ131: 11490000 | BA131: 11630000 | BB131: 11770000 | BC131: 11910000 | BD131: 11910000 | BE131: 11910000 | BF131: 11910000 | BG131: 11910000 | BH131: 11910000 | BI131: 11910000 | BJ131: 11910000 | BK131: 11910000 | BL131: 11910000 | BM131: 11910000 | BN131: 11910000 | BO131: 11910000 | BP131: 11910000 | BQ131: 11910000 | BR131: 11910000 | BS131: 11910000 | BT131: 11910000 | BU131: 11910000 | BV131: 11910000 | BW131: 11910000 | BX131: 11910000 | BY131: =BX133 -> 11910000 | BZ131: 11910000 | CA131: 11910000 | CB131: 11910000 | CC131: 11910000 | CD131: 11910000 | CE131: 11910000 | CF131: 11910000 | CG131: 11910000 | CH131: 11910000 | CI131: 11910000 | CJ131: 11910000 | CK131: 11910000 | CL131: 11910000 | CM131: 11910000 | CN131: 11910000 | CO131: 11910000 | CP131: 11910000 | CQ131: 11910000 | CR131: 11910000 | CS131: 11910000 | CT131: 11910000 | CU131: 11910000 | CV131: 11910000 | CW131: 11910000 | CX131: 11910000 | CY131: 11910000 | CZ131: 11910000 | DA131: 11910000 | DB131: 11910000 | DC131: 11910000 | DD131: 11910000 | DE131: 11910000 | DF131: 11910000 | DG131: 11910000 | DH131: =DG133 -> 11910000 | DI131: 11910000 | DJ131: 11910000 | DK131: 11910000 | DL131: 11910000 | DM131: 11910000 | DN131: 11910000 | DO131: 11910000 | DP131: 11910000 | DQ131: 11910000 | DR131: 11910000 | DS131: 11910000 | DT131: 11910000 | DU131: 11910000 | DV131: 11910000 | DW131: 11910000 | DX131: 11910000 | DY131: 11910000 | DZ131: 11910000 | EA131: 11910000 | EB131: 11910000 | EC131: 11910000 | ED131: 11910000 | EE131: 11910000 | EF131: 11910000 | EG131: 11910000 | EH131: 11910000 | EI131: 11910000 | EJ131: 11910000 | EK131: 11910000 | EL131: 11910000 | EM131: 11910000 | EN131: 11910000 | EO131: 11910000 | EP131: 11910000 | EQ131: 11910000 | ER131: 11910000 | ES131: 11910000 | ET131: 11910000 | EU131: 11910000 | EV131: 11910000 | EW131: 11910000 | EX131: 11910000 | EY131: 11910000 | EZ131: 11910000 | FA131: 11910000 | FB131: 11910000 | FC131: 11910000 | FD131: 11910000 | FE131: 11910000 | FF131: 11910000 | FG131: 11910000 | FH131: 11910000 | FI131: 11910000 | FJ131: 11910000 | FK131: 11910000 | FL131: 11910000 | FM131: 11910000 | FN131: 11910000 | FO131: 11910000 | FP131: 11910000 | FQ131: 11910000 | FR131: 11910000 | FS131: 11910000 | FT131: =FS133 -> 11910000 | FU131: 11910000 | FV131: 11910000 | FW131: 11910000
C132: Add: Capital Expenditures Excluding Land | L132: =L81+L83 -> 236666.6667 | M132: =M81+M83 -> 236666.6667 | N132: 236666.6667 | O132: 93333.33333 | P132: 93333.33333 | Q132: 93333.33333 | R132: 93333.33333 | S132: 93333.33333 | T132: 93333.33333 | U132: 93333.33333 | V132: 93333.33333 | W132: 93333.33333 | X132: 93333.33333 | Y132: 93333.33333 | Z132: 93333.33333 | AA132: 326666.6667 | AB132: 326666.6667 | AC132: 326666.6667 | AD132: 326666.6667 | AE132: 326666.6667 | AF132: 326666.6667 | AG132: 326666.6667 | AH132: 326666.6667 | AI132: 326666.6667 | AJ132: 326666.6667 | AK132: 326666.6667 | AL132: 326666.6667 | AM132: 466666.6667 | AN132: 466666.6667 | AO132: 466666.6667 | AP132: 466666.6667 | AQ132: 466666.6667 | AR132: 466666.6667 | AS132: 466666.6667 | AT132: 466666.6667 | AU132: 466666.6667 | AV132: 466666.6667 | AW132: 466666.6667 | AX132: 466666.6667 | AY132: 140000 | AZ132: 140000 | BA132: 140000 | BB132: 140000 | BC132: 0 | BD132: 0 | BE132: 0 | BF132: 0 | BG132: 0 | BH132: 0 | BI132: 0 | BJ132: 0 | BK132: 0 | BL132: 0 | BM132: 0 | BN132: 0 | BO132: 0 | BP132: 0 | BQ132: 0 | BR132: 0 | BS132: 0 | BT132: 0 | BU132: 0 | BV132: 0 | BW132: 0 | BX132: 0 | BY132: =BY81+BY83 -> 0 | BZ132: 0 | CA132: 0 | CB132: 0 | CC132: 0 | CD132: 0 | CE132: 0 | CF132: 0 | CG132: 0 | CH132: 0 | CI132: 0 | CJ132: 0 | CK132: 0 | CL132: 0 | CM132: 0 | CN132: 0 | CO132: 0 | CP132: 0 | CQ132: 0 | CR132: 0 | CS132: 0 | CT132: 0 | CU132: 0 | CV132: 0 | CW132: 0 | CX132: 0 | CY132: 0 | CZ132: 0 | DA132: 0 | DB132: 0 | DC132: 0 | DD132: 0 | DE132: 0 | DF132: 0 | DG132: 0 | DH132: =DH81+DH83 -> 0 | DI132: 0 | DJ132: 0 | DK132: 0 | DL132: 0 | DM132: 0 | DN132: 0 | DO132: 0 | DP132: 0 | DQ132: 0 | DR132: 0 | DS132: 0 | DT132: 0 | DU132: 0 | DV132: 0 | DW132: 0 | DX132: 0 | DY132: 0 | DZ132: 0 | EA132: 0 | EB132: 0 | EC132: 0 | ED132: 0 | EE132: 0 | EF132: 0 | EG132: 0 | EH132: 0 | EI132: 0 | EJ132: 0 | EK132: 0 | EL132: 0 | EM132: 0 | EN132: 0 | EO132: 0 | EP132: 0 | EQ132: 0 | ER132: 0 | ES132: 0 | ET132: 0 | EU132: 0 | EV132: 0 | EW132: 0 | EX132: 0 | EY132: 0 | EZ132: 0 | FA132: 0 | FB132: 0 | FC132: 0 | FD132: 0 | FE132: 0 | FF132: 0 | FG132: 0 | FH132: 0 | FI132: 0 | FJ132: 0 | FK132: 0 | FL132: 0 | FM132: 0 | FN132: 0 | FO132: 0 | FP132: 0 | FQ132: 0 | FR132: 0 | FS132: 0 | FT132: =FT81+FT83 -> 0 | FU132: 0 | FV132: 0 | FW132: 0
C133: Closing Balance | L133: =SUM(L131:L132) -> 236666.6667 | M133: =SUM(M131:M132) -> 473333.3333 | N133: 710000 | O133: 803333.3333 | P133: 896666.6667 | Q133: 990000 | R133: 1083333.333 | S133: 1176666.667 | T133: 1270000 | U133: 1363333.333 | V133: 1456666.667 | W133: 1550000 | X133: 1643333.333 | Y133: 1736666.667 | Z133: 1830000 | AA133: 2156666.667 | AB133: 2483333.333 | AC133: 2810000 | AD133: 3136666.667 | AE133: 3463333.333 | AF133: 3790000 | AG133: 4116666.667 | AH133: 4443333.333 | AI133: 4770000 | AJ133: 5096666.667 | AK133: 5423333.333 | AL133: 5750000 | AM133: 6216666.667 | AN133: 6683333.333 | AO133: 7150000 | AP133: 7616666.667 | AQ133: 8083333.333 | AR133: 8550000 | AS133: 9016666.667 | AT133: 9483333.333 | AU133: 9950000 | AV133: 10416666.67 | AW133: 10883333.33 | AX133: 11350000 | AY133: 11490000 | AZ133: 11630000 | BA133: 11770000 | BB133: 11910000 | BC133: 11910000 | BD133: 11910000 | BE133: 11910000 | BF133: 11910000 | BG133: 11910000 | BH133: 11910000 | BI133: 11910000 | BJ133: 11910000 | BK133: 11910000 | BL133: 11910000 | BM133: 11910000 | BN133: 11910000 | BO133: 11910000 | BP133: 11910000 | BQ133: 11910000 | BR133: 11910000 | BS133: 11910000 | BT133: 11910000 | BU133: 11910000 | BV133: 11910000 | BW133: 11910000 | BX133: 11910000 | BY133: =SUM(BY131:BY132) -> 11910000 | BZ133: 11910000 | CA133: 11910000 | CB133: 11910000 | CC133: 11910000 | CD133: 11910000 | CE133: 11910000 | CF133: 11910000 | CG133: 11910000 | CH133: 11910000 | CI133: 11910000 | CJ133: 11910000 | CK133: 11910000 | CL133: 11910000 | CM133: 11910000 | CN133: 11910000 | CO133: 11910000 | CP133: 11910000 | CQ133: 11910000 | CR133: 11910000 | CS133: 11910000 | CT133: 11910000 | CU133: 11910000 | CV133: 11910000 | CW133: 11910000 | CX133: 11910000 | CY133: 11910000 | CZ133: 11910000 | DA133: 11910000 | DB133: 11910000 | DC133: 11910000 | DD133: 11910000 | DE133: 11910000 | DF133: 11910000 | DG133: 11910000 | DH133: =SUM(DH131:DH132) -> 11910000 | DI133: =SUM(DI131:DI132) -> 11910000 | DJ133: =SUM(DJ131:DJ132) -> 11910000 | DK133: =SUM(DK131:DK132) -> 11910000 | DL133: =SUM(DL131:DL132) -> 11910000 | DM133: =SUM(DM131:DM132) -> 11910000 | DN133: =SUM(DN131:DN132) -> 11910000 | DO133: =SUM(DO131:DO132) -> 11910000 | DP133: =SUM(DP131:DP132) -> 11910000 | DQ133: =SUM(DQ131:DQ132) -> 11910000 | DR133: =SUM(DR131:DR132) -> 11910000 | DS133: =SUM(DS131:DS132) -> 11910000 | DT133: =SUM(DT131:DT132) -> 11910000 | DU133: =SUM(DU131:DU132) -> 11910000 | DV133: =SUM(DV131:DV132) -> 11910000 | DW133: =SUM(DW131:DW132) -> 11910000 | DX133: =SUM(DX131:DX132) -> 11910000 | DY133: =SUM(DY131:DY132) -> 11910000 | DZ133: =SUM(DZ131:DZ132) -> 11910000 | EA133: =SUM(EA131:EA132) -> 11910000 | EB133: =SUM(EB131:EB132) -> 11910000 | EC133: =SUM(EC131:EC132) -> 11910000 | ED133: =SUM(ED131:ED132) -> 11910000 | EE133: =SUM(EE131:EE132) -> 11910000 | EF133: =SUM(EF131:EF132) -> 11910000 | EG133: =SUM(EG131:EG132) -> 11910000 | EH133: =SUM(EH131:EH132) -> 11910000 | EI133: =SUM(EI131:EI132) -> 11910000 | EJ133: =SUM(EJ131:EJ132) -> 11910000 | EK133: =SUM(EK131:EK132) -> 11910000 | EL133: =SUM(EL131:EL132) -> 11910000 | EM133: =SUM(EM131:EM132) -> 11910000 | EN133: =SUM(EN131:EN132) -> 11910000 | EO133: =SUM(EO131:EO132) -> 11910000 | EP133: =SUM(EP131:EP132) -> 11910000 | EQ133: =SUM(EQ131:EQ132) -> 11910000 | ER133: =SUM(ER131:ER132) -> 11910000 | ES133: =SUM(ES131:ES132) -> 11910000 | ET133: =SUM(ET131:ET132) -> 11910000 | EU133: =SUM(EU131:EU132) -> 11910000 | EV133: =SUM(EV131:EV132) -> 11910000 | EW133: =SUM(EW131:EW132) -> 11910000 | EX133: =SUM(EX131:EX132) -> 11910000 | EY133: =SUM(EY131:EY132) -> 11910000 | EZ133: =SUM(EZ131:EZ132) -> 11910000 | FA133: =SUM(FA131:FA132) -> 11910000 | FB133: =SUM(FB131:FB132) -> 11910000 | FC133: =SUM(FC131:FC132) -> 11910000 | FD133: =SUM(FD131:FD132) -> 11910000 | FE133: =SUM(FE131:FE132) -> 11910000 | FF133: =SUM(FF131:FF132) -> 11910000 | FG133: =SUM(FG131:FG132) -> 11910000 | FH133: =SUM(FH131:FH132) -> 11910000 | FI133: =SUM(FI131:FI132) -> 11910000 | FJ133: =SUM(FJ131:FJ132) -> 11910000 | FK133: =SUM(FK131:FK132) -> 11910000 | FL133: =SUM(FL131:FL132) -> 11910000 | FM133: =SUM(FM131:FM132) -> 11910000 | FN133: =SUM(FN131:FN132) -> 11910000 | FO133: =SUM(FO131:FO132) -> 11910000 | FP133: =SUM(FP131:FP132) -> 11910000 | FQ133: =SUM(FQ131:FQ132) -> 11910000 | FR133: =SUM(FR131:FR132) -> 11910000 | FS133: =SUM(FS131:FS132) -> 11910000 | FT133: =SUM(FT131:FT132) -> 11910000 | FU133: =SUM(FU131:FU132) -> 11910000 | FV133: =SUM(FV131:FV132) -> 11910000 | FW133: =SUM(FW131:FW132) -> 11910000
C135: Depreciation | H135: =1/G65/4 -> 0.025 | L135: =MIN(L131*$H$135*L5,K137) -> 0 | M135: =MIN(M131*$H$135*M5,L137) -> 0 | N135: 0 | O135: 0 | P135: 0 | Q135: 0 | R135: 0 | S135: 0 | T135: 0 | U135: 0 | V135: 0 | W135: 0 | X135: 0 | Y135: 0 | Z135: 0 | AA135: 0 | AB135: 0 | AC135: 0 | AD135: 0 | AE135: 0 | AF135: 0 | AG135: 0 | AH135: 0 | AI135: 0 | AJ135: 0 | AK135: 0 | AL135: 0 | AM135: 0 | AN135: 0 | AO135: 0 | AP135: 0 | AQ135: 0 | AR135: 0 | AS135: 0 | AT135: 0 | AU135: 0 | AV135: 0 | AW135: 0 | AX135: 0 | AY135: 0 | AZ135: 0 | BA135: 0 | BB135: 0 | BC135: 297750 | BD135: 297750 | BE135: 297750 | BF135: 297750 | BG135: 297750 | BH135: 297750 | BI135: 297750 | BJ135: 297750 | BK135: 297750 | BL135: 297750 | BM135: 297750 | BN135: 297750 | BO135: 297750 | BP135: 297750 | BQ135: 297750 | BR135: 297750 | BS135: 297750 | BT135: 297750 | BU135: 297750 | BV135: 297750 | BW135: 297750 | BX135: 297750 | BY135: =MIN(BY131*$H$135*BY5,BX137) -> 297750 | BZ135: 297750 | CA135: 297750 | CB135: 297750 | CC135: 297750 | CD135: 297750 | CE135: 297750 | CF135: 297750 | CG135: 297750 | CH135: 297750 | CI135: 297750 | CJ135: 297750 | CK135: 297750 | CL135: 297750 | CM135: 297750 | CN135: 297750 | CO135: 297750 | CP135: 297750 | CQ135: 0 | CR135: 0 | CS135: 0 | CT135: 0 | CU135: 0 | CV135: 0 | CW135: 0 | CX135: 0 | CY135: 0 | CZ135: 0 | DA135: 0 | DB135: 0 | DC135: 0 | DD135: 0 | DE135: 0 | DF135: 0 | DG135: 0 | DH135: 0 | DI135: 0 | DJ135: 0 | DK135: 0 | DL135: 0 | DM135: 0 | DN135: 0 | DO135: 0 | DP135: 0 | DQ135: 0 | DR135: 0 | DS135: 0 | DT135: 0 | DU135: 0 | DV135: 0 | DW135: 0 | DX135: 0 | DY135: 0 | DZ135: 0 | EA135: 0 | EB135: 0 | EC135: 0 | ED135: 0 | EE135: 0 | EF135: 0 | EG135: 0 | EH135: 0 | EI135: 0 | EJ135: 0 | EK135: =MIN(EK131*$H$135*EK5,EJ137) -> 0 | EL135: 0 | EM135: 0 | EN135: 0 | EO135: 0 | EP135: 0 | EQ135: 0 | ER135: 0 | ES135: 0 | ET135: 0 | EU135: 0 | EV135: 0 | EW135: 0 | EX135: 0 | EY135: 0 | EZ135: 0 | FA135: 0 | FB135: 0 | FC135: 0 | FD135: 0 | FE135: 0 | FF135: 0 | FG135: 0 | FH135: 0 | FI135: 0 | FJ135: 0 | FK135: 0 | FL135: 0 | FM135: 0 | FN135: 0 | FO135: 0 | FP135: 0 | FQ135: 0 | FR135: 0 | FS135: 0 | FT135: 0 | FU135: 0 | FV135: 0 | FW135: 0
C136: Accumulated Depreciation | L136: =K136+L135 -> 0 | M136: =L136+M135 -> 0 | N136: 0 | O136: 0 | P136: 0 | Q136: 0 | R136: 0 | S136: 0 | T136: 0 | U136: 0 | V136: 0 | W136: 0 | X136: 0 | Y136: 0 | Z136: 0 | AA136: 0 | AB136: 0 | AC136: 0 | AD136: 0 | AE136: 0 | AF136: 0 | AG136: 0 | AH136: 0 | AI136: 0 | AJ136: 0 | AK136: 0 | AL136: 0 | AM136: 0 | AN136: 0 | AO136: 0 | AP136: 0 | AQ136: 0 | AR136: 0 | AS136: 0 | AT136: 0 | AU136: 0 | AV136: 0 | AW136: 0 | AX136: 0 | AY136: 0 | AZ136: 0 | BA136: 0 | BB136: 0 | BC136: 297750 | BD136: 595500 | BE136: 893250 | BF136: 1191000 | BG136: 1488750 | BH136: 1786500 | BI136: 2084250 | BJ136: 2382000 | BK136: 2679750 | BL136: 2977500 | BM136: 3275250 | BN136: 3573000 | BO136: 3870750 | BP136: 4168500 | BQ136: 4466250 | BR136: 4764000 | BS136: 5061750 | BT136: 5359500 | BU136: 5657250 | BV136: 5955000 | BW136: 6252750 | BX136: 6550500 | BY136: =BX136+BY135 -> 6848250 | BZ136: 7146000 | CA136: 7443750 | CB136: 7741500 | CC136: 8039250 | CD136: 8337000 | CE136: 8634750 | CF136: 8932500 | CG136: 9230250 | CH136: 9528000 | CI136: 9825750 | CJ136: 10123500 | CK136: 10421250 | CL136: 10719000 | CM136: 11016750 | CN136: 11314500 | CO136: 11612250 | CP136: 11910000 | CQ136: 11910000 | CR136: 11910000 | CS136: 11910000 | CT136: 11910000 | CU136: 11910000 | CV136: 11910000 | CW136: 11910000 | CX136: 11910000 | CY136: 11910000 | CZ136: 11910000 | DA136: 11910000 | DB136: 11910000 | DC136: 11910000 | DD136: 11910000 | DE136: 11910000 | DF136: 11910000 | DG136: 11910000 | DH136: 11910000 | DI136: 11910000 | DJ136: 11910000 | DK136: 11910000 | DL136: 11910000 | DM136: 11910000 | DN136: 11910000 | DO136: 11910000 | DP136: 11910000 | DQ136: 11910000 | DR136: 11910000 | DS136: 11910000 | DT136: 11910000 | DU136: 11910000 | DV136: 11910000 | DW136: 11910000 | DX136: 11910000 | DY136: 11910000 | DZ136: 11910000 | EA136: 11910000 | EB136: 11910000 | EC136: 11910000 | ED136: 11910000 | EE136: 11910000 | EF136: 11910000 | EG136: 11910000 | EH136: 11910000 | EI136: 11910000 | EJ136: 11910000 | EK136: =EJ136+EK135 -> 11910000 | EL136: 11910000 | EM136: 11910000 | EN136: 11910000 | EO136: 11910000 | EP136: 11910000 | EQ136: 11910000 | ER136: 11910000 | ES136: 11910000 | ET136: 11910000 | EU136: 11910000 | EV136: 11910000 | EW136: 11910000 | EX136: 11910000 | EY136: 11910000 | EZ136: 11910000 | FA136: 11910000 | FB136: 11910000 | FC136: 11910000 | FD136: 11910000 | FE136: 11910000 | FF136: 11910000 | FG136: 11910000 | FH136: 11910000 | FI136: 11910000 | FJ136: 11910000 | FK136: 11910000 | FL136: 11910000 | FM136: 11910000 | FN136: 11910000 | FO136: 11910000 | FP136: 11910000 | FQ136: 11910000 | FR136: 11910000 | FS136: 11910000 | FT136: 11910000 | FU136: 11910000 | FV136: 11910000 | FW136: 11910000
C137: Net Plant | L137: =L133-L136 -> 236666.6667 | M137: =M133-M136 -> 473333.3333 | N137: 710000 | O137: 803333.3333 | P137: 896666.6667 | Q137: 990000 | R137: 1083333.333 | S137: 1176666.667 | T137: 1270000 | U137: 1363333.333 | V137: 1456666.667 | W137: 1550000 | X137: 1643333.333 | Y137: 1736666.667 | Z137: 1830000 | AA137: 2156666.667 | AB137: 2483333.333 | AC137: 2810000 | AD137: 3136666.667 | AE137: 3463333.333 | AF137: 3790000 | AG137: 4116666.667 | AH137: 4443333.333 | AI137: 4770000 | AJ137: 5096666.667 | AK137: 5423333.333 | AL137: 5750000 | AM137: 6216666.667 | AN137: 6683333.333 | AO137: 7150000 | AP137: 7616666.667 | AQ137: 8083333.333 | AR137: 8550000 | AS137: 9016666.667 | AT137: 9483333.333 | AU137: 9950000 | AV137: 10416666.67 | AW137: 10883333.33 | AX137: 11350000 | AY137: 11490000 | AZ137: 11630000 | BA137: 11770000 | BB137: 11910000 | BC137: 11612250 | BD137: 11314500 | BE137: 11016750 | BF137: 10719000 | BG137: 10421250 | BH137: 10123500 | BI137: 9825750 | BJ137: 9528000 | BK137: 9230250 | BL137: 8932500 | BM137: 8634750 | BN137: 8337000 | BO137: 8039250 | BP137: 7741500 | BQ137: 7443750 | BR137: 7146000 | BS137: 6848250 | BT137: 6550500 | BU137: 6252750 | BV137: 5955000 | BW137: 5657250 | BX137: 5359500 | BY137: =BY133-BY136 -> 5061750 | BZ137: 4764000 | CA137: 4466250 | CB137: 4168500 | CC137: 3870750 | CD137: 3573000 | CE137: 3275250 | CF137: 2977500 | CG137: 2679750 | CH137: 2382000 | CI137: 2084250 | CJ137: 1786500 | CK137: 1488750 | CL137: 1191000 | CM137: 893250 | CN137: 595500 | CO137: 297750 | CP137: 0 | CQ137: 0 | CR137: 0 | CS137: 0 | CT137: 0 | CU137: 0 | CV137: 0 | CW137: 0 | CX137: 0 | CY137: 0 | CZ137: 0 | DA137: 0 | DB137: 0 | DC137: 0 | DD137: 0 | DE137: 0 | DF137: 0 | DG137: 0 | DH137: 0 | DI137: 0 | DJ137: 0 | DK137: 0 | DL137: 0 | DM137: 0 | DN137: 0 | DO137: 0 | DP137: 0 | DQ137: 0 | DR137: 0 | DS137: 0 | DT137: 0 | DU137: 0 | DV137: 0 | DW137: 0 | DX137: 0 | DY137: 0 | DZ137: 0 | EA137: 0 | EB137: 0 | EC137: 0 | ED137: 0 | EE137: 0 | EF137: 0 | EG137: 0 | EH137: 0 | EI137: 0 | EJ137: 0 | EK137: =EK133-EK136 -> 0 | EL137: 0 | EM137: 0 | EN137: 0 | EO137: 0 | EP137: 0 | EQ137: 0 | ER137: 0 | ES137: 0 | ET137: 0 | EU137: 0 | EV137: 0 | EW137: 0 | EX137: 0 | EY137: 0 | EZ137: 0 | FA137: 0 | FB137: 0 | FC137: 0 | FD137: 0 | FE137: 0 | FF137: 0 | FG137: 0 | FH137: 0 | FI137: 0 | FJ137: 0 | FK137: 0 | FL137: 0 | FM137: 0 | FN137: 0 | FO137: 0 | FP137: 0 | FQ137: 0 | FR137: 0 | FS137: 0 | FT137: 0 | FU137: 0 | FV137: 0 | FW137: 0
C139: Operating Income | L139: =L124-L135 -> 0 | M139: =M124-M135 -> 0 | N139: 0 | O139: 0 | P139: 0 | Q139: 0 | R139: 0 | S139: 0 | T139: 0 | U139: 0 | V139: 0 | W139: 0 | X139: 0 | Y139: 0 | Z139: 0 | AA139: 0 | AB139: 0 | AC139: 0 | AD139: 0 | AE139: 0 | AF139: 0 | AG139: 0 | AH139: 0 | AI139: 0 | AJ139: 0 | AK139: 0 | AL139: 0 | AM139: 0 | AN139: 0 | AO139: 0 | AP139: 0 | AQ139: 0 | AR139: 0 | AS139: 0 | AT139: 0 | AU139: 0 | AV139: 0 | AW139: 0 | AX139: 0 | AY139: 0 | AZ139: 0 | BA139: 0 | BB139: 0 | BC139: -130374.2425 | BD139: -129957.3631 | BE139: -129539.4455 | BF139: -129120.4869 | BG139: -38958.54125 | BH139: -38313.97472 | BI139: -37667.80277 | BJ139: -36955.50825 | BK139: 54442.96 | BL139: 55407.52089 | BM139: 56374.72346 | BN139: 57344.57493 | BO139: 149998.832 | BP139: 151225.0944 | BQ139: 152454.7153 | BR139: 153687.7038 | BS139: 154924.0691 | BT139: 156163.8205 | BU139: 157406.9672 | BV139: 158653.5185 | BW139: 159903.4839 | BX139: 161156.8725 | BY139: =BY124-BY135 -> 162413.6938 | BZ139: 164129.6852 | CA139: 165852.0756 | CB139: 167580.889 | CC139: 169316.1492 | CD139: 171057.8804 | CE139: 172806.1067 | CF139: 174560.8523 | CG139: 176322.1415 | CH139: 178089.9987 | CI139: 179864.4483 | CJ139: 181645.5151 | CK139: 183433.2236 | CL139: 185227.5986 | CM139: 187028.6651 | CN139: 188836.4478 | CO139: 190650.972 | CP139: 192335.3428 | CQ139: 491774.7674 | CR139: 493469.256 | CS139: 495168.819 | CT139: 496873.4667 | CU139: 498583.2092 | CV139: 500298.0569 | CW139: 502018.02 | CX139: 503743.1086 | CY139: 505473.333 | CZ139: 507208.7033 | DA139: 508949.2298 | DB139: 510694.9224 | DC139: 512445.7915 | DD139: 514201.847 | DE139: 515963.099 | DF139: 517190.4856 | DG139: 518417.4726 | DH139: 519644.0263 | DI139: 520870.1124 | DJ139: 522095.6964 | DK139: 523320.7433 | DL139: 524545.218 | DM139: 525769.0849 | DN139: 526992.3082 | DO139: 528214.8515 | DP139: 529436.6784 | DQ139: 530657.7518 | DR139: 531878.0346 | DS139: 533097.489 | DT139: 534316.0772 | DU139: 535533.7608 | DV139: 536750.5011 | DW139: 537966.259 | DX139: 539180.9951 | DY139: 540394.6697 | DZ139: 541607.2425 | EA139: 542818.6731 | EB139: 544028.9205 | EC139: 545237.9435 | ED139: 546445.7004 | EE139: 547652.1492 | EF139: 548857.2473 | EG139: 550060.9521 | EH139: 551263.2202 | EI139: 552464.0081 | EJ139: 553663.2717 | EK139: =EK124-EK135 -> 554860.9667 | EL139: 556057.0482 | EM139: 557251.4711 | EN139: 558444.1896 | EO139: 559635.1578 | EP139: 560824.3292 | EQ139: 562011.6569 | ER139: 563197.0936 | ES139: 564380.5916 | ET139: 565562.1028 | EU139: 566741.5785 | EV139: 567918.9698 | EW139: 569094.2272 | EX139: 570267.3008 | EY139: 0 | EZ139: 0 | FA139: 0 | FB139: 0 | FC139: 0 | FD139: 0 | FE139: 0 | FF139: 0 | FG139: 0 | FH139: 0 | FI139: 0 | FJ139: 0 | FK139: 0 | FL139: 0 | FM139: 0 | FN139: 0 | FO139: 0 | FP139: 0 | FQ139: 0 | FR139: 0 | FS139: 0 | FT139: 0 | FU139: 0 | FV139: 0 | FW139: 0
C140: Taxes on Operating Income | H140: =G64 -> 0.2 | L140: =L139*$H$140 -> 0 | M140: =M139*$H$140 -> 0 | N140: 0 | O140: 0 | P140: 0 | Q140: 0 | R140: 0 | S140: 0 | T140: 0 | U140: 0 | V140: 0 | W140: 0 | X140: 0 | Y140: 0 | Z140: 0 | AA140: 0 | AB140: 0 | AC140: 0 | AD140: 0 | AE140: 0 | AF140: 0 | AG140: 0 | AH140: 0 | AI140: 0 | AJ140: 0 | AK140: 0 | AL140: 0 | AM140: 0 | AN140: 0 | AO140: 0 | AP140: 0 | AQ140: 0 | AR140: 0 | AS140: 0 | AT140: 0 | AU140: 0 | AV140: 0 | AW140: 0 | AX140: 0 | AY140: 0 | AZ140: 0 | BA140: 0 | BB140: 0 | BC140: -26074.84849 | BD140: -25991.47262 | BE140: -25907.88909 | BF140: -25824.09739 | BG140: -7791.70825 | BH140: -7662.794943 | BI140: -7533.560555 | BJ140: -7391.10165 | BK140: 10888.592 | BL140: 11081.50418 | BM140: 11274.94469 | BN140: 11468.91499 | BO140: 29999.76639 | BP140: 30245.01889 | BQ140: 30490.94306 | BR140: 30737.54076 | BS140: 30984.81382 | BT140: 31232.7641 | BU140: 31481.39344 | BV140: 31730.70371 | BW140: 31980.69677 | BX140: 32231.3745 | BY140: =BY139*$H$140 -> 32482.73877 | BZ140: 32825.93703 | CA140: 33170.41512 | CB140: 33516.17779 | CC140: 33863.22985 | CD140: 34211.57609 | CE140: 34561.22135 | CF140: 34912.17046 | CG140: 35264.4283 | CH140: 35617.99973 | CI140: 35972.88967 | CJ140: 36329.10302 | CK140: 36686.64472 | CL140: 37045.51973 | CM140: 37405.73301 | CN140: 37767.28956 | CO140: 38130.19439 | CP140: 38467.06856 | CQ140: 98354.95347 | CR140: 98693.8512 | CS140: 99033.76381 | CT140: 99374.69334 | CU140: 99716.64185 | CV140: 100059.6114 | CW140: 100403.604 | CX140: 100748.6217 | CY140: 101094.6666 | CZ140: 101441.7407 | DA140: 101789.846 | DB140: 102138.9845 | DC140: 102489.1583 | DD140: 102840.3694 | DE140: 103192.6198 | DF140: 103438.0971 | DG140: 103683.4945 | DH140: 103928.8053 | DI140: 104174.0225 | DJ140: 104419.1393 | DK140: 104664.1487 | DL140: 104909.0436 | DM140: 105153.817 | DN140: 105398.4616 | DO140: 105642.9703 | DP140: 105887.3357 | DQ140: 106131.5504 | DR140: 106375.6069 | DS140: 106619.4978 | DT140: 106863.2154 | DU140: 107106.7522 | DV140: 107350.1002 | DW140: 107593.2518 | DX140: 107836.199 | DY140: 108078.9339 | DZ140: 108321.4485 | EA140: 108563.7346 | EB140: 108805.7841 | EC140: 109047.5887 | ED140: 109289.1401 | EE140: 109530.4298 | EF140: 109771.4495 | EG140: 110012.1904 | EH140: 110252.644 | EI140: 110492.8016 | EJ140: 110732.6543 | EK140: =EK139*$H$140 -> 110972.1933 | EL140: 111211.4096 | EM140: 111450.2942 | EN140: 111688.8379 | EO140: 111927.0316 | EP140: 112164.8658 | EQ140: 112402.3314 | ER140: 112639.4187 | ES140: 112876.1183 | ET140: 113112.4206 | EU140: 113348.3157 | EV140: 113583.794 | EW140: 113818.8454 | EX140: 114053.4602 | EY140: 0 | EZ140: 0 | FA140: 0 | FB140: 0 | FC140: 0 | FD140: 0 | FE140: 0 | FF140: 0 | FG140: 0 | FH140: 0 | FI140: 0 | FJ140: 0 | FK140: 0 | FL140: 0 | FM140: 0 | FN140: 0 | FO140: 0 | FP140: 0 | FQ140: 0 | FR140: 0 | FS140: 0 | FT140: 0 | FU140: 0 | FV140: 0 | FW140: 0
C142: Project Cash Flow | L142: =L124-L85+L126-L140 -> -236666.6667 | M142: =M124-M85+M126-M140 -> -236666.6667 | N142: -236666.6667 | O142: -3093333.333 | P142: -93333.33333 | Q142: -93333.33333 | R142: -93333.33333 | S142: -93333.33333 | T142: -93333.33333 | U142: -93333.33333 | V142: -93333.33333 | W142: -93333.33333 | X142: -93333.33333 | Y142: -93333.33333 | Z142: -93333.33333 | AA142: -326666.6667 | AB142: -326666.6667 | AC142: -326666.6667 | AD142: -326666.6667 | AE142: -326666.6667 | AF142: -326666.6667 | AG142: -326666.6667 | AH142: -326666.6667 | AI142: -326666.6667 | AJ142: -326666.6667 | AK142: -326666.6667 | AL142: -326666.6667 | AM142: -466666.6667 | AN142: -466666.6667 | AO142: -466666.6667 | AP142: -466666.6667 | AQ142: -466666.6667 | AR142: -466666.6667 | AS142: -466666.6667 | AT142: -466666.6667 | AU142: -466666.6667 | AV142: -466666.6667 | AW142: -466666.6667 | AX142: -466666.6667 | AY142: -140000 | AZ142: -140000 | BA142: -140000 | BB142: -140000 | BC142: 193450.606 | BD142: 193784.1095 | BE142: 194118.4436 | BF142: 194453.6105 | BG142: 266583.167 | BH142: 267098.8202 | BI142: 267615.7578 | BJ142: 268185.5934 | BK142: 341304.368 | BL142: 342076.0167 | BM142: 342849.7788 | BN142: 343625.6599 | BO142: 417749.0656 | BP142: 418730.0756 | BQ142: 419713.7723 | BR142: 420700.163 | BS142: 421689.2553 | BT142: 422681.0564 | BU142: 423675.5738 | BV142: 424672.8148 | BW142: 425672.7871 | BX142: 426675.498 | BY142: =BY124-BY85+BY126-BY140 -> 427680.9551 | BZ142: 429053.7481 | CA142: 430431.6605 | CB142: 431814.7112 | CC142: 433202.9194 | CD142: 434596.3044 | CE142: 435994.8854 | CF142: 437398.6818 | CG142: 438807.7132 | CH142: 440221.9989 | CI142: 441641.5587 | CJ142: 443066.4121 | CK142: 444496.5789 | CL142: 445932.0789 | CM142: 447372.932 | CN142: 448819.1582 | CO142: 450270.7776 | CP142: 451618.2742 | CQ142: 393419.8139 | CR142: 394775.4048 | CS142: 396135.0552 | CT142: 397498.7734 | CU142: 398866.5674 | CV142: 400238.4455 | CW142: 401614.416 | CX142: 402994.4869 | CY142: 404378.6664 | CZ142: 405766.9627 | DA142: 407159.3838 | DB142: 408555.9379 | DC142: 409956.6332 | DD142: 411361.4776 | DE142: 412770.4792 | DF142: 413752.3885 | DG142: 414733.9781 | DH142: 415715.2211 | DI142: 416696.0899 | DJ142: 417676.5571 | DK142: 418656.5947 | DL142: 419636.1744 | DM142: 420615.268 | DN142: 421593.8466 | DO142: 422571.8812 | DP142: 423549.3427 | DQ142: 424526.2015 | DR142: 425502.4277 | DS142: 426477.9912 | DT142: 427452.8618 | DU142: 428427.0086 | DV142: 429400.4009 | DW142: 430373.0072 | DX142: 431344.7961 | DY142: 432315.7357 | DZ142: 433285.794 | EA142: 434254.9385 | EB142: 435223.1364 | EC142: 436190.3548 | ED142: 437156.5603 | EE142: 438121.7193 | EF142: 439085.7979 | EG142: 440048.7617 | EH142: 441010.5761 | EI142: 441971.2065 | EJ142: 442930.6174 | EK142: =EK124-EK85+EK126-EK140 -> 443888.7734 | EL142: 444845.6386 | EM142: 445801.1769 | EN142: 446755.3517 | EO142: 447708.1262 | EP142: 448659.4633 | EQ142: 449609.3255 | ER142: 450557.6749 | ES142: 451504.4733 | ET142: 452449.6822 | EU142: 453393.2628 | EV142: 454335.1758 | EW142: 455275.3818 | EX142: 28969578.88 | EY142: 0 | EZ142: 0 | FA142: 0 | FB142: 0 | FC142: 0 | FD142: 0 | FE142: 0 | FF142: 0 | FG142: 0 | FH142: 0 | FI142: 0 | FJ142: 0 | FK142: 0 | FL142: 0 | FM142: 0 | FN142: 0 | FO142: 0 | FP142: 0 | FQ142: 0 | FR142: 0 | FS142: 0 | FT142: 0 | FU142: 0 | FV142: 0 | FW142: 0
C143: Project IRR | E143: =XIRR(L142:FW142,L10:FW10) -> 0.09578389227

Sheet Key Points
B3: Set-up model assumptions
B5: Careful with model with model structures
C6: Time Line
C7: Construction Costs
C8: Operating Income
C9: Taxes
C10: Financing
B12: Date Functions
B13: Lookup Functions
